Workbook

Sheet Main
B10: 2019-04-04
B12: Sheet No. | C12: Template Name | D12: Summary
B13: 1 | C13: Future Intra | D13: For Intraday trading in F&O segment
B14: 2 | C14: Cash Intra | D14: For Intraday trading in cash market segment
B15: 3 | C15: Mid-cap Intra | D15: For Intraday trading in Mid-cap stocks
B16: 4 | C16: Bulk Deals | D16: Reveals Bulk Deals carried on NSE & BSE
B17: 5 | C17: Call Tracker

Sheet Future Intra
M5: Back to Main Page
A6: FOR INTRA DAY TRADING | L6: =Main!B10 -> 2019-04-04
A9: Sr.no | B9: Sector | C9: Scrip | D9: CLOSE RATE | E9: Pivot Point | F9: Supports | I9: Resistances
B10: Sector | D10: Point | E10: Point | F10: S1 | G10: S2 | H10: S3 | I10: R1 | J10: R2 | K10: R3 | L10: HIGH | M10: LOW | N10: OI | O10: % Change in OI
A11: 1 | B11: Index | C11: BANKNIFTY | D11: 30330.90 | E11: 30440.22 | F11: 30151.43 | G11: 29971.97 | H11: 29683.18 | I11: 30619.68 | J11: 30908.47 | K11: 31087.93 | L11: 30729 | M11: 30260.75 | N11: 2066500 | O11: -3.08%
A12: 2 | B12: Index | C12: NIFTY | D12: 11729.65 | E12: 11759.60 | F12: 11685.05 | G12: 11640.45 | H12: 11565.90 | I12: 11804.20 | J12: 11878.75 | K12: 11923.35 | L12: 11834.15 | M12: 11715 | N12: 16804050 | O12: -1.31%
A13: 3 | B13: Index | C13: NIFTYIT | D13: 16067.00 | E13: 16046.33 | F13: 15973.67 | G13: 15880.33 | H13: 15807.67 | I13: 16139.67 | J13: 16212.33 | K13: 16305.67 | L13: 16119 | M13: 15953 | N13: 16200 | O13: -10.74%
A14: 4 | B14: Cement | C14: ACC | D14: 1632.40 | E14: 1638.08 | F14: 1621.07 | G14: 1609.73 | H14: 1592.72 | I14: 1649.42 | J14: 1666.43 | K14: 1677.77 | L14: 1655.1 | M14: 1626.75 | N14: 2530800 | O14: 4.39%
A15: 5 | B15: Others | C15: ADANIENT | D15: 148.25 | E15: 149.53 | F15: 145.92 | G15: 143.58 | H15: 139.97 | I15: 151.87 | J15: 155.48 | K15: 157.82 | L15: 153.15 | M15: 147.2 | N15: 41136000 | O15: -0.64%
A16: 6 | B16: Others | C16: ADANIPORTS | D16: 383.55 | E16: 384.52 | F16: 381.03 | G16: 378.52 | H16: 375.03 | I16: 387.03 | J16: 390.52 | K16: 393.03 | L16: 388 | M16: 382 | N16: 21270000 | O16: -1.10%
A17: 7 | B17: Power | C17: ADANIPOWER | D17: 49.75 | E17: 50.00 | F17: 49.00 | G17: 48.25 | H17: 47.25 | I17: 50.75 | J17: 51.75 | K17: 52.50 | L17: 51 | M17: 49.25 | N17: 154880000 | O17: -0.37%
A18: 8 | B18: Pharma | C18: AJANTPHARM | D18: 1017.85 | E18: 1022.62 | F18: 1009.23 | G18: 1000.62 | H18: 987.23 | I18: 1031.23 | J18: 1044.62 | K18: 1053.23 | L18: 1036 | M18: 1014 | N18: 732500 | O18: 0.90%
A19: 9 | B19: Banking | C19: ALBK | D19: 52.70 | E19: 53.55 | F19: 51.40 | G19: 50.10 | H19: 47.95 | I19: 54.85 | J19: 57.00 | K19: 58.30 | L19: 55.7 | M19: 52.25 | N19: 26078000 | O19: -3.19%
A20: 10 | B20: Automobile | C20: AMARAJABAT | D20: 675.10 | E20: 691.05 | F20: 636.60 | G20: 598.10 | H20: 543.65 | I20: 729.55 | J20: 784.00 | K20: 822.50 | L20: 745.5 | M20: 652.55 | N20: 1892800 | O20: 37.26%
A21: 11 | B21: Cement | C21: AMBUJACEM | D21: 228.65 | E21: 231.42 | F21: 225.08 | G21: 221.52 | H21: 215.18 | I21: 234.98 | J21: 241.32 | K21: 244.88 | L21: 237.75 | M21: 227.85 | N21: 14080000 | O21: 15.67%
A22: 12 | B22: Others | C22: APOLLOHOSP | D22: 1264.60 | E22: 1268.72 | F22: 1256.53 | G22: 1248.47 | H22: 1236.28 | I22: 1276.78 | J22: 1288.97 | K22: 1297.03 | L22: 1280.9 | M22: 1260.65 | N22: 1274000 | O22: 2.99%
A23: 13 | B23: Automobile | C23: APOLLOTYRE | D23: 221.25 | E23: 222.57 | F23: 218.93 | G23: 216.62 | H23: 212.98 | I23: 224.88 | J23: 228.52 | K23: 230.83 | L23: 226.2 | M23: 220.25 | N23: 11241000 | O23: -3.95%
A24: 14 | B24: Textile | C24: ARVIND | D24: 90.65 | E24: 91.45 | F24: 89.20 | G24: 87.75 | H24: 85.50 | I24: 92.90 | J24: 95.15 | K24: 96.60 | L24: 93.7 | M24: 90 | N24: 4970000 | O24: -6.75%
A25: 15 | B25: Automobile | C25: ASHOKLEY | D25: 88.50 | E25: 89.35 | F25: 87.35 | G25: 86.20 | H25: 84.20 | I25: 90.50 | J25: 92.50 | K25: 93.65 | L25: 91.35 | M25: 88.2 | N25: 70964000 | O25: 2.60%
A26: 16 | B26: FMCG | C26: ASIANPAINT | D26: 1510.40 | E26: 1518.40 | F26: 1498.80 | G26: 1487.20 | H26: 1467.60 | I26: 1530.00 | J26: 1549.60 | K26: 1561.20 | L26: 1538 | M26: 1506.8 | N26: 5519400 | O26: 1.13%
A27: 17 | B27: Pharma | C27: AUROPHARMA | D27: 778.10 | E27: 784.68 | F27: 769.17 | G27: 760.23 | H27: 744.72 | I27: 793.62 | J27: 809.13 | K27: 818.07 | L27: 800.2 | M27: 775.75 | N27: 15653000 | O27: 0.10%
A28: 18 | B28: Banking | C28: AXISBANK | D28: 766.70 | E28: 769.05 | F28: 762.00 | G28: 757.30 | H28: 750.25 | I28: 773.75 | J28: 780.80 | K28: 785.50 | L28: 776.1 | M28: 764.35 | N28: 32977200 | O28: 2.99%
A29: 19 | B29: Automobile | C29: BAJAJ-AUTO | D29: 2855.75 | E29: 2855.08 | F29: 2836.37 | G29: 2816.98 | H29: 2798.27 | I29: 2874.47 | J29: 2893.18 | K29: 2912.57 | L29: 2873.8 | M29: 2835.7 | N29: 3785250 | O29: -1.69%
A30: 20 | B30: Others | C30: BAJAJFINSV | D30: 7437.30 | E30: 7407.77 | F30: 7346.53 | G30: 7255.77 | H30: 7194.53 | I30: 7498.53 | J30: 7559.77 | K30: 7650.53 | L30: 7469 | M30: 7317 | N30: 678750 | O30: 14.34%
A31: 21 | B31: Finance | C31: BAJFINANCE | D31: 3063.65 | E31: 3074.68 | F31: 3044.47 | G31: 3025.28 | H31: 2995.07 | I31: 3093.87 | J31: 3124.08 | K31: 3143.27 | L31: 3104.9 | M31: 3055.5 | N31: 5182250 | O31: -0.90%
A32: 22 | B32: Others | C32: BALKRISIND | D32: 992.55 | E32: 996.92 | F32: 986.03 | G32: 979.52 | H32: 968.63 | I32: 1003.43 | J32: 1014.32 | K32: 1020.83 | L32: 1007.8 | M32: 990.4 | N32: 2025600 | O32: -1.56%
A33: 23 | B33: Banking | C33: BANKBARODA | D33: 132.75 | E33: 134.10 | F33: 130.60 | G33: 128.45 | H33: 124.95 | I33: 136.25 | J33: 139.75 | K33: 141.90 | L33: 137.6 | M33: 131.95 | N33: 50304000 | O33: -5.97%
A34: 24 | B34: Banking | C34: BANKINDIA | D34: 102.20 | E34: 104.02 | F34: 100.03 | G34: 97.87 | H34: 93.88 | I34: 106.18 | J34: 110.17 | K34: 112.33 | L34: 108 | M34: 101.85 | N34: 23766000 | O34: 5.29%
A35: 25 | B35: FMCG | C35: BATAINDIA | D35: 1388.85 | E35: 1392.67 | F35: 1380.43 | G35: 1372.02 | H35: 1359.78 | I35: 1401.08 | J35: 1413.32 | K35: 1421.73 | L35: 1404.9 | M35: 1384.25 | N35: 1983850 | O35: 2.15%
A36: 26 | B36: Capital_Goods | C36: BEL | D36: 98.00 | E36: 99.48 | F36: 96.07 | G36: 94.13 | H36: 90.72 | I36: 101.42 | J36: 104.83 | K36: 106.77 | L36: 102.9 | M36: 97.55 | N36: 34374000 | O36: -0.69%
A37: 27 | B37: Infrastructure | C37: BEML | D37: 1008.50 | E37: 1017.57 | F37: 993.13 | G37: 977.77 | H37: 953.33 | I37: 1032.93 | J37: 1057.37 | K37: 1072.73 | L37: 1042 | M37: 1002.2 | N37: 1646400 | O37: 5.57%
A38: 28 | B38: Others | C38: BERGEPAINT | D38: 331.90 | E38: 332.63 | F38: 329.37 | G38: 326.83 | H38: 323.57 | I38: 335.17 | J38: 338.43 | K38: 340.97 | L38: 335.9 | M38: 330.1 | N38: 3209800 | O38: 1.11%
A39: 29 | B39: Finance | C39: BHARATFIN | D39: 1129.25 | E39: 1135.45 | F39: 1116.65 | G39: 1104.05 | H39: 1085.25 | I39: 1148.05 | J39: 1166.85 | K39: 1179.45 | L39: 1154.25 | M39: 1122.85 | N39: 4041000 | O39: 0.06%
A40: 30 | B40: Automobile | C40: BHARATFORG | D40: 506.25 | E40: 512.18 | F40: 498.07 | G40: 489.88 | H40: 475.77 | I40: 520.37 | J40: 534.48 | K40: 542.67 | L40: 526.3 | M40: 504 | N40: 9694800 | O40: -3.58%
A41: 31 | B41: Telecom | C41: BHARTIARTL | D41: 351.65 | E41: 355.22 | F41: 346.08 | G41: 340.52 | H41: 331.38 | I41: 360.78 | J41: 369.92 | K41: 375.48 | L41: 364.35 | M41: 349.65 | N41: 34521900 | O41: 0.42%
A42: 32 | B42: Capital_Goods | C42: BHEL | D42: 74.30 | E42: 74.82 | F42: 73.03 | G42: 71.77 | H42: 69.98 | I42: 76.08 | J42: 77.87 | K42: 79.13 | L42: 76.6 | M42: 73.55 | N42: 66615000 | O42: -3.41%
A43: 33 | B43: Pharma | C43: BIOCON | D43: 611.00 | E43: 614.03 | F43: 607.12 | G43: 603.23 | H43: 596.32 | I43: 617.92 | J43: 624.83 | K43: 628.72 | L43: 620.95 | M43: 610.15 | N43: 6030900 | O43: 0.24%
A44: 34 | B44: Automobile | C44: BOSCHLTD | D44: 18101.50 | E44: 18118.88 | F44: 18037.72 | G44: 17973.93 | H44: 17892.77 | I44: 18182.67 | J44: 18263.83 | K44: 18327.62 | L44: 18200.05 | M44: 18055.1 | N44: 154830 | O44: -0.75%
A45: 35 | B45: Oil_Gas | C45: BPCL | D45: 366.30 | E45: 371.92 | F45: 359.68 | G45: 353.07 | H45: 340.83 | I45: 378.53 | J45: 390.77 | K45: 397.38 | L45: 384.15 | M45: 365.3 | N45: 8497800 | O45: 22.46%
A46: 36 | B46: FMCG | C46: BRITANNIA | D46: 3000.00 | E46: 2998.77 | F46: 2972.63 | G46: 2945.27 | H46: 2919.13 | I46: 3026.13 | J46: 3052.27 | K46: 3079.63 | L46: 3024.9 | M46: 2971.4 | N46: 2085600 | O46: 5.77%
A47: 37 | B47: Pharma | C47: CADILAHC | D47: 341.10 | E47: 342.82 | F47: 337.78 | G47: 334.47 | H47: 329.43 | I47: 346.13 | J47: 351.17 | K47: 354.48 | L47: 347.85 | M47: 339.5 | N47: 11345600 | O47: -0.07%
A48: 38 | B48: Banking | C48: CANBK | D48: 287.15 | E48: 291.63 | F48: 280.77 | G48: 274.38 | H48: 263.52 | I48: 298.02 | J48: 308.88 | K48: 315.27 | L48: 302.5 | M48: 285.25 | N48: 9718000 | O48: -3.74%
A49: 39 | B49: Others | C49: CANFINHOME | D49: 354.60 | E49: 356.47 | F49: 349.23 | G49: 343.87 | H49: 336.63 | I49: 361.83 | J49: 369.07 | K49: 374.43 | L49: 363.7 | M49: 351.1 | N49: 3835800 | O49: 3.25%
A50: 40 | B50: Oil_Gas | C50: CASTROLIND | D50: 168.70 | E50: 169.75 | F50: 165.70 | G50: 162.70 | H50: 158.65 | I50: 172.75 | J50: 176.80 | K50: 179.80 | L50: 173.8 | M50: 166.75 | N50: 7340600 | O50: 3.65%
A51: 41 | B51: Automobile | C51: CEATLTD | D51: 1097.05 | E51: 1107.25 | F51: 1081.50 | G51: 1065.95 | H51: 1040.20 | I51: 1122.80 | J51: 1148.55 | K51: 1164.10 | L51: 1133 | M51: 1091.7 | N51: 1120000 | O51: 9.59%
A52: 42 | B52: Textile | C52: CENTURYTEX | D52: 909.00 | E52: 916.68 | F52: 898.67 | G52: 888.33 | H52: 870.32 | I52: 927.02 | J52: 945.03 | K52: 955.37 | L52: 934.7 | M52: 906.35 | N52: 4017600 | O52: 1.81%
A53: 43 | B53: Power | C53: CESC | D53: 711.60 | E53: 718.83 | F53: 700.87 | G53: 690.13 | H53: 672.17 | I53: 729.57 | J53: 747.53 | K53: 758.27 | L53: 736.8 | M53: 708.1 | N53: 1471800 | O53: 2.18%
A54: 44 | B54: Power | C54: CGPOWER | D54: 40.50 | E54: 40.75 | F54: 39.70 | G54: 38.90 | H54: 37.85 | I54: 41.55 | J54: 42.60 | K54: 43.40 | L54: 41.8 | M54: 39.95 | N54: 26028000 | O54: -2.74%
A55: 45 | B55: Others | C55: CHENNPETRO | D55: 260.30 | E55: 263.32 | F55: 254.63 | G55: 248.97 | H55: 240.28 | I55: 268.98 | J55: 277.67 | K55: 283.33 | L55: 272 | M55: 257.65 | N55: 1269000 | O55: -2.89%
A56: 46 | B56: Others | C56: CHOLAFIN | D56: 1475.20 | E56: 1482.32 | F56: 1456.03 | G56: 1436.87 | H56: 1410.58 | I56: 1501.48 | J56: 1527.77 | K56: 1546.93 | L56: 1508.6 | M56: 1463.15 | N56: 556000 | O56: -12.51%
A57: 47 | B57: Pharma | C57: CIPLA | D57: 523.70 | E57: 525.17 | F57: 521.53 | G57: 519.37 | H57: 515.73 | I57: 527.33 | J57: 530.97 | K57: 533.13 | L57: 528.8 | M57: 523 | N57: 7920000 | O57: 1.50%
A58: 48 | B58: Others | C58: COALINDIA | D58: 235.75 | E58: 236.42 | F58: 234.23 | G58: 232.72 | H58: 230.53 | I58: 237.93 | J58: 240.12 | K58: 241.63 | L58: 238.6 | M58: 234.9 | N58: 32652400 | O58: -4.83%
A59: 49 | B59: FMCG | C59: COLPAL | D59: 1251.55 | E59: 1254.12 | F59: 1243.88 | G59: 1236.22 | H59: 1225.98 | I59: 1261.78 | J59: 1272.02 | K59: 1279.68 | L59: 1264.35 | M59: 1246.45 | N59: 1680000 | O59: -1.68%
A60: 50 | B60: Others | C60: CONCOR | D60: 534.90 | E60: 535.82 | F60: 529.53 | G60: 524.17 | H60: 517.88 | I60: 541.18 | J60: 547.47 | K60: 552.83 | L60: 542.1 | M60: 530.45 | N60: 1144116 | O60: -2.79%
A61: 51 | B61: Capital_Goods | C61: CUMMINSIND | D61: 732.75 | E61: 740.48 | F61: 722.37 | G61: 711.98 | H61: 693.87 | I61: 750.87 | J61: 768.98 | K61: 779.37 | L61: 758.6 | M61: 730.1 | N61: 1610000 | O61: 1.28%
A62: 52 | B62: FMCG | C62: DABUR | D62: 405.60 | E62: 407.03 | F62: 403.07 | G62: 400.53 | H62: 396.57 | I62: 409.57 | J62: 413.53 | K62: 416.07 | L62: 411 | M62: 404.5 | N62: 13726250 | O62: -3.85%
A63: 53 | B63: Banking | C63: DCBBANK | D63: 200.75 | E63: 202.55 | F63: 198.50 | G63: 196.25 | H63: 192.20 | I63: 204.80 | J63: 208.85 | K63: 211.10 | L63: 206.6 | M63: 200.3 | N63: 6183000 | O63: -0.43%
A64: 54 | B64: Finance | C64: DHFL | D64: 149.20 | E64: 149.77 | F64: 145.38 | G64: 141.57 | H64: 137.18 | I64: 153.58 | J64: 157.97 | K64: 161.78 | L64: 154.15 | M64: 145.95 | N64: 20005500 | O64: 5.87%
A65: 55 | B65: Media | C65: DISHTV | D65: 38.60 | E65: 39.03 | F65: 37.87 | G65: 37.13 | H65: 35.97 | I65: 39.77 | J65: 40.93 | K65: 41.67 | L65: 40.2 | M65: 38.3 | N65: 61112000 | O65: 23.79%
A66: 56 | B66: Pharma | C66: DIVISLAB | D66: 1686.05 | E66: 1696.18 | F66: 1669.87 | G66: 1653.68 | H66: 1627.37 | I66: 1712.37 | J66: 1738.68 | K66: 1754.87 | L66: 1722.5 | M66: 1680 | N66: 2854000 | O66: -0.10%
A67: 57 | B67: Realty | C67: DLF | D67: 203.50 | E67: 205.07 | F67: 199.18 | G67: 194.87 | H67: 188.98 | I67: 209.38 | J67: 215.27 | K67: 219.58 | L67: 210.95 | M67: 200.75 | N67: 36743200 | O67: 1.40%
A68: 58 | B68: Pharma | C68: DRREDDY | D68: 2787.75 | E68: 2798.12 | F68: 2769.63 | G68: 2751.52 | H68: 2723.03 | I68: 2816.23 | J68: 2844.72 | K68: 2862.83 | L68: 2826.6 | M68: 2780 | N68: 3532250 | O68: 0.87%
A69: 59 | B69: Automobile | C69: EICHERMOT | D69: 20307.15 | E69: 20359.80 | F69: 20169.55 | G69: 20031.95 | H69: 19841.70 | I69: 20497.40 | J69: 20687.65 | K69: 20825.25 | L69: 20550.05 | M69: 20222.2 | N69: 408700 | O69: 2.18%
A70: 60 | B70: Infrastructure | C70: ENGINERSIN | D70: 117.65 | E70: 118.63 | F70: 115.82 | G70: 113.98 | H70: 111.17 | I70: 120.47 | J70: 123.28 | K70: 125.12 | L70: 121.45 | M70: 116.8 | N70: 10651800 | O70: -3.06%
A71: 61 | B71: Finance | C71: EQUITAS | D71: 137.10 | E71: 136.98 | F71: 134.17 | G71: 131.23 | H71: 128.42 | I71: 139.92 | J71: 142.73 | K71: 145.67 | L71: 139.8 | M71: 134.05 | N71: 11124000 | O71: 2.73%
A72: 62 | B72: Automobile | C72: ESCORTS | D72: 772.45 | E72: 778.05 | F72: 762.85 | G72: 753.25 | H72: 738.05 | I72: 787.65 | J72: 802.85 | K72: 812.45 | L72: 793.25 | M72: 768.45 | N72: 3042600 | O72: -0.07%
A73: 63 | B73: Automobile | C73: EXIDEIND | D73: 211.10 | E73: 213.02 | F73: 208.33 | G73: 205.57 | H73: 200.88 | I73: 215.78 | J73: 220.47 | K73: 223.23 | L73: 217.7 | M73: 210.25 | N73: 10616000 | O73: 7.91%
A74: 64 | B74: Banking | C74: FEDERALBNK | D74: 96.00 | E74: 96.87 | F74: 94.73 | G74: 93.47 | H74: 91.33 | I74: 98.13 | J74: 100.27 | K74: 101.53 | L74: 99 | M74: 95.6 | N74: 61684000 | O74: 2.61%
A75: 65 | B75: Oil_Gas | C75: GAIL | D75: 355.20 | E75: 358.20 | F75: 350.55 | G75: 345.90 | H75: 338.25 | I75: 362.85 | J75: 370.50 | K75: 375.15 | L75: 365.85 | M75: 353.55 | N75: 9121140 | O75: 6.74%
A76: 66 | B76: Pharma | C76: GLENMARK | D76: 645.15 | E76: 647.52 | F76: 637.63 | G76: 630.12 | H76: 620.23 | I76: 655.03 | J76: 664.92 | K76: 672.43 | L76: 657.4 | M76: 640 | N76: 3965000 | O76: 0.66%
A77: 67 | B77: Infrastructure | C77: GMRINFRA | D77: 18.80 | E77: 19.02 | F77: 18.48 | G77: 18.17 | H77: 17.63 | I77: 19.33 | J77: 19.87 | K77: 20.18 | L77: 19.55 | M77: 18.7 | N77: 190665000 | O77: 1.49%
A78: 68 | B78: Others | C78: GODFRYPHLP | D78: 1134.90 | E78: 1140.90 | F78: 1124.50 | G78: 1114.10 | H78: 1097.70 | I78: 1151.30 | J78: 1167.70 | K78: 1178.10 | L78: 1157.3 | M78: 1130.5 | N78: 505400 | O78: 1.98%
A79: 69 | B79: FMCG | C79: GODREJCP | D79: 669.00 | E79: 668.87 | F79: 661.18 | G79: 653.37 | H79: 645.68 | I79: 676.68 | J79: 684.37 | K79: 692.18 | L79: 676.55 | M79: 661.05 | N79: 5788200 | O79: -0.55%
A80: 70 | B80: FMCG | C80: GODREJIND | D80: 533.25 | E80: 536.45 | F80: 528.40 | G80: 523.55 | H80: 515.50 | I80: 541.30 | J80: 549.35 | K80: 554.20 | L80: 544.5 | M80: 531.6 | N80: 1197000 | O80: -0.87%
A81: 71 | B81: Cement | C81: GRASIM | D81: 838.05 | E81: 843.28 | F81: 829.77 | G81: 821.48 | H81: 807.97 | I81: 851.57 | J81: 865.08 | K81: 873.37 | L81: 856.8 | M81: 835 | N81: 11491500 | O81: 1.55%
A82: 72 | B82: Others | C82: GSFC | D82: 103.00 | E82: 104.83 | F82: 100.52 | G82: 98.03 | H82: 93.72 | I82: 107.32 | J82: 111.63 | K82: 114.12 | L82: 109.15 | M82: 102.35 | N82: 10645500 | O82: -5.19%
A83: 73 | B83: Others | C83: HAVELLS | D83: 773.75 | E83: 775.68 | F83: 767.07 | G83: 760.38 | H83: 751.77 | I83: 782.37 | J83: 790.98 | K83: 797.67 | L83: 784.3 | M83: 769 | N83: 4223000 | O83: 2.62%
A84: 74 | B84: Technology | C84: HCLTECH | D84: 1125.20 | E84: 1121.15 | F84: 1103.40 | G84: 1081.60 | H84: 1063.85 | I84: 1142.95 | J84: 1160.70 | K84: 1182.50 | L84: 1138.9 | M84: 1099.35 | N84: 8152900 | O84: 1.16%
A85: 75 | B85: Finance | C85: HDFC | D85: 2024.30 | E85: 2026.27 | F85: 2005.63 | G85: 1986.97 | H85: 1966.33 | I85: 2044.93 | J85: 2065.57 | K85: 2084.23 | L85: 2046.9 | M85: 2007.6 | N85: 26902500 | O85: 0.37%
A86: 76 | B86: Banking | C86: HDFCBANK | D86: 2313.20 | E86: 2317.90 | F86: 2302.35 | G86: 2291.50 | H86: 2275.95 | I86: 2328.75 | J86: 2344.30 | K86: 2355.15 | L86: 2333.45 | M86: 2307.05 | N86: 9853000 | O86: 1.54%
A87: 77 | B87: Automobile | C87: HEROMOTOCO | D87: 2600.40 | E87: 2599.38 | F87: 2583.97 | G87: 2567.53 | H87: 2552.12 | I87: 2615.82 | J87: 2631.23 | K87: 2647.67 | L87: 2614.8 | M87: 2582.95 | N87: 2962200 | O87: 4.21%
A88: 78 | B88: Technology | C88: HEXAWARE | D88: 362.05 | E88: 360.35 | F88: 355.45 | G88: 348.85 | H88: 343.95 | I88: 366.95 | J88: 371.85 | K88: 378.45 | L88: 365.25 | M88: 353.75 | N88: 2536500 | O88: -8.59%
A89: 79 | B89: Metals | C89: HINDALCO | D89: 216.95 | E89: 217.60 | F89: 215.00 | G89: 213.05 | H89: 210.45 | I89: 219.55 | J89: 222.15 | K89: 224.10 | L89: 220.2 | M89: 215.65 | N89: 32431000 | O89: -1.08%
A90: 80 | B90: Oil_Gas | C90: HINDPETRO | D90: 262.75 | E90: 267.38 | F90: 257.37 | G90: 251.98 | H90: 241.97 | I90: 272.77 | J90: 282.78 | K90: 288.17 | L90: 277.4 | M90: 262 | N90: 14842800 | O90: 11.52%
A91: 81 | B91: FMCG | C91: HINDUNILVR | D91: 1684.30 | E91: 1688.42 | F91: 1678.38 | G91: 1672.47 | H91: 1662.43 | I91: 1694.33 | J91: 1704.37 | K91: 1710.28 | L91: 1698.45 | M91: 1682.5 | N91: 12399600 | O91: 0.45%
A92: 82 | B92: Metals | C92: HINDZINC | D92: 284.05 | E92: 285.80 | F92: 280.85 | G92: 277.65 | H92: 272.70 | I92: 289.00 | J92: 293.95 | K92: 297.15 | L92: 290.75 | M92: 282.6 | N92: 3760000 | O92: -7.48%
A93: 83 | B93: Finance | C93: IBULHSGFIN | D93: 876.75 | E93: 874.92 | F93: 850.33 | G93: 823.92 | H93: 799.33 | I93: 901.33 | J93: 925.92 | K93: 952.33 | L93: 899.5 | M93: 848.5 | N93: 17094000 | O93: -5.41%
A94: 84 | B94: Banking | C94: ICICIBANK | D94: 394.95 | E94: 397.73 | F94: 390.77 | G94: 386.58 | H94: 379.62 | I94: 401.92 | J94: 408.88 | K94: 413.07 | L94: 404.7 | M94: 393.55 | N94: 86845000 | O94: -0.19%
A95: 85 | B95: Others | C95: ICICIPRULI | D95: 366.55 | E95: 368.95 | F95: 362.70 | G95: 358.85 | H95: 352.60 | I95: 372.80 | J95: 379.05 | K95: 382.90 | L95: 375.2 | M95: 365.1 | N95: 8056500 | O95: -4.85%
A96: 86 | B96: Banking | C96: IDBI | D96: 44.60 | E96: 45.03 | F96: 43.62 | G96: 42.63 | H96: 41.22 | I96: 46.02 | J96: 47.43 | K96: 48.42 | L96: 46.45 | M96: 44.05 | N96: 28580000 | O96: -3.38%
A97: 87 | B97: Telecom | C97: IDEA | D97: 15.85 | E97: 16.13 | F97: 15.42 | G97: 14.98 | H97: 14.27 | I97: 16.57 | J97: 17.28 | K97: 17.72 | L97: 16.85 | M97: 15.7 | N97: 375246916 | O97: 3.24%
A98: 88 | B98: Finance | C98: IDFC | D98: 45.80 | E98: 46.08 | F98: 45.27 | G98: 44.73 | H98: 43.92 | I98: 46.62 | J98: 47.43 | K98: 47.97 | L98: 46.9 | M98: 45.55 | N98: 90631200 | O98: -1.11%
A99: 89 | B99: Banking | C99: IDFCFIRSTB | D99: 54.55 | E99: 54.80 | F99: 54.10 | G99: 53.65 | H99: 52.95 | I99: 55.25 | J99: 55.95 | K99: 56.40 | L99: 55.5 | M99: 54.35 | N99: 122304000 | O99: -1.01%
A100: 90 | B100: Finance | C100: IFCI | D100: 13.45 | E100: 13.57 | F100: 13.23 | G100: 13.02 | H100: 12.68 | I100: 13.78 | J100: 14.12 | K100: 14.33 | L100: 13.9 | M100: 13.35 | N100: 58030000 | O100: 0.06%
A101: 91 | B101: Oil_Gas | C101: IGL | D101: 304.80 | E101: 305.75 | F101: 303.00 | G101: 301.20 | H101: 298.45 | I101: 307.55 | J101: 310.30 | K101: 312.10 | L101: 308.5 | M101: 303.95 | N101: 3473250 | O101: -2.17%
A102: 92 | B102: Cement | C102: INDIACEM | D102: 107.70 | E102: 109.20 | F102: 105.40 | G102: 103.10 | H102: 99.30 | I102: 111.50 | J102: 115.30 | K102: 117.60 | L102: 113 | M102: 106.9 | N102: 20610000 | O102: -4.36%
A103: 93 | B103: Banking | C103: INDIANB | D103: 274.75 | E103: 278.03 | F103: 269.72 | G103: 264.68 | H103: 256.37 | I103: 283.07 | J103: 291.38 | K103: 296.42 | L103: 286.35 | M103: 273 | N103: 3956000 | O103: -4.72%
A104: 94 | B104: Others | C104: INDIGO | D104: 1377.30 | E104: 1385.82 | F104: 1364.63 | G104: 1351.97 | H104: 1330.78 | I104: 1398.48 | J104: 1419.67 | K104: 1432.33 | L104: 1407 | M104: 1373.15 | N104: 2568600 | O104: 5.31%
A105: 95 | B105: Banking | C105: INDUSINDBK | D105: 1784.50 | E105: 1795.22 | F105: 1766.03 | G105: 1747.57 | H105: 1718.38 | I105: 1813.68 | J105: 1842.87 | K105: 1861.33 | L105: 1824.4 | M105: 1776.75 | N105: 6679500 | O105: 1.01%
A106: 96 | B106: Technology | C106: INFIBEAM | D106: 41.85 | E106: 42.40 | F106: 41.15 | G106: 40.45 | H106: 39.20 | I106: 43.10 | J106: 44.35 | K106: 45.05 | L106: 43.65 | M106: 41.7 | N106: 13984000 | O106: -0.68%
A107: 97 | B107: Telecom | C107: INFRATEL | D107: 320.15 | E107: 319.43 | F107: 316.37 | G107: 312.58 | H107: 309.52 | I107: 323.22 | J107: 326.28 | K107: 330.07 | L107: 322.5 | M107: 315.65 | N107: 6096000 | O107: 4.53%
A108: 98 | B108: Technology | C108: INFY | D108: 759.25 | E108: 757.90 | F108: 751.90 | G108: 744.55 | H108: 738.55 | I108: 765.25 | J108: 771.25 | K108: 778.60 | L108: 763.9 | M108: 750.55 | N108: 47316000 | O108: -0.05%
A109: 99 | B109: Oil_Gas | C109: IOC | D109: 154.55 | E109: 156.25 | F109: 152.35 | G109: 150.15 | H109: 146.25 | I109: 158.45 | J109: 162.35 | K109: 164.55 | L109: 160.15 | M109: 154.05 | N109: 59514000 | O109: -1.81%
A110: 100 | B110: Infrastructure | C110: IRB | D110: 150.65 | E110: 152.80 | F110: 146.45 | G110: 142.25 | H110: 135.90 | I110: 157.00 | J110: 163.35 | K110: 167.55 | L110: 159.15 | M110: 148.6 | N110: 9065600 | O110: -2.07%
A111: 101 | B111: FMCG | C111: ITC | D111: 298.40 | E111: 299.00 | F111: 297.15 | G111: 295.90 | H111: 294.05 | I111: 300.25 | J111: 302.10 | K111: 303.35 | L111: 300.85 | M111: 297.75 | N111: 59181600 | O111: -0.82%
A112: 102 | B112: Others | C112: JETAIRWAYS | D112: 238.15 | E112: 240.97 | F112: 230.33 | G112: 222.52 | H112: 211.88 | I112: 248.78 | J112: 259.42 | K112: 267.23 | L112: 251.6 | M112: 233.15 | N112: 7568000 | O112: 21.55%
A113: 103 | B113: Metals | C113: JINDALSTEL | D113: 183.75 | E113: 185.62 | F113: 180.83 | G113: 177.92 | H113: 173.13 | I113: 188.53 | J113: 193.32 | K113: 196.23 | L113: 190.4 | M113: 182.7 | N113: 23082750 | O113: 2.87%
A114: 104 | B114: Others | C114: JISLJALEQS | D114: 58.00 | E114: 58.83 | F114: 56.87 | G114: 55.73 | H114: 53.77 | I114: 59.97 | J114: 61.93 | K114: 63.07 | L114: 60.8 | M114: 57.7 | N114: 36549000 | O114: 0.72%
A115: 105 | B115: Metals | C115: JSWSTEEL | D115: 291.90 | E115: 293.00 | F115: 289.25 | G115: 286.60 | H115: 282.85 | I115: 295.65 | J115: 299.40 | K115: 302.05 | L115: 296.75 | M115: 290.35 | N115: 39432000 | O115: -1.25%
A116: 106 | B116: Others | C116: JUBLFOOD | D116: 1435.05 | E116: 1445.27 | F116: 1420.53 | G116: 1406.02 | H116: 1381.28 | I116: 1459.78 | J116: 1484.52 | K116: 1499.03 | L116: 1470 | M116: 1430.75 | N116: 3065000 | O116: -3.59%
A117: 107 | B117: Others | C117: JUSTDIAL | D117: 591.15 | E117: 594.87 | F117: 582.28 | G117: 573.42 | H117: 560.83 | I117: 603.73 | J117: 616.32 | K117: 625.18 | L117: 607.45 | M117: 586 | N117: 3117800 | O117: 3.39%
A118: 108 | B118: Others | C118: KAJARIACER | D118: 611.75 | E118: 610.78 | F118: 605.97 | G118: 600.18 | H118: 595.37 | I118: 616.57 | J118: 621.38 | K118: 627.17 | L118: 615.6 | M118: 605 | N118: 2089100 | O118: -4.80%
A119: 109 | B119: Banking | C119: KOTAKBANK | D119: 1345.35 | E119: 1351.25 | F119: 1336.60 | G119: 1327.85 | H119: 1313.20 | I119: 1360.00 | J119: 1374.65 | K119: 1383.40 | L119: 1365.9 | M119: 1342.5 | N119: 11110400 | O119: 1.68%
A120: 110 | B120: Technology | C120: BSOFT | D120: 101.60 | E120: 101.63 | F120: 100.57 | G120: 99.53 | H120: 98.47 | I120: 102.67 | J120: 103.73 | K120: 104.77 | L120: 102.7 | M120: 100.6 | N120: 3701250 | O120: -3.01%
A121: 111 | B121: Others | C121: KSCL | D121: 472.60 | E121: 473.77 | F121: 469.13 | G121: 465.67 | H121: 461.03 | I121: 477.23 | J121: 481.87 | K121: 485.33 | L121: 478.4 | M121: 470.3 | N121: 1020000 | O121: 2.10%
A122: 112 | B122: Banking | C122: KTKBANK | D122: 132.40 | E122: 133.70 | F122: 130.50 | G122: 128.60 | H122: 125.40 | I122: 135.60 | J122: 138.80 | K122: 140.70 | L122: 136.9 | M122: 131.8 | N122: 16412400 | O122: -2.95%
A123: 113 | B123: Finance | C123: L&TFH | D123: 153.20 | E123: 154.13 | F123: 151.22 | G123: 149.23 | H123: 146.32 | I123: 156.12 | J123: 159.03 | K123: 161.02 | L123: 157.05 | M123: 152.15 | N123: 16839000 | O123: -2.25%
A124: 114 | B124: Finance | C124: LICHSGFIN | D124: 545.85 | E124: 548.75 | F124: 541.80 | G124: 537.75 | H124: 530.80 | I124: 552.80 | J124: 559.75 | K124: 563.80 | L124: 555.7 | M124: 544.7 | N124: 7656000 | O124: -3.49%
A125: 115 | B125: Capital_Goods | C125: LT | D125: 1388.95 | E125: 1399.80 | F125: 1374.40 | G125: 1359.85 | H125: 1334.45 | I125: 1414.35 | J125: 1439.75 | K125: 1454.30 | L125: 1425.2 | M125: 1385.25 | N125: 7611000 | O125: 5.63%
A126: 116 | B126: Pharma | C126: LUPIN | D126: 777.20 | E126: 781.68 | F126: 769.17 | G126: 761.13 | H126: 748.62 | I126: 789.72 | J126: 802.23 | K126: 810.27 | L126: 794.2 | M126: 773.65 | N126: 10173800 | O126: -0.06%
A127: 117 | B127: Automobile | C127: M&M | D127: 663.95 | E127: 669.00 | F127: 657.10 | G127: 650.25 | H127: 638.35 | I127: 675.85 | J127: 687.75 | K127: 694.60 | L127: 680.9 | M127: 662.15 | N127: 20028000 | O127: 0.39%
A128: 118 | B128: Finance | C128: M&MFIN | D128: 419.90 | E128: 422.52 | F128: 415.53 | G128: 411.17 | H128: 404.18 | I128: 426.88 | J128: 433.87 | K128: 438.23 | L128: 429.5 | M128: 418.15 | N128: 11868750 | O128: -0.11%
A129: 119 | B129: Others | C129: MANAPPURAM | D129: 119.85 | E129: 121.10 | F129: 117.75 | G129: 115.65 | H129: 112.30 | I129: 123.20 | J129: 126.55 | K129: 128.65 | L129: 124.45 | M129: 119 | N129: 10332000 | O129: 9.40%
A130: 120 | B130: FMCG | C130: MARICO | D130: 357.35 | E130: 357.80 | F130: 354.65 | G130: 351.95 | H130: 348.80 | I130: 360.50 | J130: 363.65 | K130: 366.35 | L130: 360.95 | M130: 355.1 | N130: 5881200 | O130: 11.92%
A131: 121 | B131: Automobile | C131: MARUTI | D131: 7107.90 | E131: 7055.07 | F131: 6981.23 | G131: 6854.57 | H131: 6780.73 | I131: 7181.73 | J131: 7255.57 | K131: 7382.23 | L131: 7128.9 | M131: 6928.4 | N131: 2977200 | O131: 0.92%
A132: 122 | B132: FMCG | C132: MCDOWELL-N | D132: 538.15 | E132: 541.67 | F132: 533.03 | G132: 527.92 | H132: 519.28 | I132: 546.78 | J132: 555.42 | K132: 560.53 | L132: 550.3 | M132: 536.55 | N132: 12510000 | O132: 1.82%
A133: 123 | B133: Others | C133: MCX | D133: 789.00 | E133: 796.13 | F133: 777.87 | G133: 766.73 | H133: 748.47 | I133: 807.27 | J133: 825.53 | K133: 836.67 | L133: 814.4 | M133: 785 | N133: 1733900 | O133: 1.14%
A134: 124 | B134: Finance | C134: MFSL | D134: 437.95 | E134: 440.75 | F134: 432.55 | G134: 427.15 | H134: 418.95 | I134: 446.15 | J134: 454.35 | K134: 459.75 | L134: 448.95 | M134: 435.35 | N134: 1684800 | O134: 3.16%
A135: 125 | B135: Others | C135: MGL | D135: 1004.00 | E135: 1008.78 | F135: 994.17 | G135: 984.33 | H135: 969.72 | I135: 1018.62 | J135: 1033.23 | K135: 1043.07 | L135: 1023.4 | M135: 998.95 | N135: 640800 | O135: 0.85%
A136: 126 | B136: Technology | C136: MINDTREE | D136: 950.65 | E136: 950.80 | F136: 945.95 | G136: 941.25 | H136: 936.40 | I136: 955.50 | J136: 960.35 | K136: 965.05 | L136: 955.65 | M136: 946.1 | N136: 4402200 | O136: 2.53%
A137: 127 | B137: Automobile | C137: MOTHERSUMI | D137: 150.95 | E137: 152.78 | F137: 148.42 | G137: 145.88 | H137: 141.52 | I137: 155.32 | J137: 159.68 | K137: 162.22 | L137: 157.15 | M137: 150.25 | N137: 33424800 | O137: 0.27%
A138: 128 | B138: Automobile | C138: MRF | D138: 60381.65 | E138: 60537.33 | F138: 59954.72 | G138: 59527.78 | H138: 58945.17 | I138: 60964.27 | J138: 61546.88 | K138: 61973.82 | L138: 61119.95 | M138: 60110.4 | N138: 31150 | O138: -2.87%
A139: 129 | B139: Others | C139: MRPL | D139: 72.95 | E139: 73.20 | F139: 72.00 | G139: 71.05 | H139: 69.85 | I139: 74.15 | J139: 75.35 | K139: 76.30 | L139: 74.4 | M139: 72.25 | N139: 3808000 | O139: -1.09%
A140: 130 | B140: Finance | C140: MUTHOOTFIN | D140: 606.00 | E140: 612.10 | F140: 595.70 | G140: 585.40 | H140: 569.00 | I140: 622.40 | J140: 638.80 | K140: 649.10 | L140: 628.5 | M140: 601.8 | N140: 2637000 | O140: -0.17%
A141: 131 | B141: Others | C141: NATIONALUM | D141: 55.75 | E141: 56.22 | F141: 55.03 | G141: 54.32 | H141: 53.13 | I141: 56.93 | J141: 58.12 | K141: 58.83 | L141: 57.4 | M141: 55.5 | N141: 35344000 | O141: -0.52%
A142: 132 | B142: Others | C142: NBCC | D142: 62.75 | E142: 63.25 | F142: 62.00 | G142: 61.25 | H142: 60.00 | I142: 64.00 | J142: 65.25 | K142: 66.00 | L142: 64.5 | M142: 62.5 | N142: 38328000 | O142: 5.67%
A143: 133 | B143: Infrastructure | C143: NCC | D143: 110.90 | E143: 110.92 | F143: 108.68 | G143: 106.47 | H143: 104.23 | I143: 113.13 | J143: 115.37 | K143: 117.58 | L143: 113.15 | M143: 108.7 | N143: 31320000 | O143: -4.77%
A144: 134 | B144: Others | C144: NESTLEIND | D144: 11056.60 | E144: 10998.88 | F144: 10878.67 | G144: 10700.73 | H144: 10580.52 | I144: 11176.82 | J144: 11297.03 | K144: 11474.97 | L144: 11119.1 | M144: 10820.95 | N144: 326800 | O144: 3.25%
A145: 135 | B145: Power | C145: NHPC | D145: 24.75 | E145: 25.03 | F145: 24.27 | G145: 23.78 | H145: 23.02 | I145: 25.52 | J145: 26.28 | K145: 26.77 | L145: 25.8 | M145: 24.55 | N145: 25164000 | O145: -2.10%
A146: 136 | B146: Technology | C146: NIITTECH | D146: 1348.00 | E146: 1353.52 | F146: 1337.03 | G146: 1326.07 | H146: 1309.58 | I146: 1364.48 | J146: 1380.97 | K146: 1391.93 | L146: 1370 | M146: 1342.55 | N146: 1436250 | O146: 0.37%
A147: 137 | B147: Metals | C147: NMDC | D147: 105.50 | E147: 105.95 | F147: 104.50 | G147: 103.50 | H147: 102.05 | I147: 106.95 | J147: 108.40 | K147: 109.40 | L147: 107.4 | M147: 104.95 | N147: 17940000 | O147: 4.44%
A148: 138 | B148: Power | C148: NTPC | D148: 135.95 | E148: 136.47 | F148: 134.48 | G148: 133.02 | H148: 131.03 | I148: 137.93 | J148: 139.92 | K148: 141.38 | L148: 138.45 | M148: 135 | N148: 73972800 | O148: -2.09%
A149: 139 | B149: Technology | C149: OFSS | D149: 3539.55 | E149: 3519.80 | F149: 3444.75 | G149: 3349.95 | H149: 3274.90 | I149: 3614.60 | J149: 3689.65 | K149: 3784.45 | L149: 3594.85 | M149: 3425 | N149: 273600 | O149: 11.63%
A150: 140 | B150: Oil_Gas | C150: OIL | D150: 182.40 | E150: 183.48 | F150: 180.92 | G150: 179.43 | H150: 176.87 | I150: 184.97 | J150: 187.53 | K150: 189.02 | L150: 186.05 | M150: 182 | N150: 8164398 | O150: -4.57%
A151: 141 | B151: Oil_Gas | C151: ONGC | D151: 156.70 | E151: 157.58 | F151: 154.92 | G151: 153.13 | H151: 150.47 | I151: 159.37 | J151: 162.03 | K151: 163.82 | L151: 160.25 | M151: 155.8 | N151: 52668750 | O151: -0.46%
A152: 142 | B152: Banking | C152: ORIENTBANK | D152: 110.65 | E152: 112.43 | F152: 108.47 | G152: 106.28 | H152: 102.32 | I152: 114.62 | J152: 118.58 | K152: 120.77 | L152: 116.4 | M152: 110.25 | N152: 15953000 | O152: -6.44%
A153: 143 | B153: Textile | C153: PAGEIND | D153: 24851.40 | E153: 25066.78 | F153: 24540.72 | G153: 24230.03 | H153: 23703.97 | I153: 25377.47 | J153: 25903.53 | K153: 26214.22 | L153: 25592.85 | M153: 24756.1 | N153: 104575 | O153: 3.95%
A154: 144 | B154: Others | C154: PCJEWELLER | D154: 82.10 | E154: 82.75 | F154: 80.80 | G154: 79.50 | H154: 77.55 | I154: 84.05 | J154: 86.00 | K154: 87.30 | L154: 84.7 | M154: 81.45 | N154: 9802000 | O154: 1.82%
A155: 145 | B155: Pharma | C155: PEL | D155: 2610.65 | E155: 2621.93 | F155: 2583.72 | G155: 2556.78 | H155: 2518.57 | I155: 2648.87 | J155: 2687.08 | K155: 2714.02 | L155: 2660.15 | M155: 2595 | N155: 3158920 | O155: 3.28%
A156: 146 | B156: Oil_Gas | C156: PETRONET | D156: 245.05 | E156: 246.42 | F156: 242.38 | G156: 239.72 | H156: 235.68 | I156: 249.08 | J156: 253.12 | K156: 255.78 | L156: 250.45 | M156: 243.75 | N156: 8775000 | O156: 0.10%
A157: 147 | B157: Finance | C157: PFC | D157: 120.85 | E157: 121.80 | F157: 119.30 | G157: 117.75 | H157: 115.25 | I157: 123.35 | J157: 125.85 | K157: 127.40 | L157: 124.3 | M157: 120.25 | N157: 29381800 | O157: -1.31%
A158: 148 | B158: FMCG | C158: PIDILITIND | D158: 1283.45 | E158: 1282.05 | F158: 1262.30 | G158: 1241.15 | H158: 1221.40 | I158: 1303.20 | J158: 1322.95 | K158: 1344.10 | L158: 1301.8 | M158: 1260.9 | N158: 2496000 | O158: 6.28%
A159: 149 | B159: Banking | C159: PNB | D159: 95.05 | E159: 96.72 | F159: 92.93 | G159: 90.82 | H159: 87.03 | I159: 98.83 | J159: 102.62 | K159: 104.73 | L159: 100.5 | M159: 94.6 | N159: 101458000 | O159: -2.40%
A160: 150 | B160: Power | C160: POWERGRID | D160: 201.95 | E160: 202.05 | F160: 200.70 | G160: 199.45 | H160: 198.10 | I160: 203.30 | J160: 204.65 | K160: 205.90 | L160: 203.4 | M160: 200.8 | N160: 16004000 | O160: 4.38%
A161: 151 | B161: Others | C161: PVR | D161: 1648.70 | E161: 1654.47 | F161: 1639.23 | G161: 1629.77 | H161: 1614.53 | I161: 1663.93 | J161: 1679.17 | K161: 1688.63 | L161: 1669.7 | M161: 1645 | N161: 556400 | O161: -1.42%
A162: 152 | B162: Cement | C162: RAMCOCEM | D162: 746.25 | E162: 747.92 | F162: 740.83 | G162: 735.42 | H162: 728.33 | I162: 753.33 | J162: 760.42 | K162: 765.83 | L162: 755 | M162: 742.5 | N162: 1603200 | O162: 0.15%
A163: 153 | B163: Others | C163: RAYMOND | D163: 814.65 | E163: 823.78 | F163: 799.87 | G163: 785.08 | H163: 761.17 | I163: 838.57 | J163: 862.48 | K163: 877.27 | L163: 847.7 | M163: 809 | N163: 3111200 | O163: -4.09%
A164: 154 | B164: Banking | C164: RBLBANK | D164: 662.95 | E164: 669.73 | F164: 654.27 | G164: 645.58 | H164: 630.12 | I164: 678.42 | J164: 693.88 | K164: 702.57 | L164: 685.2 | M164: 661.05 | N164: 6858000 | O164: 6.66%
A165: 155 | B165: Power | C165: RECLTD | D165: 151.85 | E165: 150.78 | F165: 148.57 | G165: 145.28 | H165: 143.07 | I165: 154.07 | J165: 156.28 | K165: 159.57 | L165: 153 | M165: 147.5 | N165: 30144000 | O165: -4.52%
A166: 156 | B166: Finance | C166: RELCAPITAL | D166: 194.65 | E166: 198.20 | F166: 190.25 | G166: 185.85 | H166: 177.90 | I166: 202.60 | J166: 210.55 | K166: 214.95 | L166: 206.15 | M166: 193.8 | N166: 7393500 | O166: 5.32%
A167: 157 | B167: Oil_Gas | C167: RELIANCE | D167: 1383.85 | E167: 1391.60 | F167: 1373.25 | G167: 1362.65 | H167: 1344.30 | I167: 1402.20 | J167: 1420.55 | K167: 1431.15 | L167: 1409.95 | M167: 1381 | N167: 46387000 | O167: 0.74%
A168: 158 | B168: Power | C168: RELINFRA | D168: 138.15 | E168: 139.42 | F168: 136.08 | G168: 134.02 | H168: 130.68 | I168: 141.48 | J168: 144.82 | K168: 146.88 | L168: 142.75 | M168: 137.35 | N168: 10211500 | O168: 0.43%
A169: 159 | B169: Others | C169: REPCOHOME | D169: 463.65 | E169: 467.78 | F169: 456.17 | G169: 448.68 | H169: 437.07 | I169: 475.27 | J169: 486.88 | K169: 494.37 | L169: 479.4 | M169: 460.3 | N169: 750200 | O169: 1.04%
A170: 160 | B170: Power | C170: RPOWER | D170: 10.55 | E170: 10.65 | F170: 10.35 | G170: 10.15 | H170: 9.85 | I170: 10.85 | J170: 11.15 | K170: 11.35 | L170: 10.95 | M170: 10.45 | N170: 106064000 | O170: -5.22%
A171: 161 | B171: Metals | C171: SAIL | D171: 57.90 | E171: 58.02 | F171: 56.88 | G171: 55.87 | H171: 54.73 | I171: 59.03 | J171: 60.17 | K171: 61.18 | L171: 59.15 | M171: 57 | N171: 88884000 | O171: -3.99%
A172: 162 | B172: Banking | C172: SBIN | D172: 323.10 | E172: 326.38 | F172: 318.82 | G172: 314.53 | H172: 306.97 | I172: 330.67 | J172: 338.23 | K172: 342.52 | L172: 333.95 | M172: 322.1 | N172: 73083000 | O172: 0.11%
A173: 163 | B173: Cement | C173: SHREECEM | D173: 18683.95 | E173: 18712.30 | F173: 18580.60 | G173: 18477.25 | H173: 18345.55 | I173: 18815.65 | J173: 18947.35 | K173: 19050.70 | L173: 18844 | M173: 18608.95 | N173: 75200 | O173: -1.12%
A174: 164 | B174: Capital_Goods | C174: SIEMENS | D174: 1163.75 | E174: 1155.12 | F174: 1129.23 | G174: 1094.72 | H174: 1068.83 | I174: 1189.63 | J174: 1215.52 | K174: 1250.03 | L174: 1181 | M174: 1120.6 | N174: 1671450 | O174: -7.88%
A175: 165 | B175: Banking | C175: SOUTHBANK | D175: 16.85 | E175: 16.98 | F175: 16.62 | G175: 16.38 | H175: 16.02 | I175: 17.22 | J175: 17.58 | K175: 17.82 | L175: 17.35 | M175: 16.75 | N175: 136143228 | O175: -0.19%
A176: 166 | B176: Textile | C176: SRF | D176: 2399.50 | E176: 2407.60 | F176: 2381.25 | G176: 2363.00 | H176: 2336.65 | I176: 2425.85 | J176: 2452.20 | K176: 2470.45 | L176: 2433.95 | M176: 2389.35 | N176: 937500 | O176: 0.16%
A177: 167 | B177: Finance | C177: SRTRANSFIN | D177: 1208.40 | E177: 1214.93 | F177: 1194.47 | G177: 1180.53 | H177: 1160.07 | I177: 1228.87 | J177: 1249.33 | K177: 1263.27 | L177: 1235.4 | M177: 1201 | N177: 3691800 | O177: 5.31%
A178: 168 | B178: Pharma | C178: STAR | D178: 476.60 | E178: 478.43 | F178: 471.62 | G178: 466.63 | H178: 459.82 | I178: 483.42 | J178: 490.23 | K178: 495.22 | L178: 485.25 | M178: 473.45 | N178: 2951300 | O178: -4.25%
A179: 169 | B179: Pharma | C179: SUNPHARMA | D179: 466.15 | E179: 468.75 | F179: 460.40 | G179: 454.65 | H179: 446.30 | I179: 474.50 | J179: 482.85 | K179: 488.60 | L179: 477.1 | M179: 463 | N179: 50482300 | O179: 0.79%
A180: 170 | B180: Media | C180: SUNTV | D180: 632.70 | E180: 635.25 | F180: 626.45 | G180: 620.20 | H180: 611.40 | I180: 641.50 | J180: 650.30 | K180: 656.55 | L180: 644.05 | M180: 629 | N180: 6011000 | O180: -3.20%
A181: 171 | B181: Power | C181: SUZLON | D181: 6.55 | E181: 6.77 | F181: 6.28 | G181: 6.02 | H181: 5.53 | I181: 7.03 | J181: 7.52 | K181: 7.78 | L181: 7.25 | M181: 6.5 | N181: 297844000 | O181: 1.53%
A182: 172 | B182: Banking | C182: SYNDIBANK | D182: 43.30 | E182: 44.18 | F182: 42.17 | G182: 41.03 | H182: 39.02 | I182: 45.32 | J182: 47.33 | K182: 48.47 | L182: 46.2 | M182: 43.05 | N182: 30915000 | O182: -3.42%
A183: 173 | B183: Fertilisers | C183: TATACHEM | D183: 593.55 | E183: 597.80 | F183: 587.75 | G183: 581.95 | H183: 571.90 | I183: 603.60 | J183: 613.65 | K183: 619.45 | L183: 607.85 | M183: 592 | N183: 4269750 | O183: 0.85%
A184: 174 | B184: Telecom | C184: TATACOMM | D184: 602.50 | E184: 604.25 | F184: 597.55 | G184: 592.60 | H184: 585.90 | I184: 609.20 | J184: 615.90 | K184: 620.85 | L184: 610.95 | M184: 599.3 | N184: 2757000 | O184: -0.07%
A185: 175 | B185: Technology | C185: TATAELXSI | D185: 980.10 | E185: 987.13 | F185: 969.27 | G185: 958.43 | H185: 940.57 | I185: 997.97 | J185: 1015.83 | K185: 1026.67 | L185: 1005 | M185: 976.3 | N185: 1492800 | O185: -1.97%
A186: 176 | B186: FMCG | C186: TATAGLOBAL | D186: 209.55 | E186: 210.68 | F186: 207.07 | G186: 204.58 | H186: 200.97 | I186: 213.17 | J186: 216.78 | K186: 219.27 | L186: 214.3 | M186: 208.2 | N186: 14454000 | O186: 3.85%
A187: 177 | B187: Automobile | C187: TATAMOTORS | D187: 202.50 | E187: 204.22 | F187: 198.78 | G187: 195.07 | H187: 189.63 | I187: 207.93 | J187: 213.37 | K187: 217.08 | L187: 209.65 | M187: 200.5 | N187: 64928000 | O187: 1.29%
A188: 178 | B188: Automobile | C188: TATAMTRDVR | D188: 97.75 | E188: 98.45 | F188: 96.15 | G188: 94.55 | H188: 92.25 | I188: 100.05 | J188: 102.35 | K188: 103.95 | L188: 100.75 | M188: 96.85 | N188: 34454600 | O188: 1.85%
A189: 179 | B189: Power | C189: TATAPOWER | D189: 72.10 | E189: 72.97 | F189: 70.88 | G189: 69.67 | H189: 67.58 | I189: 74.18 | J189: 76.27 | K189: 77.48 | L189: 75.05 | M189: 71.75 | N189: 53523000 | O189: 0.76%
A190: 180 | B190: Metals | C190: TATASTEEL | D190: 539.30 | E190: 542.42 | F190: 534.03 | G190: 528.77 | H190: 520.38 | I190: 547.68 | J190: 556.07 | K190: 561.33 | L190: 550.8 | M190: 537.15 | N190: 30579081 | O190: 3.62%
A191: 181 | B191: Technology | C191: TCS | D191: 2092.75 | E191: 2088.03 | F191: 2077.07 | G191: 2061.38 | H191: 2050.42 | I191: 2103.72 | J191: 2114.68 | K191: 2130.37 | L191: 2099 | M191: 2072.35 | N191: 14295250 | O191: 2.12%
A192: 182 | B192: Technology | C192: TECHM | D192: 784.15 | E192: 787.65 | F192: 779.40 | G192: 774.65 | H192: 766.40 | I192: 792.40 | J192: 800.65 | K192: 805.40 | L192: 795.9 | M192: 782.9 | N192: 12238800 | O192: 1.40%
A193: 183 | B193: FMCG | C193: TITAN | D193: 1109.35 | E193: 1116.87 | F193: 1099.98 | G193: 1090.62 | H193: 1073.73 | I193: 1126.23 | J193: 1143.12 | K193: 1152.48 | L193: 1133.75 | M193: 1107.5 | N193: 9541500 | O193: -0.14%
A194: 184 | B194: Pharma | C194: TORNTPHARM | D194: 1918.30 | E194: 1913.62 | F194: 1903.08 | G194: 1887.87 | H194: 1877.33 | I194: 1928.83 | J194: 1939.37 | K194: 1954.58 | L194: 1924.15 | M194: 1898.4 | N194: 692500 | O194: 0.95%
A195: 185 | B195: Power | C195: TORNTPOWER | D195: 261.20 | E195: 262.68 | F195: 258.82 | G195: 256.43 | H195: 252.57 | I195: 265.07 | J195: 268.93 | K195: 271.32 | L195: 266.55 | M195: 260.3 | N195: 2391000 | O195: 5.28%
A196: 186 | B196: Media | C196: TV18BRDCST | D196: 35.15 | E196: 35.55 | F196: 34.60 | G196: 34.05 | H196: 33.10 | I196: 36.10 | J196: 37.05 | K196: 37.60 | L196: 36.5 | M196: 35 | N196: 65663000 | O196: 0.72%
A197: 187 | B197: Automobile | C197: TVSMOTOR | D197: 480.90 | E197: 483.52 | F197: 477.03 | G197: 473.17 | H197: 466.68 | I197: 487.38 | J197: 493.87 | K197: 497.73 | L197: 490 | M197: 479.65 | N197: 5897000 | O197: 3.64%
A198: 188 | B198: FMCG | C198: UBL | D198: 1408.70 | E198: 1413.48 | F198: 1400.17 | G198: 1391.63 | H198: 1378.32 | I198: 1422.02 | J198: 1435.33 | K198: 1443.87 | L198: 1426.8 | M198: 1404.95 | N198: 2349200 | O198: -1.90%
A199: 189 | B199: Finance | C199: UJJIVAN | D199: 329.80 | E199: 333.92 | F199: 321.98 | G199: 314.17 | H199: 302.23 | I199: 341.73 | J199: 353.67 | K199: 361.48 | L199: 345.85 | M199: 326.1 | N199: 3046400 | O199: 12.60%
A200: 190 | B200: Cement | C200: ULTRACEMCO | D200: 4030.55 | E200: 4048.83 | F200: 3997.67 | G200: 3964.78 | H200: 3913.62 | I200: 4081.72 | J200: 4132.88 | K200: 4165.77 | L200: 4100 | M200: 4015.95 | N200: 1800800 | O200: 1.40%
A201: 191 | B201: Banking | C201: UNIONBANK | D201: 95.30 | E201: 97.08 | F201: 93.22 | G201: 91.13 | H201: 87.27 | I201: 99.17 | J201: 103.03 | K201: 105.12 | L201: 100.95 | M201: 95 | N201: 33068000 | O201: -6.31%
A202: 192 | B202: Fertilisers | C202: UPL | D202: 932.15 | E202: 934.02 | F202: 924.38 | G202: 916.62 | H202: 906.98 | I202: 941.78 | J202: 951.42 | K202: 959.18 | L202: 943.65 | M202: 926.25 | N202: 13682400 | O202: 1.52%
A203: 193 | B203: Metals | C203: VEDL | D203: 187.25 | E203: 188.73 | F203: 185.02 | G203: 182.78 | H203: 179.07 | I203: 190.97 | J203: 194.68 | K203: 196.92 | L203: 192.45 | M203: 186.5 | N203: 30661300 | O203: -0.94%
A204: 194 | B204: Others | C204: VGUARD | D204: 220.40 | E204: 219.52 | F204: 217.03 | G204: 213.67 | H204: 211.18 | I204: 222.88 | J204: 225.37 | K204: 228.73 | L204: 222 | M204: 216.15 | N204: 3483000 | O204: -5.22%
A205: 195 | B205: Capital_Goods | C205: VOLTAS | D205: 619.35 | E205: 623.42 | F205: 612.83 | G205: 606.32 | H205: 595.73 | I205: 629.93 | J205: 640.52 | K205: 647.03 | L205: 634 | M205: 616.9 | N205: 5412000 | O205: 0.35%
A206: 196 | B206: Technology | C206: WIPRO | D206: 263.10 | E206: 262.52 | F206: 259.73 | G206: 256.37 | H206: 253.58 | I206: 265.88 | J206: 268.67 | K206: 272.03 | L206: 265.3 | M206: 259.15 | N206: 31379200 | O206: 0.70%
... 18 more rows

Sheet Cash Intra
M5: Back to Main Page
A6: FOR INTRA DAY TRADING | K6: =Main!B10 -> 2019-04-04
A8: Sr.no | B8: Scrip | C8: CLOSE RATE | D8: Pivot Point | E8: Supports | H8: Resistances
C9: Point | E9: S1 | F9: S2 | G9: S3 | H9: R1 | I9: R2 | J9: R3 | K9: HIGH | L9: LOW | M9: Total Trade Quanity in Lakhs
A10: 1 | B10: Nifty 50 | C10: 11643.95 | D10: 11678.03 | E10: 11595.07 | F10: 11546.18 | G10: 11463.22 | H10: 11726.92 | I10: 11809.88 | J10: 11858.77 | K10: 11761 | L10: 11629.15
A11: 2 | B11: Nifty Bank | C11: 30093.3 | D11: 30244.03 | E11: 29885.52 | F11: 29677.73 | G11: 29319.22 | H11: 30451.82 | I11: 30810.33 | J11: 31018.12 | K11: 30602.55 | L11: 30036.25
A12: 3 | B12: Nifty CPSE | C12: 2221.9 | D12: 2232.92 | E12: 2204.78 | F12: 2187.67 | G12: 2159.53 | H12: 2250.03 | I12: 2278.17 | J12: 2295.28 | K12: 2261.05 | L12: 2215.8
A13: 4 | B13: Nifty Infra | C13: 3208 | D13: 3225.63 | E13: 3185.57 | F13: 3163.13 | G13: 3123.07 | H13: 3248.07 | I13: 3288.13 | J13: 3310.57 | K13: 3265.7 | L13: 3203.2
A14: 5 | B14: Nifty IT | C14: 15962.95 | D14: 15945.10 | E14: 15880.35 | F14: 15797.75 | G14: 15733.00 | H14: 16027.70 | I14: 16092.45 | J14: 16175.05 | K14: 16009.85 | L14: 15862.5
A15: 6 | B15: Nifty PSE | C15: 3526.75 | D15: 3547.27 | E15: 3500.23 | F15: 3473.72 | G15: 3426.68 | H15: 3573.78 | I15: 3620.82 | J15: 3647.33 | K15: 3594.3 | L15: 3520.75
A16: 7 | B16: Nifty Midcap 50 | C16: 5036.15 | D16: 5066.28 | E16: 4995.12 | F16: 4954.08 | G16: 4882.92 | H16: 5107.32 | I16: 5178.48 | J16: 5219.52 | K16: 5137.45 | L16: 5025.25
A17: 8 | B17: ABB | C17: 1332.15 | D17: 1330.75 | E17: 1321.50 | F17: 1310.85 | G17: 1301.60 | H17: 1341.40 | I17: 1350.65 | J17: 1361.30 | K17: 1340 | L17: 1320.1 | M17: 0.69523
A18: 9 | B18: ACC | C18: 1624.6 | D18: 1628.43 | E18: 1611.87 | F18: 1599.13 | G18: 1582.57 | H18: 1641.17 | I18: 1657.73 | J18: 1670.47 | K18: 1645 | L18: 1615.7 | M18: 6.80202
A19: 10 | B19: AIAENG | C19: 1726.35 | D19: 1735.97 | E19: 1700.98 | F19: 1675.62 | G19: 1640.63 | H19: 1761.33 | I19: 1796.32 | J19: 1821.68 | K19: 1770.95 | L19: 1710.6 | M19: 0.15308
A20: 11 | B20: AUBANK | C20: 598.85 | D20: 605.63 | E20: 589.27 | F20: 579.68 | G20: 563.32 | H20: 615.22 | I20: 631.58 | J20: 641.17 | K20: 622 | L20: 596.05 | M20: 2.22908
A21: 12 | B21: ADANIENT | C21: 147.55 | D21: 148.93 | E21: 145.22 | F21: 142.88 | G21: 139.17 | H21: 151.27 | I21: 154.98 | J21: 157.32 | K21: 152.65 | L21: 146.6 | M21: 34.16023
A22: 13 | B22: ADANIPORTS | C22: 382 | D22: 382.77 | E22: 379.23 | F22: 376.47 | G22: 372.93 | H22: 385.53 | I22: 389.07 | J22: 391.83 | K22: 386.3 | L22: 380 | M22: 27.01443
A23: 14 | B23: ADANIPOWER | C23: 49.4 | D23: 49.78 | E23: 48.62 | F23: 47.83 | G23: 46.67 | H23: 50.57 | I23: 51.73 | J23: 52.52 | K23: 50.95 | L23: 49 | M23: 110.39301
A24: 15 | B24: ABFRL | C24: 219.7 | D24: 219.82 | E24: 217.98 | F24: 216.27 | G24: 214.43 | H24: 221.53 | I24: 223.37 | J24: 225.08 | K24: 221.65 | L24: 218.1 | M24: 3.32435
A25: 16 | B25: AJANTPHARM | C25: 1023.4 | D25: 1026.43 | E25: 1013.12 | F25: 1002.83 | G25: 989.52 | H25: 1036.72 | I25: 1050.03 | J25: 1060.32 | K25: 1039.75 | L25: 1016.15 | M25: 1.60471
A26: 17 | B26: ALKEM | C26: 1739.3 | D26: 1737.82 | E26: 1728.63 | F26: 1717.97 | G26: 1708.78 | H26: 1748.48 | I26: 1757.67 | J26: 1768.33 | K26: 1747 | L26: 1727.15 | M26: 0.52369
A27: 18 | B27: AMARAJABAT | C27: 672.35 | D27: 687.12 | E27: 635.23 | F27: 598.12 | G27: 546.23 | H27: 724.23 | I27: 776.12 | J27: 813.23 | K27: 739 | L27: 650 | M27: 71.07893
A28: 19 | B28: AMBUJACEM | C28: 226.75 | D28: 229.53 | E28: 223.17 | F28: 219.58 | G28: 213.22 | H28: 233.12 | I28: 239.48 | J28: 243.07 | K28: 235.9 | L28: 225.95 | M28: 45.91977
A29: 20 | B29: APOLLOHOSP | C29: 1259.75 | D29: 1263.90 | E29: 1251.10 | F29: 1242.45 | G29: 1229.65 | H29: 1272.55 | I29: 1285.35 | J29: 1294.00 | K29: 1276.7 | L29: 1255.25 | M29: 3.3631
A30: 21 | B30: APOLLOTYRE | C30: 219.85 | D30: 221.10 | E30: 217.20 | F30: 214.55 | G30: 210.65 | H30: 223.75 | I30: 227.65 | J30: 230.30 | K30: 225 | L30: 218.45 | M30: 26.02557
A31: 22 | B31: ARVIND | C31: 90.1 | D31: 90.82 | E31: 88.48 | F31: 86.87 | G31: 84.53 | H31: 92.43 | I31: 94.77 | J31: 96.38 | K31: 93.15 | L31: 89.2 | M31: 19.25326
A32: 23 | B32: ASHOKLEY | C32: 87.8 | D32: 88.70 | E32: 86.60 | F32: 85.40 | G32: 83.30 | H32: 89.90 | I32: 92.00 | J32: 93.20 | K32: 90.8 | L32: 87.5 | M32: 199.62585
A33: 24 | B33: ASIANPAINT | C33: 1497.6 | D33: 1506.82 | E33: 1483.78 | F33: 1469.97 | G33: 1446.93 | H33: 1520.63 | I33: 1543.67 | J33: 1557.48 | K33: 1529.85 | L33: 1493 | M33: 16.06692
A34: 25 | B34: AUROPHARMA | C34: 772.65 | D34: 779.52 | E34: 763.43 | F34: 754.22 | G34: 738.13 | H34: 788.73 | I34: 804.82 | J34: 814.03 | K34: 795.6 | L34: 770.3 | M34: 13.20439
A35: 26 | B35: DMART | C35: 1478.55 | D35: 1483.60 | E35: 1470.20 | F35: 1461.85 | G35: 1448.45 | H35: 1491.95 | I35: 1505.35 | J35: 1513.70 | K35: 1497 | L35: 1475.25 | M35: 1.94233
A36: 27 | B36: AXISBANK | C36: 761.5 | D36: 764.32 | E36: 755.88 | F36: 750.27 | G36: 741.83 | H36: 769.93 | I36: 778.37 | J36: 783.98 | K36: 772.75 | L36: 758.7 | M36: 55.91613
A37: 28 | B37: BAJAJ-AUTO | C37: 2847.3 | D37: 2851.80 | E37: 2826.50 | F37: 2805.70 | G37: 2780.40 | H37: 2872.60 | I37: 2897.90 | J37: 2918.70 | K37: 2877.1 | L37: 2831 | M37: 4.8479
A38: 29 | B38: BAJFINANCE | C38: 3046 | D38: 3057.72 | E38: 3026.43 | F38: 3006.87 | G38: 2975.58 | H38: 3077.28 | I38: 3108.57 | J38: 3128.13 | K38: 3089 | L38: 3038.15 | M38: 10.52752
A39: 30 | B39: BAJAJFINSV | C39: 7401.55 | D39: 7378.90 | E39: 7307.80 | F39: 7214.05 | G39: 7142.95 | H39: 7472.65 | I39: 7543.75 | J39: 7637.50 | K39: 7450 | L39: 7285.15 | M39: 4.26738
A40: 31 | B40: BALKRISIND | C40: 996.15 | D40: 999.88 | E40: 987.27 | F40: 978.38 | G40: 965.77 | H40: 1008.77 | I40: 1021.38 | J40: 1030.27 | K40: 1012.5 | L40: 991 | M40: 4.6174
A41: 32 | B41: BANKBARODA | C41: 132.05 | D41: 133.52 | E41: 129.88 | F41: 127.72 | G41: 124.08 | H41: 135.68 | I41: 139.32 | J41: 141.48 | K41: 137.15 | L41: 131.35 | M41: 311.27867
A42: 33 | B42: BANKINDIA | C42: 101.7 | D42: 103.48 | E42: 99.57 | F42: 97.43 | G42: 93.52 | H42: 105.62 | I42: 109.53 | J42: 111.67 | K42: 107.4 | L42: 101.35 | M42: 109.79283
A43: 34 | B43: BATAINDIA | C43: 1397.35 | D43: 1396.22 | E43: 1382.58 | F43: 1367.82 | G43: 1354.18 | H43: 1410.98 | I43: 1424.62 | J43: 1439.38 | K43: 1409.85 | L43: 1381.45 | M43: 6.05476
A44: 35 | B44: BERGEPAINT | C44: 330.45 | D44: 331.43 | E44: 328.47 | F44: 326.48 | G44: 323.52 | H44: 333.42 | I44: 336.38 | J44: 338.37 | K44: 334.4 | L44: 329.45 | M44: 5.80962
A45: 36 | B45: BEL | C45: 97.25 | D45: 98.73 | E45: 95.27 | F45: 93.28 | G45: 89.82 | H45: 100.72 | I45: 104.18 | J45: 106.17 | K45: 102.2 | L45: 96.75 | M45: 206.62237
A46: 37 | B46: BHARATFIN | C46: 1123.75 | D46: 1129.55 | E46: 1110.30 | F46: 1096.85 | G46: 1077.60 | H46: 1143.00 | I46: 1162.25 | J46: 1175.70 | K46: 1148.8 | L46: 1116.1 | M46: 5.36069
A47: 38 | B47: BHARATFORG | C47: 503.8 | D47: 509.30 | E47: 495.60 | F47: 487.40 | G47: 473.70 | H47: 517.50 | I47: 531.20 | J47: 539.40 | K47: 523 | L47: 501.1 | M47: 14.01379
A48: 39 | B48: BHEL | C48: 73.85 | D48: 74.33 | E48: 72.52 | F48: 71.18 | G48: 69.37 | H48: 75.67 | I48: 77.48 | J48: 78.82 | K48: 76.15 | L48: 73 | M48: 196.28856
A49: 40 | B49: BPCL | C49: 363.2 | D49: 369.12 | E49: 356.23 | F49: 349.27 | G49: 336.38 | H49: 376.08 | I49: 388.97 | J49: 395.93 | K49: 382 | L49: 362.15 | M49: 82.89954
A50: 41 | B50: BHARTIARTL | C50: 350 | D50: 353.50 | E50: 344.00 | F50: 338.00 | G50: 328.50 | H50: 359.50 | I50: 369.00 | J50: 375.00 | K50: 363 | L50: 347.5 | M50: 110.41131
A51: 42 | B51: INFRATEL | C51: 317.25 | D51: 317.13 | E51: 314.27 | F51: 311.28 | G51: 308.42 | H51: 320.12 | I51: 322.98 | J51: 325.97 | K51: 320 | L51: 314.15 | M51: 19.71729
A52: 43 | B52: BIOCON | C52: 607.9 | D52: 611.00 | E52: 603.50 | F52: 599.10 | G52: 591.60 | H52: 615.40 | I52: 622.90 | J52: 627.30 | K52: 618.5 | L52: 606.6 | M52: 6.31713
A53: 44 | B53: BOSCHLTD | C53: 18005.95 | D53: 18011.00 | E53: 17942.00 | F53: 17878.05 | G53: 17809.05 | H53: 18074.95 | I53: 18143.95 | J53: 18207.90 | K53: 18080 | L53: 17947.05 | M53: 0.16319
A54: 45 | B54: BRITANNIA | C54: 2990.1 | D54: 2986.27 | E54: 2959.03 | F54: 2927.97 | G54: 2900.73 | H54: 3017.33 | I54: 3044.57 | J54: 3075.63 | K54: 3013.5 | L54: 2955.2 | M54: 4.39719
A55: 46 | B55: CRISIL | C55: 1425.9 | D55: 1431.95 | E55: 1415.95 | F55: 1406.00 | G55: 1390.00 | H55: 1441.90 | I55: 1457.90 | J55: 1467.85 | K55: 1447.95 | L55: 1422 | M55: 0.08926
A56: 47 | B56: CADILAHC | C56: 338.75 | D56: 340.85 | E56: 335.45 | F56: 332.15 | G56: 326.75 | H56: 344.15 | I56: 349.55 | J56: 352.85 | K56: 346.25 | L56: 337.55 | M56: 6.0997
A57: 48 | B57: CANBK | C57: 285.15 | D57: 289.62 | E57: 278.73 | F57: 272.32 | G57: 261.43 | H57: 296.03 | I57: 306.92 | J57: 313.33 | K57: 300.5 | L57: 283.2 | M57: 62.44802
A58: 49 | B58: CASTROLIND | C58: 167.45 | D58: 168.63 | E58: 164.37 | F58: 161.28 | G58: 157.02 | H58: 171.72 | I58: 175.98 | J58: 179.07 | K58: 172.9 | L58: 165.55 | M58: 47.46469
A59: 50 | B59: CENTRALBK | C59: 35.45 | D59: 35.70 | E59: 35.10 | F59: 34.75 | G59: 34.15 | H59: 36.05 | I59: 36.65 | J59: 37.00 | K59: 36.3 | L59: 35.35 | M59: 8.85746
A60: 51 | B60: CENTURYTEX | C60: 904.8 | D60: 911.00 | E60: 894.00 | F60: 883.20 | G60: 866.20 | H60: 921.80 | I60: 938.80 | J60: 949.60 | K60: 928 | L60: 900.2 | M60: 3.43788
A61: 52 | B61: CHOLAFIN | C61: 1463.4 | D61: 1473.73 | E61: 1441.22 | F61: 1419.03 | G61: 1386.52 | H61: 1495.92 | I61: 1528.43 | J61: 1550.62 | K61: 1506.25 | L61: 1451.55 | M61: 2.59875
A62: 53 | B62: CIPLA | C62: 520.45 | D62: 521.45 | E62: 518.10 | F62: 515.75 | G62: 512.40 | H62: 523.80 | I62: 527.15 | J62: 529.50 | K62: 524.8 | L62: 519.1 | M62: 32.76338
A63: 54 | B63: COALINDIA | C63: 234.1 | D63: 234.68 | E63: 232.42 | F63: 230.73 | G63: 228.47 | H63: 236.37 | I63: 238.63 | J63: 240.32 | K63: 236.95 | L63: 233 | M63: 51.20392
A64: 55 | B64: COLPAL | C64: 1250.1 | D64: 1252.70 | E64: 1243.40 | F64: 1236.70 | G64: 1227.40 | H64: 1259.40 | I64: 1268.70 | J64: 1275.40 | K64: 1262 | L64: 1246 | M64: 1.83368
A65: 56 | B65: CONCOR | C65: 532.4 | D65: 533.42 | E65: 527.28 | F65: 522.17 | G65: 516.03 | H65: 538.53 | I65: 544.67 | J65: 549.78 | K65: 539.55 | L65: 528.3 | M65: 4.78303
A66: 57 | B66: COROMANDEL | C66: 470.6 | D66: 478.92 | E66: 459.13 | F66: 447.67 | G66: 427.88 | H66: 490.38 | I66: 510.17 | J66: 521.63 | K66: 498.7 | L66: 467.45 | M66: 1.92681
A67: 58 | B67: CROMPTON | C67: 228.9 | D67: 228.07 | E67: 224.23 | F67: 219.57 | G67: 215.73 | H67: 232.73 | I67: 236.57 | J67: 241.23 | K67: 231.9 | L67: 223.4 | M67: 7.90615
A68: 59 | B68: CUMMINSIND | C68: 728.25 | D68: 735.92 | E68: 717.83 | F68: 707.42 | G68: 689.33 | H68: 746.33 | I68: 764.42 | J68: 774.83 | K68: 754 | L68: 725.5 | M68: 3.80637
A69: 60 | B69: DLF | C69: 202.1 | D69: 203.78 | E69: 197.92 | F69: 193.73 | G69: 187.87 | H69: 207.97 | I69: 213.83 | J69: 218.02 | K69: 209.65 | L69: 199.6 | M69: 281.04238
A70: 61 | B70: DABUR | C70: 403.45 | D70: 404.82 | E70: 400.78 | F70: 398.12 | G70: 394.08 | H70: 407.48 | I70: 411.52 | J70: 414.18 | K70: 408.85 | L70: 402.15 | M70: 36.89189
A71: 62 | B71: DHFL | C71: 148 | D71: 148.63 | E71: 144.42 | F71: 140.83 | G71: 136.62 | H71: 152.22 | I71: 156.43 | J71: 160.02 | K71: 152.85 | L71: 145.05 | M71: 234.9011
A72: 63 | B72: DISHTV | C72: 38.25 | D72: 38.72 | E72: 37.48 | F72: 36.72 | G72: 35.48 | H72: 39.48 | I72: 40.72 | J72: 41.48 | K72: 39.95 | L72: 37.95 | M72: 318.84025
A73: 64 | B73: DIVISLAB | C73: 1675.8 | D73: 1682.93 | E73: 1658.32 | F73: 1640.83 | G73: 1616.22 | H73: 1700.42 | I73: 1725.03 | J73: 1742.52 | K73: 1707.55 | L73: 1665.45 | M73: 3.93202
A74: 65 | B74: LALPATHLAB | C74: 1041.15 | D74: 1044.70 | E74: 1031.45 | F74: 1021.75 | G74: 1008.50 | H74: 1054.40 | I74: 1067.65 | J74: 1077.35 | K74: 1057.95 | L74: 1035 | M74: 0.23586
A75: 66 | B75: DRREDDY | C75: 2765.2 | D75: 2777.48 | E75: 2746.17 | F75: 2727.13 | G75: 2695.82 | H75: 2796.52 | I75: 2827.83 | J75: 2846.87 | K75: 2808.8 | L75: 2758.45 | M75: 3.68516
A76: 67 | B76: EDELWEISS | C76: 187.7 | D76: 189.93 | E76: 184.12 | F76: 180.53 | G76: 174.72 | H76: 193.52 | I76: 199.33 | J76: 202.92 | K76: 195.75 | L76: 186.35 | M76: 13.71875
A77: 68 | B77: EICHERMOT | C77: 20202.7 | D77: 20263.63 | E77: 20051.27 | F77: 19899.83 | G77: 19687.47 | H77: 20415.07 | I77: 20627.43 | J77: 20778.87 | K77: 20476 | L77: 20112.2 | M77: 1.23265
A78: 69 | B78: EMAMILTD | C78: 408.9 | D78: 410.00 | E78: 404.60 | F78: 400.30 | G78: 394.90 | H78: 414.30 | I78: 419.70 | J78: 424.00 | K78: 415.4 | L78: 405.7 | M78: 4.34509
A79: 70 | B79: ENDURANCE | C79: 1169 | D79: 1171.07 | E79: 1158.43 | F79: 1147.87 | G79: 1135.23 | H79: 1181.63 | I79: 1194.27 | J79: 1204.83 | K79: 1183.7 | L79: 1160.5 | M79: 1.09244
A80: 71 | B80: ENGINERSIN | C80: 117.2 | D80: 118.07 | E80: 115.23 | F80: 113.27 | G80: 110.43 | H80: 120.03 | I80: 122.87 | J80: 124.83 | K80: 120.9 | L80: 116.1 | M80: 22.47041
A81: 72 | B81: EXIDEIND | C81: 209.8 | D81: 211.57 | E81: 207.23 | F81: 204.67 | G81: 200.33 | H81: 214.13 | I81: 218.47 | J81: 221.03 | K81: 215.9 | L81: 209 | M81: 40.98309
A82: 73 | B82: FEDERALBNK | C82: 95.2 | D82: 96.15 | E82: 93.85 | F82: 92.50 | G82: 90.20 | H82: 97.50 | I82: 99.80 | J82: 101.15 | K82: 98.45 | L82: 94.8 | M82: 108.06272
A83: 74 | B83: GAIL | C83: 352.45 | D83: 355.83 | E83: 347.27 | F83: 342.08 | G83: 333.52 | H83: 361.02 | I83: 369.58 | J83: 374.77 | K83: 364.4 | L83: 350.65 | M83: 35.16055
A84: 75 | B84: GMRINFRA | C84: 18.6 | D84: 18.83 | E84: 18.27 | F84: 17.93 | G84: 17.37 | H84: 19.17 | I84: 19.73 | J84: 20.07 | K84: 19.4 | L84: 18.5 | M84: 356.34325
A85: 76 | B85: GSKCONS | C85: 6995.05 | D85: 7020.18 | E85: 6955.77 | F85: 6916.48 | G85: 6852.07 | H85: 7059.47 | I85: 7123.88 | J85: 7163.17 | K85: 7084.6 | L85: 6980.9 | M85: 0.19643
A86: 77 | B86: GLAXO | C86: 1297.65 | D86: 1296.07 | E86: 1291.58 | F86: 1285.52 | G86: 1281.03 | H86: 1302.13 | I86: 1306.62 | J86: 1312.68 | K86: 1300.55 | L86: 1290 | M86: 0.12763
A87: 78 | B87: GLENMARK | C87: 641.35 | D87: 643.68 | E87: 633.97 | F87: 626.58 | G87: 616.87 | H87: 651.07 | I87: 660.78 | J87: 668.17 | K87: 653.4 | L87: 636.3 | M87: 2.59558
A88: 79 | B88: GODREJCP | C88: 666 | D88: 664.65 | E88: 657.40 | F88: 648.80 | G88: 641.55 | H88: 673.25 | I88: 680.50 | J88: 689.10 | K88: 671.9 | L88: 656.05 | M88: 23.08491
A89: 80 | B89: GODREJIND | C89: 530.8 | D89: 534.05 | E89: 525.85 | F89: 520.90 | G89: 512.70 | H89: 539.00 | I89: 547.20 | J89: 552.15 | K89: 542.25 | L89: 529.1 | M89: 5.59503
A90: 81 | B90: GRUH | C90: 282.3 | D90: 283.07 | E90: 279.38 | F90: 276.47 | G90: 272.78 | H90: 285.98 | I90: 289.67 | J90: 292.58 | K90: 286.75 | L90: 280.15 | M90: 14.76828
A91: 82 | B91: GPPL | C91: 96.75 | D91: 97.55 | E91: 95.20 | F91: 93.65 | G91: 91.30 | H91: 99.10 | I91: 101.45 | J91: 103.00 | K91: 99.9 | L91: 96 | M91: 1.28227
A92: 83 | B92: GSPL | C92: 178.1 | D92: 177.92 | E92: 176.48 | F92: 174.87 | G92: 173.43 | H92: 179.53 | I92: 180.97 | J92: 182.58 | K92: 179.35 | L92: 176.3 | M92: 3.10962
A93: 84 | B93: HCLTECH | C93: 1120.6 | D93: 1115.15 | E93: 1097.00 | F93: 1073.40 | G93: 1055.25 | H93: 1138.75 | I93: 1156.90 | J93: 1180.50 | K93: 1133.3 | L93: 1091.55 | M93: 26.48314
A94: 85 | B94: HDFCBANK | C94: 2292.75 | D94: 2299.00 | E94: 2282.00 | F94: 2271.25 | G94: 2254.25 | H94: 2309.75 | I94: 2326.75 | J94: 2337.50 | K94: 2316 | L94: 2288.25 | M94: 19.14863
A95: 86 | B95: HAVELLS | C95: 770.55 | D95: 771.52 | E95: 763.03 | F95: 755.52 | G95: 747.03 | H95: 779.03 | I95: 787.52 | J95: 795.03 | K95: 780 | L95: 764 | M95: 11.48881
A96: 87 | B96: HEROMOTOCO | C96: 2580.45 | D96: 2580.48 | E96: 2566.97 | F96: 2553.48 | G96: 2539.97 | H96: 2593.97 | I96: 2607.48 | J96: 2620.97 | K96: 2594 | L96: 2567 | M96: 14.27316
A97: 88 | B97: HEXAWARE | C97: 360.85 | D97: 358.78 | E97: 354.17 | F97: 347.48 | G97: 342.87 | H97: 365.47 | I97: 370.08 | J97: 376.77 | K97: 363.4 | L97: 352.1 | M97: 19.75403
A98: 89 | B98: HINDALCO | C98: 215.95 | D98: 216.38 | E98: 213.67 | F98: 211.38 | G98: 208.67 | H98: 218.67 | I98: 221.38 | J98: 223.67 | K98: 219.1 | L98: 214.1 | M98: 49.10619
A99: 90 | B99: HINDPETRO | C99: 260.5 | D99: 265.22 | E99: 254.98 | F99: 249.47 | G99: 239.23 | H99: 270.73 | I99: 280.97 | J99: 286.48 | K99: 275.45 | L99: 259.7 | M99: 112.37287
A100: 91 | B100: HINDUNILVR | C100: 1670.8 | D100: 1675.35 | E100: 1664.10 | F100: 1657.40 | G100: 1646.15 | H100: 1682.05 | I100: 1693.30 | J100: 1700.00 | K100: 1686.6 | L100: 1668.65 | M100: 12.33102
A101: 92 | B101: HINDZINC | C101: 282.35 | D101: 284.50 | E101: 279.40 | F101: 276.45 | G101: 271.35 | H101: 287.45 | I101: 292.55 | J101: 295.50 | K101: 289.6 | L101: 281.55 | M101: 9.98158
A102: 93 | B102: HUDCO | C102: 45.2 | D102: 45.60 | E102: 44.65 | F102: 44.10 | G102: 43.15 | H102: 46.15 | I102: 47.10 | J102: 47.65 | K102: 46.55 | L102: 45.05 | M102: 9.57089
A103: 94 | B103: HDFC | C103: 2013.1 | D103: 2014.23 | E103: 1996.02 | F103: 1978.93 | G103: 1960.72 | H103: 2031.32 | I103: 2049.53 | J103: 2066.62 | K103: 2032.45 | L103: 1997.15 | M103: 43.45772
A104: 95 | B104: ITC | C104: 296.15 | D104: 296.77 | E104: 294.53 | F104: 292.92 | G104: 290.68 | H104: 298.38 | I104: 300.62 | J104: 302.23 | K104: 299 | L104: 295.15 | M104: 90.64767
A105: 96 | B105: ICICIBANK | C105: 392.1 | D105: 395.18 | E105: 387.57 | F105: 383.03 | G105: 375.42 | H105: 399.72 | I105: 407.33 | J105: 411.87 | K105: 402.8 | L105: 390.65 | M105: 123.172
A106: 97 | B106: ICICIPRULI | C106: 365.5 | D106: 367.65 | E106: 361.30 | F106: 357.10 | G106: 350.75 | H106: 371.85 | I106: 378.20 | J106: 382.40 | K106: 374 | L106: 363.45 | M106: 26.78695
A107: 98 | B107: IDBI | C107: 44.4 | D107: 44.93 | E107: 43.57 | F107: 42.73 | G107: 41.37 | H107: 45.77 | I107: 47.13 | J107: 47.97 | K107: 46.3 | L107: 44.1 | M107: 86.06048
A108: 99 | B108: IDFCFIRSTB | C108: 54.55 | D108: 54.80 | E108: 54.05 | F108: 53.55 | G108: 52.80 | H108: 55.30 | I108: 56.05 | J108: 56.55 | K108: 55.55 | L108: 54.3 | M108: 104.27707
A109: 100 | B109: IDFC | C109: 45.5 | D109: 45.80 | E109: 44.95 | F109: 44.40 | G109: 43.55 | H109: 46.35 | I109: 47.20 | J109: 47.75 | K109: 46.65 | L109: 45.25 | M109: 36.48491
A110: 101 | B110: IRB | C110: 149.45 | D110: 151.32 | E110: 144.33 | F110: 139.22 | G110: 132.23 | H110: 156.43 | I110: 163.42 | J110: 168.53 | K110: 158.3 | L110: 146.2 | M110: 35.38106
A111: 102 | B111: IDEA | C111: 15.9 | D111: 16.22 | E111: 15.48 | F111: 15.07 | G111: 14.33 | H111: 16.63 | I111: 17.37 | J111: 17.78 | K111: 16.95 | L111: 15.8 | M111: 619.79681
A112: 103 | B112: IBULHSGFIN | C112: 869.85 | D112: 868.17 | E112: 843.68 | F112: 817.52 | G112: 793.03 | H112: 894.33 | I112: 918.82 | J112: 944.98 | K112: 892.65 | L112: 842 | M112: 191.56812
A113: 104 | B113: INDIANB | C113: 274.45 | D113: 277.58 | E113: 269.37 | F113: 264.28 | G113: 256.07 | H113: 282.67 | I113: 290.88 | J113: 295.97 | K113: 285.8 | L113: 272.5 | M113: 16.85493
A114: 105 | B114: INDHOTEL | C114: 154.85 | D114: 156.65 | E114: 152.40 | F114: 149.95 | G114: 145.70 | H114: 159.10 | I114: 163.35 | J114: 165.80 | K114: 160.9 | L114: 154.2 | M114: 26.49736
A115: 106 | B115: IOC | C115: 153.45 | D115: 155.37 | E115: 151.08 | F115: 148.72 | G115: 144.43 | H115: 157.73 | I115: 162.02 | J115: 164.38 | K115: 159.65 | L115: 153 | M115: 105.70399
A116: 107 | B116: IGL | C116: 302.45 | D116: 303.55 | E116: 300.60 | F116: 298.75 | G116: 295.80 | H116: 305.40 | I116: 308.35 | J116: 310.20 | K116: 306.5 | L116: 301.7 | M116: 14.42456
A117: 108 | B117: INDUSINDBK | C117: 1773.6 | D117: 1784.52 | E117: 1751.03 | F117: 1728.47 | G117: 1694.98 | H117: 1807.08 | I117: 1840.57 | J117: 1863.13 | K117: 1818 | L117: 1761.95 | M117: 24.9499
A118: 109 | B118: NAUKRI | C118: 1851.2 | D118: 1848.23 | E118: 1820.47 | F118: 1789.73 | G118: 1761.97 | H118: 1878.97 | I118: 1906.73 | J118: 1937.47 | K118: 1876 | L118: 1817.5 | M118: 5.53227
A119: 110 | B119: INFY | C119: 753.3 | D119: 752.87 | E119: 747.23 | F119: 741.17 | G119: 735.53 | H119: 758.93 | I119: 764.57 | J119: 770.63 | K119: 758.5 | L119: 746.8 | M119: 68.97127
A120: 111 | B120: INDIGO | C120: 1365.25 | D120: 1374.20 | E120: 1352.40 | F120: 1339.55 | G120: 1317.75 | H120: 1387.05 | I120: 1408.85 | J120: 1421.70 | K120: 1396 | L120: 1361.35 | M120: 13.6898
A121: 112 | B121: IPCALAB | C121: 963.3 | D121: 972.97 | E121: 937.33 | F121: 911.37 | G121: 875.73 | H121: 998.93 | I121: 1034.57 | J121: 1060.53 | K121: 1008.6 | L121: 947 | M121: 4.2465
A122: 113 | B122: JSWENERGY | C122: 71.9 | D122: 73.32 | E122: 69.88 | F122: 67.87 | G122: 64.43 | H122: 75.33 | I122: 78.77 | J122: 80.78 | K122: 76.75 | L122: 71.3 | M122: 27.23578
A123: 114 | B123: JSWSTEEL | C123: 289.9 | D123: 290.97 | E123: 287.43 | F123: 284.97 | G123: 281.43 | H123: 293.43 | I123: 296.97 | J123: 299.43 | K123: 294.5 | L123: 288.5 | M123: 68.99752
A124: 115 | B124: JINDALSTEL | C124: 182.35 | D124: 184.27 | E124: 179.58 | F124: 176.82 | G124: 172.13 | H124: 187.03 | I124: 191.72 | J124: 194.48 | K124: 188.95 | L124: 181.5 | M124: 93.99009
A125: 116 | B125: JUBLFOOD | C125: 1423.15 | D125: 1434.38 | E125: 1407.77 | F125: 1392.38 | G125: 1365.77 | H125: 1449.77 | I125: 1476.38 | J125: 1491.77 | K125: 1461 | L125: 1419 | M125: 9.07675
A126: 117 | B126: JUBILANT | C126: 699.25 | D126: 697.85 | E126: 691.35 | F126: 683.45 | G126: 676.95 | H126: 705.75 | I126: 712.25 | J126: 720.15 | K126: 704.35 | L126: 689.95 | M126: 9.06416
A127: 118 | B127: KARURVYSYA | C127: 73.6 | D127: 74.23 | E127: 72.47 | F127: 71.33 | G127: 69.57 | H127: 75.37 | I127: 77.13 | J127: 78.27 | K127: 76 | L127: 73.1 | M127: 16.95628
A128: 119 | B128: KOTAKBANK | C128: 1334.2 | D128: 1340.88 | E128: 1324.32 | F128: 1314.43 | G128: 1297.87 | H128: 1350.77 | I128: 1367.33 | J128: 1377.22 | K128: 1357.45 | L128: 1331 | M128: 27.66566
A129: 120 | B129: L&TFH | C129: 152.1 | D129: 153.13 | E129: 150.37 | F129: 148.63 | G129: 145.87 | H129: 154.87 | I129: 157.63 | J129: 159.37 | K129: 155.9 | L129: 151.4 | M129: 85.62401
A130: 121 | B130: LICHSGFIN | C130: 542.75 | D130: 545.68 | E130: 538.07 | F130: 533.38 | G130: 525.77 | H130: 550.37 | I130: 557.98 | J130: 562.67 | K130: 553.3 | L130: 541 | M130: 12.58677
A131: 122 | B131: LT | C131: 1378.05 | D131: 1389.35 | E131: 1363.70 | F131: 1349.35 | G131: 1323.70 | H131: 1403.70 | I131: 1429.35 | J131: 1443.70 | K131: 1415 | L131: 1375 | M131: 23.66304
A132: 123 | B132: LUPIN | C132: 773.6 | D132: 777.75 | E132: 765.70 | F132: 757.80 | G132: 745.75 | H132: 785.65 | I132: 797.70 | J132: 805.60 | K132: 789.8 | L132: 769.85 | M132: 25.85485
A133: 124 | B133: MRF | C133: 60040.2 | D133: 60156.73 | E133: 59483.47 | F133: 58926.73 | G133: 58253.47 | H133: 60713.47 | I133: 61386.73 | J133: 61943.47 | K133: 60830 | L133: 59600 | M133: 0.07111
A134: 125 | B134: MGL | C134: 996.7 | D134: 1001.57 | E134: 986.03 | F134: 975.37 | G134: 959.83 | H134: 1012.23 | I134: 1027.77 | J134: 1038.43 | K134: 1017.1 | L134: 990.9 | M134: 3.00581
A135: 126 | B135: M&MFIN | C135: 417.45 | D135: 420.03 | E135: 412.47 | F135: 407.48 | G135: 399.92 | H135: 425.02 | I135: 432.58 | J135: 437.57 | K135: 427.6 | L135: 415.05 | M135: 17.54549
A136: 127 | B136: M&M | C136: 658.45 | D136: 664.03 | E136: 651.32 | F136: 644.18 | G136: 631.47 | H136: 671.17 | I136: 683.88 | J136: 691.02 | K136: 676.75 | L136: 656.9 | M136: 27.4508
A137: 128 | B137: MANAPPURAM | C137: 119 | D137: 120.27 | E137: 116.83 | F137: 114.67 | G137: 111.23 | H137: 122.43 | I137: 125.87 | J137: 128.03 | K137: 123.7 | L137: 118.1 | M137: 39.23443
A138: 129 | B138: MRPL | C138: 72.55 | D138: 72.97 | E138: 71.68 | F138: 70.82 | G138: 69.53 | H138: 73.83 | I138: 75.12 | J138: 75.98 | K138: 74.25 | L138: 72.1 | M138: 7.60371
A139: 130 | B139: MARICO | C139: 354.9 | D139: 355.87 | E139: 351.73 | F139: 348.57 | G139: 344.43 | H139: 359.03 | I139: 363.17 | J139: 366.33 | K139: 360 | L139: 352.7 | M139: 55.52671
A140: 131 | B140: MARUTI | C140: 7072.9 | D140: 7022.30 | E140: 6946.60 | F140: 6820.30 | G140: 6744.60 | H140: 7148.60 | I140: 7224.30 | J140: 7350.60 | K140: 7098 | L140: 6896 | M140: 14.91021
A141: 132 | B141: MFSL | C141: 434.6 | D141: 437.20 | E141: 429.40 | F141: 424.20 | G141: 416.40 | H141: 442.40 | I141: 450.20 | J141: 455.40 | K141: 445 | L141: 432 | M141: 3.93413
A142: 133 | B142: MINDTREE | C142: 943.8 | D142: 944.10 | E142: 938.70 | F142: 933.60 | G142: 928.20 | H142: 949.20 | I142: 954.60 | J142: 959.70 | K142: 949.5 | L142: 939 | M142: 7.27804
A143: 134 | B143: MOTHERSUMI | C143: 150 | D143: 152.05 | E143: 147.40 | F143: 144.80 | G143: 140.15 | H143: 154.65 | I143: 159.30 | J143: 161.90 | K143: 156.7 | L143: 149.45 | M143: 46.52895
A144: 135 | B144: MPHASIS | C144: 978.2 | D144: 982.47 | E144: 969.83 | F144: 961.47 | G144: 948.83 | H144: 990.83 | I144: 1003.47 | J144: 1011.83 | K144: 995.1 | L144: 974.1 | M144: 0.83712
A145: 136 | B145: MUTHOOTFIN | C145: 609.5 | D145: 615.50 | E145: 599.10 | F145: 588.70 | G145: 572.30 | H145: 625.90 | I145: 642.30 | J145: 652.70 | K145: 631.9 | L145: 605.1 | M145: 17.03701
A146: 137 | B146: NATCOPHARM | C146: 561.7 | D146: 563.63 | E146: 557.07 | F146: 552.43 | G146: 545.87 | H146: 568.27 | I146: 574.83 | J146: 579.47 | K146: 570.2 | L146: 559 | M146: 1.63461
A147: 138 | B147: NBCC | C147: 62.25 | D147: 62.82 | E147: 61.48 | F147: 60.72 | G147: 59.38 | H147: 63.58 | I147: 64.92 | J147: 65.68 | K147: 64.15 | L147: 62.05 | M147: 116.16601
A148: 139 | B148: NHPC | C148: 24.6 | D148: 24.88 | E148: 24.12 | F148: 23.63 | G148: 22.87 | H148: 25.37 | I148: 26.13 | J148: 26.62 | K148: 25.65 | L148: 24.4 | M148: 46.43382
A149: 140 | B149: NMDC | C149: 104.55 | D149: 105.12 | E149: 103.53 | F149: 102.52 | G149: 100.93 | H149: 106.13 | I149: 107.72 | J149: 108.73 | K149: 106.7 | L149: 104.1 | M149: 38.60828
A150: 141 | B150: NTPC | C150: 134.8 | D150: 135.43 | E150: 133.37 | F150: 131.93 | G150: 129.87 | H150: 136.87 | I150: 138.93 | J150: 140.37 | K150: 137.5 | L150: 134 | M150: 125.96804
A151: 142 | B151: NATIONALUM | C151: 55.3 | D151: 55.73 | E151: 54.57 | F151: 53.83 | G151: 52.67 | H151: 56.47 | I151: 57.63 | J151: 58.37 | K151: 56.9 | L151: 55 | M151: 93.22806
A152: 143 | B152: OBEROIRLTY | C152: 538 | D152: 541.17 | E152: 529.33 | F152: 520.67 | G152: 508.83 | H152: 549.83 | I152: 561.67 | J152: 570.33 | K152: 553 | L152: 532.5 | M152: 3.18284
A153: 144 | B153: ONGC | C153: 155.45 | D153: 156.38 | E153: 153.67 | F153: 151.88 | G153: 149.17 | H153: 158.17 | I153: 160.88 | J153: 162.67 | K153: 159.1 | L153: 154.6 | M153: 82.83863
A154: 145 | B154: OIL | C154: 180.95 | D154: 182.22 | E154: 179.23 | F154: 177.52 | G154: 174.53 | H154: 183.93 | I154: 186.92 | J154: 188.63 | K154: 185.2 | L154: 180.5 | M154: 11.42917
A155: 146 | B155: OFSS | C155: 3508.35 | D155: 3491.62 | E155: 3421.78 | F155: 3335.22 | G155: 3265.38 | H155: 3578.18 | I155: 3648.02 | J155: 3734.58 | K155: 3561.45 | L155: 3405.05 | M155: 1.27188
A156: 147 | B156: PCJEWELLER | C156: 81.75 | D156: 82.27 | E156: 80.48 | F156: 79.22 | G156: 77.43 | H156: 83.53 | I156: 85.32 | J156: 86.58 | K156: 84.05 | L156: 81 | M156: 51.28558
A157: 148 | B157: PIIND | C157: 1045.3 | D157: 1045.98 | E157: 1031.97 | F157: 1018.63 | G157: 1004.62 | H157: 1059.32 | I157: 1073.33 | J157: 1086.67 | K157: 1060 | L157: 1032.65 | M157: 0.93339
A158: 149 | B158: PNBHOUSING | C158: 918.3 | D158: 934.37 | E158: 885.93 | F158: 853.57 | G158: 805.13 | H158: 966.73 | I158: 1015.17 | J158: 1047.53 | K158: 982.8 | L158: 902 | M158: 6.45052
A159: 150 | B159: PAGEIND | C159: 24662.8 | D159: 24899.98 | E159: 24318.47 | F159: 23974.13 | G159: 23392.62 | H159: 25244.32 | I159: 25825.83 | J159: 26170.17 | K159: 25481.5 | L159: 24555.65 | M159: 0.29745
A160: 151 | B160: PETRONET | C160: 243.9 | D160: 245.23 | E160: 240.72 | F160: 237.53 | G160: 233.02 | H160: 248.42 | I160: 252.93 | J160: 256.12 | K160: 249.75 | L160: 242.05 | M160: 20.46772
A161: 152 | B161: PIDILITIND | C161: 1277 | D161: 1275.52 | E161: 1254.03 | F161: 1231.07 | G161: 1209.58 | H161: 1298.48 | I161: 1319.97 | J161: 1342.93 | K161: 1297 | L161: 1252.55 | M161: 11.54984
A162: 153 | B162: PEL | C162: 2604.7 | D162: 2616.27 | E162: 2575.43 | F162: 2546.17 | G162: 2505.33 | H162: 2645.53 | I162: 2686.37 | J162: 2715.63 | K162: 2657.1 | L162: 2587 | M162: 5.9195
A163: 154 | B163: PFC | C163: 119.8 | D163: 120.78 | E163: 118.12 | F163: 116.43 | G163: 113.77 | H163: 122.47 | I163: 125.13 | J163: 126.82 | K163: 123.45 | L163: 119.1 | M163: 70.64968
A164: 155 | B164: POWERGRID | C164: 200.95 | D164: 201.22 | E164: 199.88 | F164: 198.82 | G164: 197.48 | H164: 202.28 | I164: 203.62 | J164: 204.68 | K164: 202.55 | L164: 200.15 | M164: 84.80624
A165: 156 | B165: PRESTIGE | C165: 251.05 | D165: 253.15 | E165: 246.40 | F165: 241.75 | G165: 235.00 | H165: 257.80 | I165: 264.55 | J165: 269.20 | K165: 259.9 | L165: 248.5 | M165: 41.31728
A166: 157 | B166: PGHH | C166: 10836.35 | D166: 10800.45 | E166: 10701.90 | F166: 10567.45 | G166: 10468.90 | H166: 10934.90 | I166: 11033.45 | J166: 11167.90 | K166: 10899 | L166: 10666 | M166: 0.02004
A167: 158 | B167: PNB | C167: 94.45 | D167: 96.05 | E167: 92.30 | F167: 90.15 | G167: 86.40 | H167: 98.20 | I167: 101.95 | J167: 104.10 | K167: 99.8 | L167: 93.9 | M167: 525.23325
A168: 159 | B168: RBLBANK | C168: 663.05 | D168: 668.75 | E168: 654.40 | F168: 645.75 | G168: 631.40 | H168: 677.40 | I168: 691.75 | J168: 700.40 | K168: 683.1 | L168: 660.1 | M168: 7.40526
A169: 160 | B169: RAJESHEXPO | C169: 687.55 | D169: 690.82 | E169: 671.63 | F169: 655.72 | G169: 636.53 | H169: 706.73 | I169: 725.92 | J169: 741.83 | K169: 710 | L169: 674.9 | M169: 9.87511
A170: 161 | B170: RELCAPITAL | C170: 194.25 | D170: 197.65 | E170: 189.60 | F170: 184.95 | G170: 176.90 | H170: 202.30 | I170: 210.35 | J170: 215.00 | K170: 205.7 | L170: 193 | M170: 81.98336
A171: 162 | B171: RCOM | C171: 3.65 | D171: 3.65 | E171: 3.65 | F171: 3.65 | G171: 3.65 | H171: 3.65 | I171: 3.65 | J171: 3.65 | K171: 3.65 | L171: 3.65 | M171: 75.29599
A172: 163 | B172: RELIANCE | C172: 1375.2 | D172: 1383.40 | E172: 1363.80 | F172: 1352.40 | G172: 1332.80 | H172: 1394.80 | I172: 1414.40 | J172: 1425.80 | K172: 1403 | L172: 1372 | M172: 78.49461
A173: 164 | B173: RELINFRA | C173: 137.5 | D173: 138.88 | E173: 135.62 | F173: 133.73 | G173: 130.47 | H173: 140.77 | I173: 144.03 | J173: 145.92 | K173: 142.15 | L173: 137 | M173: 69.39517
A174: 165 | B174: RPOWER | C174: 10.45 | D174: 10.57 | E174: 10.28 | F174: 10.12 | G174: 9.83 | H174: 10.73 | I174: 11.02 | J174: 11.18 | K174: 10.85 | L174: 10.4 | M174: 442.1414
A175: 166 | B175: RECLTD | C175: 151 | D175: 150.37 | E175: 148.48 | F175: 145.97 | G175: 144.08 | H175: 152.88 | I175: 154.77 | J175: 157.28 | K175: 152.25 | L175: 147.85 | M175: 107.33277
A176: 167 | B176: SRF | C176: 2384.4 | D176: 2391.78 | E176: 2364.62 | F176: 2344.83 | G176: 2317.67 | H176: 2411.57 | I176: 2438.73 | J176: 2458.52 | K176: 2418.95 | L176: 2372 | M176: 2.82995
A177: 168 | B177: SHREECEM | C177: 18606.3 | D177: 18587.77 | E177: 18440.53 | F177: 18274.77 | G177: 18127.53 | H177: 18753.53 | I177: 18900.77 | J177: 19066.53 | K177: 18735 | L177: 18422 | M177: 0.17623
A178: 169 | B178: SRTRANSFIN | C178: 1198.45 | D178: 1205.97 | E178: 1185.93 | F178: 1173.42 | G178: 1153.38 | H178: 1218.48 | I178: 1238.52 | J178: 1251.03 | K178: 1226 | L178: 1193.45 | M178: 17.23766
A179: 170 | B179: SIEMENS | C179: 1160.8 | D179: 1154.38 | E179: 1133.97 | F179: 1107.13 | G179: 1086.72 | H179: 1181.22 | I179: 1201.63 | J179: 1228.47 | K179: 1174.8 | L179: 1127.55 | M179: 15.5772
A180: 171 | B180: SBIN | C180: 320.5 | D180: 324.15 | E180: 315.85 | F180: 311.20 | G180: 302.90 | H180: 328.80 | I180: 337.10 | J180: 341.75 | K180: 332.45 | L180: 319.5 | M180: 305.52104
A181: 172 | B181: SAIL | C181: 57.55 | D181: 57.68 | E181: 56.62 | F181: 55.68 | G181: 54.62 | H181: 58.62 | I181: 59.68 | J181: 60.62 | K181: 58.75 | L181: 56.75 | M181: 454.14284
A182: 173 | B182: SPARC | C182: 186.55 | D182: 187.77 | E182: 183.78 | F182: 181.02 | G182: 177.03 | H182: 190.53 | I182: 194.52 | J182: 197.28 | K182: 191.75 | L182: 185 | M182: 3.1739
A183: 174 | B183: SUNPHARMA | C183: 462 | D183: 465.02 | E183: 456.13 | F183: 450.27 | G183: 441.38 | H183: 470.88 | I183: 479.77 | J183: 485.63 | K183: 473.9 | L183: 459.15 | M183: 47.15586
A184: 175 | B184: SUNTV | C184: 630.5 | D184: 632.85 | E184: 623.90 | F184: 617.30 | G184: 608.35 | H184: 639.45 | I184: 648.40 | J184: 655.00 | K184: 641.8 | L184: 626.25 | M184: 26.92539
A185: 176 | B185: SUZLON | C185: 6.5 | D185: 6.72 | E185: 6.23 | F185: 5.97 | G185: 5.48 | H185: 6.98 | I185: 7.47 | J185: 7.73 | K185: 7.2 | L185: 6.45 | M185: 1019.07257
A186: 177 | B186: SYNDIBANK | C186: 43.05 | D186: 43.87 | E186: 41.78 | F186: 40.52 | G186: 38.43 | H186: 45.13 | I186: 47.22 | J186: 48.48 | K186: 45.95 | L186: 42.6 | M186: 93.07479
A187: 178 | B187: SYNGENE | C187: 586.9 | D187: 588.52 | E187: 580.38 | F187: 573.87 | G187: 565.73 | H187: 595.03 | I187: 603.17 | J187: 609.68 | K187: 596.65 | L187: 582 | M187: 0.4471
A188: 179 | B188: TV18BRDCST | C188: 34.95 | D188: 35.33 | E188: 34.42 | F188: 33.88 | G188: 32.97 | H188: 35.87 | I188: 36.78 | J188: 37.32 | K188: 36.25 | L188: 34.8 | M188: 28.22609
A189: 180 | B189: TVSMOTOR | C189: 485.1 | D189: 487.87 | E189: 481.33 | F189: 477.57 | G189: 471.03 | H189: 491.63 | I189: 498.17 | J189: 501.93 | K189: 494.4 | L189: 484.1 | M189: 13.81451
A190: 181 | B190: TATACHEM | C190: 590.95 | D190: 594.53 | E190: 585.17 | F190: 579.38 | G190: 570.02 | H190: 600.32 | I190: 609.68 | J190: 615.47 | K190: 603.9 | L190: 588.75 | M190: 9.57591
A191: 182 | B191: TATACOMM | C191: 599 | D191: 601.05 | E191: 593.55 | F191: 588.10 | G191: 580.60 | H191: 606.50 | I191: 614.00 | J191: 619.45 | K191: 608.55 | L191: 595.6 | M191: 2.06839
A192: 183 | B192: TCS | C192: 2079.3 | D192: 2075.67 | E192: 2061.73 | F192: 2044.17 | G192: 2030.23 | H192: 2093.23 | I192: 2107.17 | J192: 2124.73 | K192: 2089.6 | L192: 2058.1 | M192: 29.39886
A193: 184 | B193: TATAGLOBAL | C193: 208.35 | D193: 209.63 | E193: 206.07 | F193: 203.78 | G193: 200.22 | H193: 211.92 | I193: 215.48 | J193: 217.77 | K193: 213.2 | L193: 207.35 | M193: 23.3097
A194: 185 | B194: TATAMTRDVR | C194: 97.1 | D194: 97.78 | E194: 95.42 | F194: 93.73 | G194: 91.37 | H194: 99.47 | I194: 101.83 | J194: 103.52 | K194: 100.15 | L194: 96.1 | M194: 86.14783
A195: 186 | B195: TATAMOTORS | C195: 201.35 | D195: 203.17 | E195: 197.38 | F195: 193.42 | G195: 187.63 | H195: 207.13 | I195: 212.92 | J195: 216.88 | K195: 208.95 | L195: 199.2 | M195: 817.7962
A196: 187 | B196: TATAPOWER | C196: 71.45 | D196: 72.35 | E196: 70.15 | F196: 68.85 | G196: 66.65 | H196: 73.65 | I196: 75.85 | J196: 77.15 | K196: 74.55 | L196: 71.05 | M196: 64.17056
A197: 188 | B197: TATASTEEL | C197: 535.45 | D197: 538.83 | E197: 530.07 | F197: 524.68 | G197: 515.92 | H197: 544.22 | I197: 552.98 | J197: 558.37 | K197: 547.6 | L197: 533.45 | M197: 114.8968
A198: 189 | B198: TECHM | C198: 777.7 | D198: 782.43 | E198: 771.52 | F198: 765.33 | G198: 754.42 | H198: 788.62 | I198: 799.53 | J198: 805.72 | K198: 793.35 | L198: 776.25 | M198: 14.67406
A199: 190 | B199: RAMCOCEM | C199: 743.35 | D199: 743.52 | E199: 736.83 | F199: 730.32 | G199: 723.63 | H199: 750.03 | I199: 756.72 | J199: 763.23 | K199: 750.2 | L199: 737 | M199: 2.20253
A200: 191 | B200: TITAN | C200: 1100.5 | D200: 1108.58 | E200: 1089.97 | F200: 1079.43 | G200: 1060.82 | H200: 1119.12 | I200: 1137.73 | J200: 1148.27 | K200: 1127.2 | L200: 1098.05 | M200: 15.532
A201: 192 | B201: TORNTPHARM | C201: 1903.85 | D201: 1902.27 | E201: 1892.58 | F201: 1881.32 | G201: 1871.63 | H201: 1913.53 | I201: 1923.22 | J201: 1934.48 | K201: 1911.95 | L201: 1891 | M201: 1.53128
A202: 193 | B202: TORNTPOWER | C202: 259.2 | D202: 261.37 | E202: 256.38 | F202: 253.57 | G202: 248.58 | H202: 264.18 | I202: 269.17 | J202: 271.98 | K202: 266.35 | L202: 258.55 | M202: 5.79929
A203: 194 | B203: UPL | C203: 924.25 | D203: 926.63 | E203: 916.37 | F203: 908.48 | G203: 898.22 | H203: 934.52 | I203: 944.78 | J203: 952.67 | K203: 936.9 | L203: 918.75 | M203: 16.14049
A204: 195 | B204: ULTRACEMCO | C204: 4001.6 | D204: 4020.18 | E204: 3966.42 | F204: 3931.23 | G204: 3877.47 | H204: 4055.37 | I204: 4109.13 | J204: 4144.32 | K204: 4073.95 | L204: 3985 | M204: 2.53841
A205: 196 | B205: UNIONBANK | C205: 94.8 | D205: 96.43 | E205: 92.47 | F205: 90.13 | G205: 86.17 | H205: 98.77 | I205: 102.73 | J205: 105.07 | K205: 100.4 | L205: 94.1 | M205: 155.96896
... 29 more rows

Sheet MidCap Intra
L5: Back To Main Page
A6: FOR INTRA DAY TRADING | K6: =Main!B10 -> 2019-04-04
A9: Sr.no | B9: Scrip | C9: CLOSE RATE | D9: Pivot Point | E9: Supports | H9: Resistances
C10: Point | E10: S1 | F10: S2 | G10: S3 | H10: R1 | I10: R2 | J10: R3 | K10: HIGH | L10: LOW | M10: Total Trade Quanity in Lakhs
A11: 1 | B11: 3MINDIA | C11: 23983.5 | D11: 24120.28 | E11: 23660.27 | F11: 23337.03 | G11: 22877.02 | H11: 24443.52 | I11: 24903.53 | J11: 25226.77 | K11: 24580.3 | L11: 23797.05 | M11: 0.12795
A12: 2 | B12: 8KMILES | C12: 100.3 | D12: 101.60 | E12: 98.70 | F12: 97.10 | G12: 94.20 | H12: 103.20 | I12: 106.10 | J12: 107.70 | K12: 104.5 | L12: 100 | M12: 1.46122
A13: 3 | B13: AARTIIND | C13: 1579.6 | D13: 1579.87 | E13: 1564.73 | F13: 1549.87 | G13: 1534.73 | H13: 1594.73 | I13: 1609.87 | J13: 1624.73 | K13: 1595 | L13: 1565 | M13: 1.31922
A14: 4 | B14: ABAN | C14: 58.45 | D14: 58.77 | E14: 57.68 | F14: 56.92 | G14: 55.83 | H14: 59.53 | I14: 60.62 | J14: 61.38 | K14: 59.85 | L14: 58 | M14: 0.61356
A15: 5 | B15: ABB | C15: 1332.15 | D15: 1330.75 | E15: 1321.50 | F15: 1310.85 | G15: 1301.60 | H15: 1341.40 | I15: 1350.65 | J15: 1361.30 | K15: 1340 | L15: 1320.1 | M15: 0.69523
A16: 6 | B16: ABCAPITAL | C16: 100.3 | D16: 101.27 | E16: 98.73 | F16: 97.17 | G16: 94.63 | H16: 102.83 | I16: 105.37 | J16: 106.93 | K16: 103.8 | L16: 99.7 | M16: 27.2246
A17: 7 | B17: ABFRL | C17: 219.7 | D17: 219.82 | E17: 217.98 | F17: 216.27 | G17: 214.43 | H17: 221.53 | I17: 223.37 | J17: 225.08 | K17: 221.65 | L17: 218.1 | M17: 3.32435
A18: 8 | B18: ACC | C18: 1624.6 | D18: 1628.43 | E18: 1611.87 | F18: 1599.13 | G18: 1582.57 | H18: 1641.17 | I18: 1657.73 | J18: 1670.47 | K18: 1645 | L18: 1615.7 | M18: 6.80202
A19: 9 | B19: ADANIPORTS | C19: 382 | D19: 382.77 | E19: 379.23 | F19: 376.47 | G19: 372.93 | H19: 385.53 | I19: 389.07 | J19: 391.83 | K19: 386.3 | L19: 380 | M19: 27.01443
A20: 10 | B20: ADANIPOWER | C20: 49.4 | D20: 49.78 | E20: 48.62 | F20: 47.83 | G20: 46.67 | H20: 50.57 | I20: 51.73 | J20: 52.52 | K20: 50.95 | L20: 49 | M20: 110.39301
A21: 11 | B21: ADANITRANS | C21: 218.4 | D21: 220.12 | E21: 216.28 | F21: 214.17 | G21: 210.33 | H21: 222.23 | I21: 226.07 | J21: 228.18 | K21: 223.95 | L21: 218 | M21: 0.7728
A22: 12 | B22: ADVENZYMES | C22: 180.9 | D22: 182.13 | E22: 178.77 | F22: 176.63 | G22: 173.27 | H22: 184.27 | I22: 187.63 | J22: 189.77 | K22: 185.5 | L22: 180 | M22: 1.20377
A23: 13 | B23: AEGISCHEM | C23: 205.2 | D23: 204.88 | E23: 202.82 | F23: 200.43 | G23: 198.37 | H23: 207.27 | I23: 209.33 | J23: 211.72 | K23: 206.95 | L23: 202.5 | M23: 0.99927
A24: 14 | B24: AIAENG | C24: 1726.35 | D24: 1735.97 | E24: 1700.98 | F24: 1675.62 | G24: 1640.63 | H24: 1761.33 | I24: 1796.32 | J24: 1821.68 | K24: 1770.95 | L24: 1710.6 | M24: 0.15308
A25: 15 | B25: AJANTPHARM | C25: 1023.4 | D25: 1026.43 | E25: 1013.12 | F25: 1002.83 | G25: 989.52 | H25: 1036.72 | I25: 1050.03 | J25: 1060.32 | K25: 1039.75 | L25: 1016.15 | M25: 1.60471
A26: 16 | B26: AKZOINDIA | C26: 1792 | D26: 1781.30 | E26: 1762.70 | F26: 1733.40 | G26: 1714.80 | H26: 1810.60 | I26: 1829.20 | J26: 1858.50 | K26: 1799.9 | L26: 1752 | M26: 0.0722
A27: 17 | B27: ALBK | C27: 53.4 | D27: 54.22 | E27: 52.28 | F27: 51.17 | G27: 49.23 | H27: 55.33 | I27: 57.27 | J27: 58.38 | K27: 56.15 | L27: 53.1 | M27: 63.69982
A28: 18 | B28: ALKEM | C28: 1739.3 | D28: 1737.82 | E28: 1728.63 | F28: 1717.97 | G28: 1708.78 | H28: 1748.48 | I28: 1757.67 | J28: 1768.33 | K28: 1747 | L28: 1727.15 | M28: 0.52369
A29: 19 | B29: ALLCARGO | C29: 111.7 | D29: 112.63 | E29: 110.52 | F29: 109.33 | G29: 107.22 | H29: 113.82 | I29: 115.93 | J29: 117.12 | K29: 114.75 | L29: 111.45 | M29: 1.02986
A30: 20 | B30: AMARAJABAT | C30: 672.35 | D30: 687.12 | E30: 635.23 | F30: 598.12 | G30: 546.23 | H30: 724.23 | I30: 776.12 | J30: 813.23 | K30: 739 | L30: 650 | M30: 71.07893
A31: 21 | B31: AMBUJACEM | C31: 226.75 | D31: 229.53 | E31: 223.17 | F31: 219.58 | G31: 213.22 | H31: 233.12 | I31: 239.48 | J31: 243.07 | K31: 235.9 | L31: 225.95 | M31: 45.91977
A32: 22 | B32: ANDHRABANK | C32: 31.05 | D32: 31.43 | E32: 30.47 | F32: 29.88 | G32: 28.92 | H32: 32.02 | I32: 32.98 | J32: 33.57 | K32: 32.4 | L32: 30.85 | M32: 24.58786
A33: 23 | B33: APLAPOLLO | C33: 1469.65 | D33: 1478.40 | E33: 1451.25 | F33: 1432.85 | G33: 1405.70 | H33: 1496.80 | I33: 1523.95 | J33: 1542.35 | K33: 1505.55 | L33: 1460 | M33: 0.12935
A34: 24 | B34: APLLTD | C34: 532.15 | D34: 535.28 | E34: 526.87 | F34: 521.58 | G34: 513.17 | H34: 540.57 | I34: 548.98 | J34: 554.27 | K34: 543.7 | L34: 530 | M34: 0.1351
A35: 25 | B35: APOLLOHOSP | C35: 1259.75 | D35: 1263.90 | E35: 1251.10 | F35: 1242.45 | G35: 1229.65 | H35: 1272.55 | I35: 1285.35 | J35: 1294.00 | K35: 1276.7 | L35: 1255.25 | M35: 3.3631
A36: 26 | B36: APOLLOTYRE | C36: 219.85 | D36: 221.10 | E36: 217.20 | F36: 214.55 | G36: 210.65 | H36: 223.75 | I36: 227.65 | J36: 230.30 | K36: 225 | L36: 218.45 | M36: 26.02557
A37: 27 | B37: ARVIND | C37: 90.1 | D37: 90.82 | E37: 88.48 | F37: 86.87 | G37: 84.53 | H37: 92.43 | I37: 94.77 | J37: 96.38 | K37: 93.15 | L37: 89.2 | M37: 19.25326
A38: 28 | B38: ASAHIINDIA | C38: 253.8 | D38: 254.63 | E38: 252.27 | F38: 250.73 | G38: 248.37 | H38: 256.17 | I38: 258.53 | J38: 260.07 | K38: 257 | L38: 253.1 | M38: 0.10127
A39: 29 | B39: ASHOKA | C39: 133.1 | D39: 133.67 | E39: 131.43 | F39: 129.77 | G39: 127.53 | H39: 135.33 | I39: 137.57 | J39: 139.23 | K39: 135.9 | L39: 132 | M39: 1.98331
A40: 30 | B40: ASHOKLEY | C40: 87.8 | D40: 88.70 | E40: 86.60 | F40: 85.40 | G40: 83.30 | H40: 89.90 | I40: 92.00 | J40: 93.20 | K40: 90.8 | L40: 87.5 | M40: 199.62585
A41: 31 | B41: ASIANPAINT | C41: 1497.6 | D41: 1506.82 | E41: 1483.78 | F41: 1469.97 | G41: 1446.93 | H41: 1520.63 | I41: 1543.67 | J41: 1557.48 | K41: 1529.85 | L41: 1493 | M41: 16.06692
A42: 32 | B42: ASTRAL | C42: 1167.2 | D42: 1175.75 | E42: 1152.45 | F42: 1137.70 | G42: 1114.40 | H42: 1190.50 | I42: 1213.80 | J42: 1228.55 | K42: 1199.05 | L42: 1161 | M42: 0.19214
A43: 33 | B43: ATUL | C43: 3520.5 | D43: 3557.18 | E43: 3464.37 | F43: 3408.23 | G43: 3315.42 | H43: 3613.32 | I43: 3706.13 | J43: 3762.27 | K43: 3650 | L43: 3501.05 | M43: 0.11997
A44: 34 | B44: AUBANK | C44: 598.85 | D44: 605.63 | E44: 589.27 | F44: 579.68 | G44: 563.32 | H44: 615.22 | I44: 631.58 | J44: 641.17 | K44: 622 | L44: 596.05 | M44: 2.22908
A45: 35 | B45: AUROPHARMA | C45: 772.65 | D45: 779.52 | E45: 763.43 | F45: 754.22 | G45: 738.13 | H45: 788.73 | I45: 804.82 | J45: 814.03 | K45: 795.6 | L45: 770.3 | M45: 13.20439
A46: 36 | B46: AVANTIFEED | C46: 403.95 | D46: 408.38 | E46: 397.57 | F46: 391.18 | G46: 380.37 | H46: 414.77 | I46: 425.58 | J46: 431.97 | K46: 419.2 | L46: 402 | M46: 3.92836
A47: 37 | B47: AXISBANK | C47: 761.5 | D47: 764.32 | E47: 755.88 | F47: 750.27 | G47: 741.83 | H47: 769.93 | I47: 778.37 | J47: 783.98 | K47: 772.75 | L47: 758.7 | M47: 55.91613
A48: 38 | B48: BAJAJ-AUTO | C48: 2847.3 | D48: 2851.80 | E48: 2826.50 | F48: 2805.70 | G48: 2780.40 | H48: 2872.60 | I48: 2897.90 | J48: 2918.70 | K48: 2877.1 | L48: 2831 | M48: 4.8479
A49: 39 | B49: BAJAJCON | C49: 315.15 | D49: 316.82 | E49: 312.38 | F49: 309.62 | G49: 305.18 | H49: 319.58 | I49: 324.02 | J49: 326.78 | K49: 321.25 | L49: 314.05 | M49: 1.95416
A50: 40 | B50: BAJAJELEC | C50: 549.25 | D50: 557.27 | E50: 534.53 | F50: 519.82 | G50: 497.08 | H50: 571.98 | I50: 594.72 | J50: 609.43 | K50: 580 | L50: 542.55 | M50: 3.75621
A51: 41 | B51: BAJAJFINSV | C51: 7401.55 | D51: 7378.90 | E51: 7307.80 | F51: 7214.05 | G51: 7142.95 | H51: 7472.65 | I51: 7543.75 | J51: 7637.50 | K51: 7450 | L51: 7285.15 | M51: 4.26738
A52: 42 | B52: BAJAJHIND | C52: 8.15 | D52: 8.20 | E52: 8.00 | F52: 7.85 | G52: 7.65 | H52: 8.35 | I52: 8.55 | J52: 8.70 | K52: 8.4 | L52: 8.05 | M52: 11.02351
A53: 43 | B53: BAJAJHLDNG | C53: 3406.15 | D53: 3416.82 | E53: 3372.43 | F53: 3338.72 | G53: 3294.33 | H53: 3450.53 | I53: 3494.92 | J53: 3528.63 | K53: 3461.2 | L53: 3383.1 | M53: 1.30489
A54: 44 | B54: BAJFINANCE | C54: 3046 | D54: 3057.72 | E54: 3026.43 | F54: 3006.87 | G54: 2975.58 | H54: 3077.28 | I54: 3108.57 | J54: 3128.13 | K54: 3089 | L54: 3038.15 | M54: 10.52752
A55: 45 | B55: BALKRISIND | C55: 996.15 | D55: 999.88 | E55: 987.27 | F55: 978.38 | G55: 965.77 | H55: 1008.77 | I55: 1021.38 | J55: 1030.27 | K55: 1012.5 | L55: 991 | M55: 4.6174
A56: 46 | B56: BALLARPUR | C56: 3.35 | D56: 3.30 | E56: 3.25 | F56: 3.15 | G56: 3.10 | H56: 3.40 | I56: 3.45 | J56: 3.55 | K56: 3.35 | L56: 3.2 | M56: 42.07643
A57: 47 | B57: BALMLAWRIE | C57: 186.75 | D57: 187.48 | E57: 184.57 | F57: 182.38 | G57: 179.47 | H57: 189.67 | I57: 192.58 | J57: 194.77 | K57: 190.4 | L57: 185.3 | M57: 0.3306
A58: 48 | B58: BALRAMCHIN | C58: 138.7 | D58: 139.15 | E58: 137.55 | F58: 136.40 | G58: 134.80 | H58: 140.30 | I58: 141.90 | J58: 143.05 | K58: 140.75 | L58: 138 | M58: 11.60302
A59: 49 | B59: BANKBARODA | C59: 132.05 | D59: 133.52 | E59: 129.88 | F59: 127.72 | G59: 124.08 | H59: 135.68 | I59: 139.32 | J59: 141.48 | K59: 137.15 | L59: 131.35 | M59: 311.27867
A60: 50 | B60: BANKINDIA | C60: 101.7 | D60: 103.48 | E60: 99.57 | F60: 97.43 | G60: 93.52 | H60: 105.62 | I60: 109.53 | J60: 111.67 | K60: 107.4 | L60: 101.35 | M60: 109.79283
A61: 51 | B61: BASF | C61: 1408.6 | D61: 1419.48 | E61: 1390.22 | F61: 1371.83 | G61: 1342.57 | H61: 1437.87 | I61: 1467.13 | J61: 1485.52 | K61: 1448.75 | L61: 1401.1 | M61: 0.04485
A62: 52 | B62: BATAINDIA | C62: 1397.35 | D62: 1396.22 | E62: 1382.58 | F62: 1367.82 | G62: 1354.18 | H62: 1410.98 | I62: 1424.62 | J62: 1439.38 | K62: 1409.85 | L62: 1381.45 | M62: 6.05476
A63: 53 | B63: BBTC | C63: 1278.65 | D63: 1285.32 | E63: 1260.48 | F63: 1242.32 | G63: 1217.48 | H63: 1303.48 | I63: 1328.32 | J63: 1346.48 | K63: 1310.15 | L63: 1267.15 | M63: 0.67877
A64: 54 | B64: BEL | C64: 97.25 | D64: 98.73 | E64: 95.27 | F64: 93.28 | G64: 89.82 | H64: 100.72 | I64: 104.18 | J64: 106.17 | K64: 102.2 | L64: 96.75 | M64: 206.62237
A65: 55 | B65: BEML | C65: 1002.9 | D65: 1010.72 | E65: 986.53 | F65: 970.17 | G65: 945.98 | H65: 1027.08 | I65: 1051.27 | J65: 1067.63 | K65: 1034.9 | L65: 994.35 | M65: 25.62771
A66: 56 | B66: BERGEPAINT | C66: 330.45 | D66: 331.43 | E66: 328.47 | F66: 326.48 | G66: 323.52 | H66: 333.42 | I66: 336.38 | J66: 338.37 | K66: 334.4 | L66: 329.45 | M66: 5.80962
A67: 57 | B67: BFUTILITIE | C67: 198.65 | D67: 200.70 | E67: 193.20 | F67: 187.75 | G67: 180.25 | H67: 206.15 | I67: 213.65 | J67: 219.10 | K67: 208.2 | L67: 195.25 | M67: 8.17357
A68: 58 | B68: BGRENERGY | C68: 62.25 | D68: 62.58 | E68: 61.67 | F68: 61.08 | G68: 60.17 | H68: 63.17 | I68: 64.08 | J68: 64.67 | K68: 63.5 | L68: 62 | M68: 1.13298
A69: 59 | B69: BHARATFIN | C69: 1123.75 | D69: 1129.55 | E69: 1110.30 | F69: 1096.85 | G69: 1077.60 | H69: 1143.00 | I69: 1162.25 | J69: 1175.70 | K69: 1148.8 | L69: 1116.1 | M69: 5.36069
A70: 60 | B70: BHARATFORG | C70: 503.8 | D70: 509.30 | E70: 495.60 | F70: 487.40 | G70: 473.70 | H70: 517.50 | I70: 531.20 | J70: 539.40 | K70: 523 | L70: 501.1 | M70: 14.01379
A71: 61 | B71: BHARTIARTL | C71: 350 | D71: 353.50 | E71: 344.00 | F71: 338.00 | G71: 328.50 | H71: 359.50 | I71: 369.00 | J71: 375.00 | K71: 363 | L71: 347.5 | M71: 110.41131
A72: 62 | B72: BHEL | C72: 73.85 | D72: 74.33 | E72: 72.52 | F72: 71.18 | G72: 69.37 | H72: 75.67 | I72: 77.48 | J72: 78.82 | K72: 76.15 | L72: 73 | M72: 196.28856
A73: 63 | B73: BIOCON | C73: 607.9 | D73: 611.00 | E73: 603.50 | F73: 599.10 | G73: 591.60 | H73: 615.40 | I73: 622.90 | J73: 627.30 | K73: 618.5 | L73: 606.6 | M73: 6.31713
A74: 64 | B74: BIRLACORPN | C74: 515.1 | D74: 518.03 | E74: 506.07 | F74: 497.03 | G74: 485.07 | H74: 527.07 | I74: 539.03 | J74: 548.07 | K74: 530 | L74: 509 | M74: 0.56839
A75: 65 | B75: BLISSGVS | C75: 178.4 | D75: 178.72 | E75: 175.43 | F75: 172.47 | G75: 169.18 | H75: 181.68 | I75: 184.97 | J75: 187.93 | K75: 182 | L75: 175.75 | M75: 5.97803
A76: 66 | B76: BLUEDART | C76: 3367.25 | D76: 3414.75 | E76: 3294.50 | F76: 3221.75 | G76: 3101.50 | H76: 3487.50 | I76: 3607.75 | J76: 3680.50 | K76: 3535 | L76: 3342 | M76: 0.03482
A77: 67 | B77: BLUESTARCO | C77: 693.1 | D77: 700.58 | E77: 681.17 | F77: 669.23 | G77: 649.82 | H77: 712.52 | I77: 731.93 | J77: 743.87 | K77: 720 | L77: 688.65 | M77: 0.54125
A78: 68 | B78: BOMDYEING | C78: 136.95 | D78: 138.00 | E78: 135.05 | F78: 133.15 | G78: 130.20 | H78: 139.90 | I78: 142.85 | J78: 144.75 | K78: 140.95 | L78: 136.1 | M78: 17.05682
A79: 69 | B79: BOSCHLTD | C79: 18005.95 | D79: 18011.00 | E79: 17942.00 | F79: 17878.05 | G79: 17809.05 | H79: 18074.95 | I79: 18143.95 | J79: 18207.90 | K79: 18080 | L79: 17947.05 | M79: 0.16319
A80: 70 | B80: BPCL | C80: 363.2 | D80: 369.12 | E80: 356.23 | F80: 349.27 | G80: 336.38 | H80: 376.08 | I80: 388.97 | J80: 395.93 | K80: 382 | L80: 362.15 | M80: 82.89954
A81: 71 | B81: BRFL | C81: 9.2 | D81: 9.18 | E81: 9.02 | F81: 8.83 | G81: 8.67 | H81: 9.37 | I81: 9.53 | J81: 9.72 | K81: 9.35 | L81: 9 | M81: 0.9147
A82: 72 | B82: BRIGADE | C82: 247.4 | D82: 249.88 | E82: 242.52 | F82: 237.63 | G82: 230.27 | H82: 254.77 | I82: 262.13 | J82: 267.02 | K82: 257.25 | L82: 245 | M82: 1.74934
A83: 73 | B83: BRITANNIA | C83: 2990.1 | D83: 2986.27 | E83: 2959.03 | F83: 2927.97 | G83: 2900.73 | H83: 3017.33 | I83: 3044.57 | J83: 3075.63 | K83: 3013.5 | L83: 2955.2 | M83: 4.39719
A84: 74 | B84: BSE | C84: 609.05 | D84: 611.63 | E84: 605.42 | F84: 601.78 | G84: 595.57 | H84: 615.27 | I84: 621.48 | J84: 625.12 | K84: 617.85 | L84: 608 | M84: 1.42547
A85: 75 | B85: BSOFT | C85: 100.65 | D85: 101.07 | E85: 99.68 | F85: 98.72 | G85: 97.33 | H85: 102.03 | I85: 103.42 | J85: 104.38 | K85: 102.45 | L85: 100.1 | M85: 4.8743
A86: 77 | B86: CADILAHC | C86: 338.75 | D86: 340.85 | E86: 335.45 | F86: 332.15 | G86: 326.75 | H86: 344.15 | I86: 349.55 | J86: 352.85 | K86: 346.25 | L86: 337.55 | M86: 6.0997
A87: 78 | B87: CANBK | C87: 285.15 | D87: 289.62 | E87: 278.73 | F87: 272.32 | G87: 261.43 | H87: 296.03 | I87: 306.92 | J87: 313.33 | K87: 300.5 | L87: 283.2 | M87: 62.44802
A88: 79 | B88: CANFINHOME | C88: 352.5 | D88: 354.17 | E88: 347.33 | F88: 342.17 | G88: 335.33 | H88: 359.33 | I88: 366.17 | J88: 371.33 | K88: 361 | L88: 349 | M88: 16.96747
A89: 80 | B89: CAPLIPOINT | C89: 400.8 | D89: 404.10 | E89: 395.70 | F89: 390.60 | G89: 382.20 | H89: 409.20 | I89: 417.60 | J89: 422.70 | K89: 412.5 | L89: 399 | M89: 0.31819
A90: 81 | B90: CARBORUNIV | C90: 395.05 | D90: 399.02 | E90: 388.53 | F90: 382.02 | G90: 371.53 | H90: 405.53 | I90: 416.02 | J90: 422.53 | K90: 409.5 | L90: 392.5 | M90: 0.55474
A91: 82 | B91: CARERATING | C91: 986.6 | D91: 989.52 | E91: 981.08 | F91: 975.57 | G91: 967.13 | H91: 995.03 | I91: 1003.47 | J91: 1008.98 | K91: 997.95 | L91: 984 | M91: 1.55309
A92: 83 | B92: CASTROLIND | C92: 167.45 | D92: 168.63 | E92: 164.37 | F92: 161.28 | G92: 157.02 | H92: 171.72 | I92: 175.98 | J92: 179.07 | K92: 172.9 | L92: 165.55 | M92: 47.46469
A93: 84 | B93: CCL | C93: 285.55 | D93: 289.17 | E93: 281.38 | F93: 277.22 | G93: 269.43 | H93: 293.33 | I93: 301.12 | J93: 305.28 | K93: 296.95 | L93: 285 | M93: 0.62764
A94: 85 | B94: CDSL | C94: 238.5 | D94: 239.48 | E94: 235.97 | F94: 233.43 | G94: 229.92 | H94: 242.02 | I94: 245.53 | J94: 248.07 | K94: 243 | L94: 236.95 | M94: 1.81627
A95: 86 | B95: CEATLTD | C95: 1100.55 | D95: 1107.62 | E95: 1083.93 | F95: 1067.32 | G95: 1043.63 | H95: 1124.23 | I95: 1147.92 | J95: 1164.53 | K95: 1131.3 | L95: 1091 | M95: 5.0396
A96: 87 | B96: CENTRALBK | C96: 35.45 | D96: 35.70 | E96: 35.10 | F96: 34.75 | G96: 34.15 | H96: 36.05 | I96: 36.65 | J96: 37.00 | K96: 36.3 | L96: 35.35 | M96: 8.85746
A97: 88 | B97: CENTURYPLY | C97: 209.75 | D97: 211.72 | E97: 204.43 | F97: 199.12 | G97: 191.83 | H97: 217.03 | I97: 224.32 | J97: 229.63 | K97: 219 | L97: 206.4 | M97: 0.81164
A98: 89 | B98: CENTURYTEX | C98: 904.8 | D98: 911.00 | E98: 894.00 | F98: 883.20 | G98: 866.20 | H98: 921.80 | I98: 938.80 | J98: 949.60 | K98: 928 | L98: 900.2 | M98: 3.43788
A99: 90 | B99: CERA | C99: 2863.85 | D99: 2894.63 | E99: 2819.22 | F99: 2774.58 | G99: 2699.17 | H99: 2939.27 | I99: 3014.68 | J99: 3059.32 | K99: 2970.05 | L99: 2850 | M99: 0.51452
A100: 91 | B100: CGPOWER | C100: 40.15 | D100: 40.47 | E100: 39.43 | F100: 38.72 | G100: 37.68 | H100: 41.18 | I100: 42.22 | J100: 42.93 | K100: 41.5 | L100: 39.75 | M100: 75.30077
A101: 92 | B101: CHAMBLFERT | C101: 165.15 | D101: 164.57 | E101: 162.13 | F101: 159.12 | G101: 156.68 | H101: 167.58 | I101: 170.02 | J101: 173.03 | K101: 167 | L101: 161.55 | M101: 3.62021
A102: 93 | B102: CHENNPETRO | C102: 261.7 | D102: 264.97 | E102: 256.93 | F102: 252.17 | G102: 244.13 | H102: 269.73 | I102: 277.77 | J102: 282.53 | K102: 273 | L102: 260.2 | M102: 3.29319
A103: 94 | B103: CHOLAFIN | C103: 1463.4 | D103: 1473.73 | E103: 1441.22 | F103: 1419.03 | G103: 1386.52 | H103: 1495.92 | I103: 1528.43 | J103: 1550.62 | K103: 1506.25 | L103: 1451.55 | M103: 2.59875
A104: 95 | B104: CIPLA | C104: 520.45 | D104: 521.45 | E104: 518.10 | F104: 515.75 | G104: 512.40 | H104: 523.80 | I104: 527.15 | J104: 529.50 | K104: 524.8 | L104: 519.1 | M104: 32.76338
A105: 96 | B105: COALINDIA | C105: 234.1 | D105: 234.68 | E105: 232.42 | F105: 230.73 | G105: 228.47 | H105: 236.37 | I105: 238.63 | J105: 240.32 | K105: 236.95 | L105: 233 | M105: 51.20392
A106: 97 | B106: COCHINSHIP | C106: 390.6 | D106: 391.78 | E106: 386.87 | F106: 383.13 | G106: 378.22 | H106: 395.52 | I106: 400.43 | J106: 404.17 | K106: 396.7 | L106: 388.05 | M106: 0.35136
A107: 98 | B107: COFFEEDAY | C107: 274.1 | D107: 275.22 | E107: 269.98 | F107: 265.87 | G107: 260.63 | H107: 279.33 | I107: 284.57 | J107: 288.68 | K107: 280.45 | L107: 271.1 | M107: 2.84466
A108: 99 | B108: COLPAL | C108: 1250.1 | D108: 1252.70 | E108: 1243.40 | F108: 1236.70 | G108: 1227.40 | H108: 1259.40 | I108: 1268.70 | J108: 1275.40 | K108: 1262 | L108: 1246 | M108: 1.83368
A109: 100 | B109: CONCOR | C109: 532.4 | D109: 533.42 | E109: 527.28 | F109: 522.17 | G109: 516.03 | H109: 538.53 | I109: 544.67 | J109: 549.78 | K109: 539.55 | L109: 528.3 | M109: 4.78303
A110: 101 | B110: COROMANDEL | C110: 470.6 | D110: 478.92 | E110: 459.13 | F110: 447.67 | G110: 427.88 | H110: 490.38 | I110: 510.17 | J110: 521.63 | K110: 498.7 | L110: 467.45 | M110: 1.92681
A111: 102 | B111: COX&KINGS | C111: 134.15 | D111: 135.53 | E111: 131.62 | F111: 129.08 | G111: 125.17 | H111: 138.07 | I111: 141.98 | J111: 144.52 | K111: 139.45 | L111: 133 | M111: 2.01071
A112: 103 | B112: CRISIL | C112: 1425.9 | D112: 1431.95 | E112: 1415.95 | F112: 1406.00 | G112: 1390.00 | H112: 1441.90 | I112: 1457.90 | J112: 1467.85 | K112: 1447.95 | L112: 1422 | M112: 0.08926
A113: 104 | B113: CROMPTON | C113: 228.9 | D113: 228.07 | E113: 224.23 | F113: 219.57 | G113: 215.73 | H113: 232.73 | I113: 236.57 | J113: 241.23 | K113: 231.9 | L113: 223.4 | M113: 7.90615
A114: 105 | B114: CUB | C114: 199.3 | D114: 199.92 | E114: 195.88 | F114: 192.47 | G114: 188.43 | H114: 203.33 | I114: 207.37 | J114: 210.78 | K114: 203.95 | L114: 196.5 | M114: 7.31215
A115: 106 | B115: CUMMINSIND | C115: 728.25 | D115: 735.92 | E115: 717.83 | F115: 707.42 | G115: 689.33 | H115: 746.33 | I115: 764.42 | J115: 774.83 | K115: 754 | L115: 725.5 | M115: 3.80637
A116: 107 | B116: CYIENT | C116: 584.1 | D116: 586.57 | E116: 577.73 | F116: 571.37 | G116: 562.53 | H116: 592.93 | I116: 601.77 | J116: 608.13 | K116: 595.4 | L116: 580.2 | M116: 9.86599
A117: 108 | B117: DABUR | C117: 403.45 | D117: 404.82 | E117: 400.78 | F117: 398.12 | G117: 394.08 | H117: 407.48 | I117: 411.52 | J117: 414.18 | K117: 408.85 | L117: 402.15 | M117: 36.89189
A118: 109 | B118: DBCORP | C118: 185.05 | D118: 185.70 | E118: 184.35 | F118: 183.65 | G118: 182.30 | H118: 186.40 | I118: 187.75 | J118: 188.45 | K118: 187.05 | L118: 185 | M118: 0.38211
A119: 110 | B119: DBL | C119: 632.95 | D119: 638.63 | E119: 624.37 | F119: 615.78 | G119: 601.52 | H119: 647.22 | I119: 661.48 | J119: 670.07 | K119: 652.9 | L119: 630.05 | M119: 1.74291
A120: 111 | B120: DBREALTY | C120: 19.45 | D120: 19.75 | E120: 19.05 | F120: 18.65 | G120: 17.95 | H120: 20.15 | I120: 20.85 | J120: 21.25 | K120: 20.45 | L120: 19.35 | M120: 3.54032
A121: 112 | B121: DCAL | C121: 217.5 | D121: 217.95 | E121: 214.55 | F121: 211.60 | G121: 208.20 | H121: 220.90 | I121: 224.30 | J121: 227.25 | K121: 221.35 | L121: 215 | M121: 1.03436
A122: 113 | B122: DCBBANK | C122: 199.35 | D122: 200.90 | E122: 197.05 | F122: 194.75 | G122: 190.90 | H122: 203.20 | I122: 207.05 | J122: 209.35 | K122: 204.75 | L122: 198.6 | M122: 12.57072
A123: 114 | B123: DCMSHRIRAM | C123: 408.55 | D123: 408.97 | E123: 404.23 | F123: 399.92 | G123: 395.18 | H123: 413.28 | I123: 418.02 | J123: 422.33 | K123: 413.7 | L123: 404.65 | M123: 0.68268
A124: 115 | B124: DEEPAKFERT | C124: 133.65 | D124: 132.15 | E124: 129.30 | F124: 124.95 | G124: 122.10 | H124: 136.50 | I124: 139.35 | J124: 143.70 | K124: 135 | L124: 127.8 | M124: 6.80929
A125: 116 | B125: DELTACORP | C125: 263.05 | D125: 267.40 | E125: 257.15 | F125: 251.25 | G125: 241.00 | H125: 273.30 | I125: 283.55 | J125: 289.45 | K125: 277.65 | L125: 261.5 | M125: 17.20088
A126: 117 | B126: DEN | C126: 67.9 | D126: 68.58 | E126: 65.87 | F126: 63.83 | G126: 61.12 | H126: 70.62 | I126: 73.33 | J126: 75.37 | K126: 71.3 | L126: 66.55 | M126: 0.54568
A127: 118 | B127: DHFL | C127: 148 | D127: 148.63 | E127: 144.42 | F127: 140.83 | G127: 136.62 | H127: 152.22 | I127: 156.43 | J127: 160.02 | K127: 152.85 | L127: 145.05 | M127: 234.9011
A128: 119 | B128: DISHTV | C128: 38.25 | D128: 38.72 | E128: 37.48 | F128: 36.72 | G128: 35.48 | H128: 39.48 | I128: 40.72 | J128: 41.48 | K128: 39.95 | L128: 37.95 | M128: 318.84025
A129: 120 | B129: DIVISLAB | C129: 1675.8 | D129: 1682.93 | E129: 1658.32 | F129: 1640.83 | G129: 1616.22 | H129: 1700.42 | I129: 1725.03 | J129: 1742.52 | K129: 1707.55 | L129: 1665.45 | M129: 3.93202
A130: 121 | B130: DIXON | C130: 2376.6 | D130: 2375.53 | E130: 2356.07 | F130: 2335.53 | G130: 2316.07 | H130: 2396.07 | I130: 2415.53 | J130: 2436.07 | K130: 2395 | L130: 2355 | M130: 0.03368
A131: 122 | B131: DLF | C131: 202.1 | D131: 203.78 | E131: 197.92 | F131: 193.73 | G131: 187.87 | H131: 207.97 | I131: 213.83 | J131: 218.02 | K131: 209.65 | L131: 199.6 | M131: 281.04238
A132: 123 | B132: DMART | C132: 1478.55 | D132: 1483.60 | E132: 1470.20 | F132: 1461.85 | G132: 1448.45 | H132: 1491.95 | I132: 1505.35 | J132: 1513.70 | K132: 1497 | L132: 1475.25 | M132: 1.94233
A133: 124 | B133: DREDGECORP | C133: 421.1 | D133: 424.27 | E133: 413.33 | F133: 405.57 | G133: 394.63 | H133: 432.03 | I133: 442.97 | J133: 450.73 | K133: 435.2 | L133: 416.5 | M133: 2.58184
A134: 125 | B134: DRREDDY | C134: 2765.2 | D134: 2777.48 | E134: 2746.17 | F134: 2727.13 | G134: 2695.82 | H134: 2796.52 | I134: 2827.83 | J134: 2846.87 | K134: 2808.8 | L134: 2758.45 | M134: 3.68516
A135: 126 | B135: ECLERX | C135: 1136.85 | D135: 1139.75 | E135: 1131.50 | F135: 1126.15 | G135: 1117.90 | H135: 1145.10 | I135: 1153.35 | J135: 1158.70 | K135: 1148 | L135: 1134.4 | M135: 0.201
A136: 127 | B136: EDELWEISS | C136: 187.7 | D136: 189.93 | E136: 184.12 | F136: 180.53 | G136: 174.72 | H136: 193.52 | I136: 199.33 | J136: 202.92 | K136: 195.75 | L136: 186.35 | M136: 13.71875
A137: 128 | B137: EICHERMOT | C137: 20202.7 | D137: 20263.63 | E137: 20051.27 | F137: 19899.83 | G137: 19687.47 | H137: 20415.07 | I137: 20627.43 | J137: 20778.87 | K137: 20476 | L137: 20112.2 | M137: 1.23265
A138: 129 | B138: EIDPARRY | C138: 213.05 | D138: 210.80 | E138: 207.60 | F138: 202.15 | G138: 198.95 | H138: 216.25 | I138: 219.45 | J138: 224.90 | K138: 214 | L138: 205.35 | M138: 1.50765
A139: 130 | B139: EIHOTEL | C139: 201.7 | D139: 202.83 | E139: 198.97 | F139: 196.23 | G139: 192.37 | H139: 205.57 | I139: 209.43 | J139: 212.17 | K139: 206.7 | L139: 200.1 | M139: 1.46764
A140: 131 | B140: EMAMILTD | C140: 408.9 | D140: 410.00 | E140: 404.60 | F140: 400.30 | G140: 394.90 | H140: 414.30 | I140: 419.70 | J140: 424.00 | K140: 415.4 | L140: 405.7 | M140: 4.34509
A141: 132 | B141: ENDURANCE | C141: 1169 | D141: 1171.07 | E141: 1158.43 | F141: 1147.87 | G141: 1135.23 | H141: 1181.63 | I141: 1194.27 | J141: 1204.83 | K141: 1183.7 | L141: 1160.5 | M141: 1.09244
A142: 133 | B142: ENGINERSIN | C142: 117.2 | D142: 118.07 | E142: 115.23 | F142: 113.27 | G142: 110.43 | H142: 120.03 | I142: 122.87 | J142: 124.83 | K142: 120.9 | L142: 116.1 | M142: 22.47041
A143: 134 | B143: EQUITAS | C143: 135.55 | D143: 136.00 | E143: 132.80 | F143: 130.05 | G143: 126.85 | H143: 138.75 | I143: 141.95 | J143: 144.70 | K143: 139.2 | L143: 133.25 | M143: 16.32452
A144: 135 | B144: ERIS | C144: 618.85 | D144: 622.95 | E144: 607.90 | F144: 596.95 | G144: 581.90 | H144: 633.90 | I144: 648.95 | J144: 659.90 | K144: 638 | L144: 612 | M144: 0.20108
A145: 136 | B145: EROSMEDIA | C145: 78.2 | D145: 79.33 | E145: 76.37 | F145: 74.53 | G145: 71.57 | H145: 81.17 | I145: 84.13 | J145: 85.97 | K145: 82.3 | L145: 77.5 | M145: 2.7831
A146: 137 | B146: ESCORTS | C146: 767.7 | D146: 773.88 | E146: 758.82 | F146: 749.93 | G146: 734.87 | H146: 782.77 | I146: 797.83 | J146: 806.72 | K146: 788.95 | L146: 765 | M146: 16.51147
A147: 138 | B147: EVEREADY | C147: 190.75 | D147: 191.03 | E147: 188.92 | F147: 187.08 | G147: 184.97 | H147: 192.87 | I147: 194.98 | J147: 196.82 | K147: 193.15 | L147: 189.2 | M147: 2.45705
A148: 139 | B148: EXIDEIND | C148: 209.8 | D148: 211.57 | E148: 207.23 | F148: 204.67 | G148: 200.33 | H148: 214.13 | I148: 218.47 | J148: 221.03 | K148: 215.9 | L148: 209 | M148: 40.98309
A149: 140 | B149: FCONSUMER | C149: 44.25 | D149: 44.45 | E149: 43.80 | F149: 43.35 | G149: 42.70 | H149: 44.90 | I149: 45.55 | J149: 46.00 | K149: 45.1 | L149: 44 | M149: 9.56321
A150: 141 | B150: FEDERALBNK | C150: 95.2 | D150: 96.15 | E150: 93.85 | F150: 92.50 | G150: 90.20 | H150: 97.50 | I150: 99.80 | J150: 101.15 | K150: 98.45 | L150: 94.8 | M150: 108.06272
A151: 142 | B151: FINCABLES | C151: 456.8 | D151: 461.93 | E151: 449.87 | F151: 442.93 | G151: 430.87 | H151: 468.87 | I151: 480.93 | J151: 487.87 | K151: 474 | L151: 455 | M151: 0.53908
A152: 143 | B152: FINPIPE | C152: 488.1 | D152: 491.93 | E152: 481.72 | F152: 475.33 | G152: 465.12 | H152: 498.32 | I152: 508.53 | J152: 514.92 | K152: 502.15 | L152: 485.55 | M152: 0.1668
A153: 144 | B153: FLFL | C153: 477.15 | D153: 475.30 | E153: 466.85 | F153: 456.55 | G153: 448.10 | H153: 485.60 | I153: 494.05 | J153: 504.35 | K153: 483.75 | L153: 465 | M153: 1.99563
A154: 145 | B154: FSL | C154: 48 | D154: 48.70 | E154: 47.15 | F154: 46.30 | G154: 44.75 | H154: 49.55 | I154: 51.10 | J154: 51.95 | K154: 50.25 | L154: 47.85 | M154: 19.97377
A155: 146 | B155: GAIL | C155: 352.45 | D155: 355.83 | E155: 347.27 | F155: 342.08 | G155: 333.52 | H155: 361.02 | I155: 369.58 | J155: 374.77 | K155: 364.4 | L155: 350.65 | M155: 35.16055
A156: 147 | B156: GATI | C156: 84.1 | D156: 85.10 | E156: 82.50 | F156: 80.90 | G156: 78.30 | H156: 86.70 | I156: 89.30 | J156: 90.90 | K156: 87.7 | L156: 83.5 | M156: 7.97709
A157: 148 | B157: GDL | C157: 133.25 | D157: 134.53 | E157: 130.82 | F157: 128.38 | G157: 124.67 | H157: 136.97 | I157: 140.68 | J157: 143.12 | K157: 138.25 | L157: 132.1 | M157: 0.38633
A158: 149 | B158: GEPIL | C158: 817.05 | D158: 820.33 | E158: 808.72 | F158: 800.38 | G158: 788.77 | H158: 828.67 | I158: 840.28 | J158: 848.62 | K158: 831.95 | L158: 812 | M158: 0.08869
A159: 150 | B159: GESHIP | C159: 285.8 | D159: 288.77 | E159: 282.03 | F159: 278.27 | G159: 271.53 | H159: 292.53 | I159: 299.27 | J159: 303.03 | K159: 295.5 | L159: 285 | M159: 0.2801
A160: 151 | B160: GET&D | C160: 288.95 | D160: 287.30 | E160: 282.75 | F160: 276.55 | G160: 272.00 | H160: 293.50 | I160: 298.05 | J160: 304.25 | K160: 291.85 | L160: 281.1 | M160: 0.44101
A161: 152 | B161: GHCL | C161: 241.15 | D161: 242.25 | E161: 237.05 | F161: 232.95 | G161: 227.75 | H161: 246.35 | I161: 251.55 | J161: 255.65 | K161: 247.45 | L161: 238.15 | M161: 1.65572
A162: 153 | B162: GICRE | C162: 263.3 | D162: 263.28 | E162: 255.97 | F162: 248.63 | G162: 241.32 | H162: 270.62 | I162: 277.93 | J162: 285.27 | K162: 270.6 | L162: 255.95 | M162: 12.56757
A163: 154 | B163: GILLETTE | C163: 6671.05 | D163: 6668.00 | E163: 6630.00 | F163: 6588.95 | G163: 6550.95 | H163: 6709.05 | I163: 6747.05 | J163: 6788.10 | K163: 6706 | L163: 6626.95 | M163: 0.03555
A164: 155 | B164: GLAXO | C164: 1297.65 | D164: 1296.07 | E164: 1291.58 | F164: 1285.52 | G164: 1281.03 | H164: 1302.13 | I164: 1306.62 | J164: 1312.68 | K164: 1300.55 | L164: 1290 | M164: 0.12763
A165: 156 | B165: GLENMARK | C165: 641.35 | D165: 643.68 | E165: 633.97 | F165: 626.58 | G165: 616.87 | H165: 651.07 | I165: 660.78 | J165: 668.17 | K165: 653.4 | L165: 636.3 | M165: 2.59558
A166: 157 | B166: GMDCLTD | C166: 81.3 | D166: 81.65 | E166: 80.75 | F166: 80.20 | G166: 79.30 | H166: 82.20 | I166: 83.10 | J166: 83.65 | K166: 82.55 | L166: 81.1 | M166: 0.93759
A167: 158 | B167: GMRINFRA | C167: 18.6 | D167: 18.83 | E167: 18.27 | F167: 17.93 | G167: 17.37 | H167: 19.17 | I167: 19.73 | J167: 20.07 | K167: 19.4 | L167: 18.5 | M167: 356.34325
A168: 159 | B168: GNFC | C168: 315.45 | D168: 315.27 | E168: 311.63 | F168: 307.82 | G168: 304.18 | H168: 319.08 | I168: 322.72 | J168: 326.53 | K168: 318.9 | L168: 311.45 | M168: 4.81389
A169: 160 | B169: GODFRYPHLP | C169: 1125.45 | D169: 1131.15 | E169: 1114.30 | F169: 1103.15 | G169: 1086.30 | H169: 1142.30 | I169: 1159.15 | J169: 1170.30 | K169: 1148 | L169: 1120 | M169: 1.6135
A170: 161 | B170: GODREJAGRO | C170: 523.75 | D170: 529.55 | E170: 516.20 | F170: 508.65 | G170: 495.30 | H170: 537.10 | I170: 550.45 | J170: 558.00 | K170: 542.9 | L170: 522 | M170: 1.69588
A171: 162 | B171: GODREJCP | C171: 666 | D171: 664.65 | E171: 657.40 | F171: 648.80 | G171: 641.55 | H171: 673.25 | I171: 680.50 | J171: 689.10 | K171: 671.9 | L171: 656.05 | M171: 23.08491
A172: 163 | B172: GODREJIND | C172: 530.8 | D172: 534.05 | E172: 525.85 | F172: 520.90 | G172: 512.70 | H172: 539.00 | I172: 547.20 | J172: 552.15 | K172: 542.25 | L172: 529.1 | M172: 5.59503
A173: 164 | B173: GODREJPROP | C173: 891.6 | D173: 902.43 | E173: 867.17 | F173: 842.73 | G173: 807.47 | H173: 926.87 | I173: 962.13 | J173: 986.57 | K173: 937.7 | L173: 878 | M173: 31.85958
A174: 165 | B174: GPPL | C174: 96.75 | D174: 97.55 | E174: 95.20 | F174: 93.65 | G174: 91.30 | H174: 99.10 | I174: 101.45 | J174: 103.00 | K174: 99.9 | L174: 96 | M174: 1.28227
A175: 166 | B175: GRANULES | C175: 109.65 | D175: 110.68 | E175: 106.97 | F175: 104.28 | G175: 100.57 | H175: 113.37 | I175: 117.08 | J175: 119.77 | K175: 114.4 | L175: 108 | M175: 11.72451
A176: 167 | B176: GRAPHITE | C176: 451.85 | D176: 455.23 | E176: 443.62 | F176: 435.38 | G176: 423.77 | H176: 463.47 | I176: 475.08 | J176: 483.32 | K176: 466.85 | L176: 447 | M176: 15.11961
A177: 168 | B177: GRASIM | C177: 831.7 | D177: 837.27 | E177: 822.43 | F177: 813.17 | G177: 798.33 | H177: 846.53 | I177: 861.37 | J177: 870.63 | K177: 852.1 | L177: 828 | M177: 10.15377
A178: 169 | B178: GREAVESCOT | C178: 146 | D178: 146.55 | E178: 143.75 | F178: 141.50 | G178: 138.70 | H178: 148.80 | I178: 151.60 | J178: 153.85 | K178: 149.35 | L178: 144.3 | M178: 5.75603
A179: 170 | B179: GREENPLY | C179: 163.15 | D179: 162.75 | E179: 160.50 | F179: 157.85 | G179: 155.60 | H179: 165.40 | I179: 167.65 | J179: 170.30 | K179: 165 | L179: 160.1 | M179: 0.90571
A180: 171 | B180: GRUH | C180: 282.3 | D180: 283.07 | E180: 279.38 | F180: 276.47 | G180: 272.78 | H180: 285.98 | I180: 289.67 | J180: 292.58 | K180: 286.75 | L180: 280.15 | M180: 14.76828
A181: 172 | B181: GSFC | C181: 102.45 | D181: 104.28 | E181: 99.87 | F181: 97.28 | G181: 92.87 | H181: 106.87 | I181: 111.28 | J181: 113.87 | K181: 108.7 | L181: 101.7 | M181: 35.64245
A182: 173 | B182: GSKCONS | C182: 6995.05 | D182: 7020.18 | E182: 6955.77 | F182: 6916.48 | G182: 6852.07 | H182: 7059.47 | I182: 7123.88 | J182: 7163.17 | K182: 7084.6 | L182: 6980.9 | M182: 0.19643
A183: 174 | B183: GSPL | C183: 178.1 | D183: 177.92 | E183: 176.48 | F183: 174.87 | G183: 173.43 | H183: 179.53 | I183: 180.97 | J183: 182.58 | K183: 179.35 | L183: 176.3 | M183: 3.10962
A184: 175 | B184: GUJALKALI | C184: 496.95 | D184: 498.75 | E184: 493.70 | F184: 490.45 | G184: 485.40 | H184: 502.00 | I184: 507.05 | J184: 510.30 | K184: 503.8 | L184: 495.5 | M184: 0.30024
A185: 176 | B185: GUJFLUORO | C185: 1081.05 | D185: 1077.53 | E185: 1053.57 | F185: 1026.08 | G185: 1002.12 | H185: 1105.02 | I185: 1128.98 | J185: 1156.47 | K185: 1101.5 | L185: 1050.05 | M185: 1.95671
A186: 177 | B186: GUJGASLTD | C186: 145.55 | D186: 146.52 | E186: 144.03 | F186: 142.52 | G186: 140.03 | H186: 148.03 | I186: 150.52 | J186: 152.03 | K186: 149 | L186: 145 | M186: 1.86702
A187: 178 | B187: GULFOILLUB | C187: 871.9 | D187: 872.83 | E187: 861.92 | F187: 851.93 | G187: 841.02 | H187: 882.82 | I187: 893.73 | J187: 903.72 | K187: 883.75 | L187: 862.85 | M187: 0.09586
A188: 179 | B188: GVKPIL | C188: 7.2 | D188: 7.33 | E188: 7.02 | F188: 6.83 | G188: 6.52 | H188: 7.52 | I188: 7.83 | J188: 8.02 | K188: 7.65 | L188: 7.15 | M188: 27.83156
A189: 180 | B189: HATHWAY | C189: 29.35 | D189: 29.68 | E189: 28.77 | F189: 28.18 | G189: 27.27 | H189: 30.27 | I189: 31.18 | J189: 31.77 | K189: 30.6 | L189: 29.1 | M189: 1.5965
A190: 181 | B190: HATSUN | C190: 739.25 | D190: 734.42 | E190: 723.83 | F190: 708.42 | G190: 697.83 | H190: 749.83 | I190: 760.42 | J190: 775.83 | K190: 745 | L190: 719 | M190: 0.13909
A191: 182 | B191: HAVELLS | C191: 770.55 | D191: 771.52 | E191: 763.03 | F191: 755.52 | G191: 747.03 | H191: 779.03 | I191: 787.52 | J191: 795.03 | K191: 780 | L191: 764 | M191: 11.48881
A192: 183 | B192: HCC | C192: 14.35 | D192: 14.45 | E192: 14.20 | F192: 14.05 | G192: 13.80 | H192: 14.60 | I192: 14.85 | J192: 15.00 | K192: 14.7 | L192: 14.3 | M192: 25.08651
A193: 184 | B193: HCL-INSYS | C193: 18.6 | D193: 18.77 | E193: 18.28 | F193: 17.97 | G193: 17.48 | H193: 19.08 | I193: 19.57 | J193: 19.88 | K193: 19.25 | L193: 18.45 | M193: 4.77942
A194: 185 | B194: HCLTECH | C194: 1120.6 | D194: 1115.15 | E194: 1097.00 | F194: 1073.40 | G194: 1055.25 | H194: 1138.75 | I194: 1156.90 | J194: 1180.50 | K194: 1133.3 | L194: 1091.55 | M194: 26.48314
A195: 186 | B195: HDFC | C195: 2013.1 | D195: 2014.23 | E195: 1996.02 | F195: 1978.93 | G195: 1960.72 | H195: 2031.32 | I195: 2049.53 | J195: 2066.62 | K195: 2032.45 | L195: 1997.15 | M195: 43.45772
A196: 187 | B196: HDFCBANK | C196: 2292.75 | D196: 2299.00 | E196: 2282.00 | F196: 2271.25 | G196: 2254.25 | H196: 2309.75 | I196: 2326.75 | J196: 2337.50 | K196: 2316 | L196: 2288.25 | M196: 19.14863
A197: 188 | B197: HDIL | C197: 26.15 | D197: 26.33 | E197: 25.82 | F197: 25.48 | G197: 24.97 | H197: 26.67 | I197: 27.18 | J197: 27.52 | K197: 26.85 | L197: 26 | M197: 34.94181
A198: 189 | B198: HEG | C198: 2091.75 | D198: 2104.58 | E198: 2072.17 | F198: 2052.58 | G198: 2020.17 | H198: 2124.17 | I198: 2156.58 | J198: 2176.17 | K198: 2137 | L198: 2085 | M198: 2.82838
A199: 190 | B199: HEIDELBERG | C199: 176.45 | D199: 178.53 | E199: 172.92 | F199: 169.38 | G199: 163.77 | H199: 182.07 | I199: 187.68 | J199: 191.22 | K199: 184.15 | L199: 175 | M199: 2.1692
A200: 191 | B200: HERITGFOOD | C200: 547.25 | D200: 552.83 | E200: 536.67 | F200: 526.08 | G200: 509.92 | H200: 563.42 | I200: 579.58 | J200: 590.17 | K200: 569 | L200: 542.25 | M200: 0.19877
A201: 192 | B201: HEROMOTOCO | C201: 2580.45 | D201: 2580.48 | E201: 2566.97 | F201: 2553.48 | G201: 2539.97 | H201: 2593.97 | I201: 2607.48 | J201: 2620.97 | K201: 2594 | L201: 2567 | M201: 14.27316
A202: 193 | B202: HEXAWARE | C202: 360.85 | D202: 358.78 | E202: 354.17 | F202: 347.48 | G202: 342.87 | H202: 365.47 | I202: 370.08 | J202: 376.77 | K202: 363.4 | L202: 352.1 | M202: 19.75403
A203: 194 | B203: HFCL | C203: 22.5 | D203: 22.75 | E203: 21.90 | F203: 21.30 | G203: 20.45 | H203: 23.35 | I203: 24.20 | J203: 24.80 | K203: 23.6 | L203: 22.15 | M203: 38.97223
A204: 195 | B204: HIMATSEIDE | C204: 212 | D204: 214.68 | E204: 207.37 | F204: 202.73 | G204: 195.42 | H204: 219.32 | I204: 226.63 | J204: 231.27 | K204: 222 | L204: 210.05 | M204: 0.72043
A205: 196 | B205: HINDALCO | C205: 215.95 | D205: 216.38 | E205: 213.67 | F205: 211.38 | G205: 208.67 | H205: 218.67 | I205: 221.38 | J205: 223.67 | K205: 219.1 | L205: 214.1 | M205: 49.10619
A206: 197 | B206: HINDCOPPER | C206: 49.55 | D206: 49.63 | E206: 48.87 | F206: 48.18 | G206: 47.42 | H206: 50.32 | I206: 51.08 | J206: 51.77 | K206: 50.4 | L206: 48.95 | M206: 8.0859
... 304 more rows

Sheet Bulk Deals
E6: Back To Main Page
A7: Subject : | B7: BULK DEAL | D7: =Main!B10 -> 2019-04-04
A9: Date | B9: Scrip code | C9: Scrip Name | D9: Client Name | E9: Buy / Sell | F9: Quantity Traded | G9: Trade Price / Wt.Avg.trade price | H9: Exchange
A10: 2019-04-03 | B10: 542580 | C10: AARTECH | D10: RAM BALLABH KATTA | E10: SELL | F10: 72,000 | G10: 34.64 | H10: BSE
A11: 2019-04-03 | B11: 542580 | C11: AARTECH | D11: VIPULKUMAR BIPINCHANDRA KHANDHAR | E11: SELL | F11: 108,000 | G11: 34.75 | H11: BSE
A12: 2019-04-03 | B12: 542580 | C12: AARTECH | D12: GIRIRAJ PRASAD AGRAWAL | E12: BUY | F12: 180000 | G12: 34.71 | H12: BSE
A13: 2019-04-03 | B13: 540024 | C13: ASHARI | D13: VIJAY KUMAR AGGARWAL | E13: SELL | F13: 65755 | G13: 8.68 | H13: BSE
A14: 2019-04-03 | B14: 537766 | C14: BCP | D14: ACHINTYA SECURITIES PVT. LTD. | E14: BUY | F14: 240856 | G14: 39.77 | H14: BSE
A15: 2019-04-03 | B15: 537766 | C15: BCP | D15: ACHINTYA SECURITIES PVT. LTD. | E15: SELL | F15: 365856 | G15: 39.3 | H15: BSE
A16: 2019-04-03 | B16: 530067 | C16: CSLFINANCE | D16: RADHIKA SHARMA | E16: SELL | F16: 39060 | G16: 301.64 | H16: BSE
A17: 2019-04-03 | B17: 540945 | C17: FSSPL | D17: PREYASH SATHVARA | E17: BUY | F17: 76000 | G17: 4.84 | H17: BSE
A18: 2019-04-03 | B18: 540945 | C18: FSSPL | D18: PREYASH SATHVARA | E18: SELL | F18: 76000 | G18: 4.84 | H18: BSE
A19: 2019-04-03 | B19: 540945 | C19: FSSPL | D19: VIJAY CHANDULAL THAKKAR | E19: BUY | F19: 92000 | G19: 4.83 | H19: BSE
A20: 2019-04-03 | B20: 540945 | C20: FSSPL | D20: RAHUL R MEHTA | E20: BUY | F20: 88000 | G20: 4.84 | H20: BSE
A21: 2019-04-03 | B21: 540945 | C21: FSSPL | D21: RAHUL R MEHTA | E21: SELL | F21: 88000 | G21: 4.86 | H21: BSE
A22: 2019-04-03 | B22: 540945 | C22: FSSPL | D22: MANISHABEN KALPESHBHAI MALVI | E22: BUY | F22: 124000 | G22: 4.76 | H22: BSE
A23: 2019-04-03 | B23: 540945 | C23: FSSPL | D23: MANISHABEN KALPESHBHAI MALVI | E23: SELL | F23: 116,000 | G23: 4.83 | H23: BSE
A24: 2019-04-03 | B24: 540945 | C24: FSSPL | D24: JAYESH VAGHELA | E24: BUY | F24: 72,000 | G24: 4.86 | H24: BSE
A25: 2019-04-03 | B25: 540945 | C25: FSSPL | D25: JAYESH VAGHELA | E25: SELL | F25: 72,000 | G25: 4.85 | H25: BSE
A26: 2019-04-03 | B26: 541276 | C26: GARVIND | D26: JYOJAI48 | E26: BUY | F26: 120,000 | G26: 9.98 | H26: BSE
A27: 2019-04-03 | B27: 541276 | C27: GARVIND | D27: SANKET AGARWAL | E27: BUY | F27: 60,000 | G27: 9.98 | H27: BSE
A28: 2019-04-03 | B28: 541276 | C28: GARVIND | D28: SUSHIL KUMAR JAIN | E28: SELL | F28: 130,000 | G28: 9.97 | H28: BSE
A29: 2019-04-03 | B29: 540266 | C29: GLCL | D29: JAYDEEP KUMUDCHANDRA DAVE | E29: BUY | F29: 25,000 | G29: 10.6 | H29: BSE
A30: 2019-04-03 | B30: 526717 | C30: GOPALA | D30: AYAZ AMIR MANJEE | E30: BUY | F30: 105,695 | G30: 49.57 | H30: BSE
A31: 2019-04-03 | B31: 526717 | C31: GOPALA | D31: AYAZ AMIR MANJEE | E31: SELL | F31: 50,878 | G31: 47.47 | H31: BSE
A32: 2019-04-03 | B32: 526717 | C32: GOPALA | D32: URMILADEVI TAPARIA | E32: SELL | F32: 115,578 | G32: 48.51 | H32: BSE
A33: 2019-04-03 | B33: 540750 | C33: IEX | D33: SG BRIC III TRADING LLC | E33: SELL | F33: 2,000,000 | G33: 161.5 | H33: BSE
A34: 2019-04-03 | B34: 532976 | C34: JAIBALAJI | D34: REALTY CHECK PROPERTIES PRIVATE LIMITED. | E34: BUY | F34: 1,953,772 | G34: 32.75 | H34: BSE
A35: 2019-04-03 | B35: 532976 | C35: JAIBALAJI | D35: RAMNATH JHUNJHUNWALA | E35: SELL | F35: 750,000 | G35: 32.75 | H35: BSE
A36: 2019-04-03 | B36: 532976 | C36: JAIBALAJI | D36: FOLLOWEL ENGINEERING LIMITED | E36: SELL | F36: 1,304,669 | G36: 32.75 | H36: BSE
A37: 2019-04-03 | B37: 539225 | C37: JIYAECO | D37: RAHUL SHARMA | E37: BUY | F37: 338348 | G37: 57.33 | H37: BSE
A38: 2019-04-03 | B38: 539225 | C38: JIYAECO | D38: RAHUL SHARMA | E38: SELL | F38: 338348 | G38: 57.23 | H38: BSE
A39: 2019-04-03 | B39: 540078 | C39: MITSU | D39: NOPEA CAPITAL SERVICES PRIVATE LIMITED | E39: BUY | F39: 26400 | G39: 175.05 | H39: BSE
A40: 2019-04-03 | B40: 538668 | C40: NAYSAA | D40: VYAS PARTHKUMAR VISHNUPRASAD | E40: BUY | F40: 100000 | G40: 31.09 | H40: BSE
A41: 2019-04-03 | B41: 538668 | C41: NAYSAA | D41: VYAS PARTHKUMAR VISHNUPRASAD | E41: SELL | F41: 100000 | G41: 28.04 | H41: BSE
A42: 2019-04-03 | B42: 538668 | C42: NAYSAA | D42: VIRAG RAJESH SHAH | E42: SELL | F42: 28000 | G42: 31.4 | H42: BSE
A43: 2019-04-03 | B43: 538668 | C43: NAYSAA | D43: PARTH ANILKUMAR SHAH | E43: SELL | F43: 28000 | G43: 31.4 | H43: BSE
A44: 2019-04-03 | B44: 538668 | C44: NAYSAA | D44: ANIL BABULAL SHAH | E44: SELL | F44: 36000 | G44: 31.4 | H44: BSE
A45: 2019-04-03 | B45: 538668 | C45: NAYSAA | D45: DASHARATHBHAI RANGI | E45: BUY | F45: 24000 | G45: 29 | H45: BSE
A46: 2019-04-03 | B46: 538668 | C46: NAYSAA | D46: JAYKUMAR PITAMBARBHAI CHAUHAN | E46: BUY | F46: 24000 | G46: 27 | H46: BSE
A47: 2019-04-03 | B47: 538668 | C47: NAYSAA | D47: HEMANT BABULAL KHALAS | E47: BUY | F47: 28000 | G47: 28.57 | H47: BSE
A48: 2019-04-03 | B48: 538668 | C48: NAYSAA | D48: GORDHANBHAI CHIMANBHAI SOLANKI | E48: BUY | F48: 24000 | G48: 27.5 | H48: BSE
A49: 2019-04-03 | B49: 539570 | C49: OFSTECH | D49: AROCKIASAMY SATHYARAJ | E49: BUY | F49: 57600 | G49: 9.55 | H49: BSE
A50: 2019-04-03 | B50: 531512 | C50: ORIENTTR | D50: PIVOTAL ENTERPRISES PRIVATE LIMITED | E50: SELL | F50: 60000 | G50: 37.88 | H50: BSE
A51: 2019-04-03 | B51: 504335 | C51: PAZEL | D51: ASHU SINGH | E51: SELL | F51: 1153100 | G51: 1.33 | H51: BSE
A52: 2019-04-03 | B52: 537573 | C52: POLYMAC | D52: DISPLAY COMMERCIAL PRIVATE LIMITED | E52: SELL | F52: 29600 | G52: 11.59 | H52: BSE
A53: 2019-04-03 | B53: 537573 | C53: POLYMAC | D53: ARVIND KUMAR MUNKA | E53: BUY | F53: 29600 | G53: 11.59 | H53: BSE
A54: 2019-04-03 | B54: 539814 | C54: RADHEY | D54: JAYESH PRAVINCHANDRA SHETH | E54: BUY | F54: 33200 | G54: 15.11 | H54: BSE
A55: 2019-04-03 | B55: 539814 | C55: RADHEY | D55: SARVAJANA PROPERTIES PVT LTD | E55: SELL | F55: 37100 | G55: 15.11 | H55: BSE
A56: 2019-04-03 | B56: 539760 | C56: RELICAB | D56: AMARKUMAR SHAH HIRAL | E56: SELL | F56: 90000 | G56: 43.9 | H56: BSE
A57: 2019-04-03 | B57: 539760 | C57: RELICAB | D57: ARYAMAN BROKING LIMITED | E57: BUY | F57: 90000 | G57: 43.9 | H57: BSE
A58: 2019-04-03 | B58: 542599 | C58: ROOPSHRI | D58: SHAH REKHABEN MUKESHKUMAR | E58: BUY | F58: 60000 | G58: 20.25 | H58: BSE
A59: 2019-04-03 | B59: 542599 | C59: ROOPSHRI | D59: AMARKUMAR SHAH HIRAL | E59: BUY | F59: 60000 | G59: 20.25 | H59: BSE
A60: 2019-04-03 | B60: 506906 | C60: SCBL | D60: KHAN IMITIZ AHMED | E60: BUY | F60: 75000 | G60: 6.39 | H60: BSE
A61: 2019-04-03 | B61: 539520 | C61: SHAILJA | D61: HIMANSHU SHAH | E61: SELL | F61: 35000 | G61: 20 | H61: BSE
A62: 2019-04-03 | B62: 539450 | C62: SHK | D62: FIDELITY INVESTMENT TRUST FIDELITY SERIES EMERGING MARKETS FUND | E62: BUY | F62: 1143003 | G62: 151.26 | H62: BSE
A63: 2019-04-03 | B63: 539363 | C63: SKC | D63: SURESH BALAKRISHNA | E63: BUY | F63: 1 | G63: 19.1 | H63: BSE
A64: 2019-04-03 | B64: 539363 | C64: SKC | D64: SURESH BALAKRISHNA | E64: SELL | F64: 101360 | G64: 18.99 | H64: BSE
A65: 2019-04-03 | B65: 539363 | C65: SKC | D65: RAVIKUMAR | E65: BUY | F65: 100000 | G65: 19 | H65: BSE
A66: 2019-04-03 | B66: 542146 | C66: SKIFL | D66: DHRUV PATEL | E66: BUY | F66: 20000 | G66: 6.84 | H66: BSE
A67: 2019-04-03 | B67: 542146 | C67: SKIFL | D67: DHRUV PATEL | E67: SELL | F67: 10000 | G67: 6.84 | H67: BSE
A68: 2019-04-03 | B68: 532784 | C68: SOBHA | D68: RAVI P N C MENON | E68: BUY | F68: 2900000 | G68: 496.97 | H68: BSE
A69: 2019-04-03 | B69: 532784 | C69: SOBHA | D69: SOBHA MENON | E69: SELL | F69: 2900000 | G69: 496.97 | H69: BSE
A70: 2019-04-03 | B70: 540084 | C70: SPICY | D70: JAYKUMAR PITAMBARBHAI CHAUHAN | E70: BUY | F70: 90000 | G70: 11.64 | H70: BSE
A71: 2019-04-03 | B71: 540084 | C71: SPICY | D71: JAYKUMAR PITAMBARBHAI CHAUHAN | E71: SELL | F71: 90000 | G71: 11.18 | H71: BSE
A72: 2019-04-03 | B72: 511764 | C72: UPASAFN | D72: DHANRAJ BHATIYA | E72: BUY | F72: 32686 | G72: 61.02 | H72: BSE
A73: 2019-04-03 | B73: 539402 | C73: VAL | D73: AMARKUMAR SHAH HIRAL | E73: SELL | F73: 188000 | G73: 20.92 | H73: BSE
A74: 2019-04-03 | B74: 539402 | C74: VAL | D74: SAJANKUMAR RAMESHWARLAL BAJAJ | E74: BUY | F74: 188000 | G74: 20.92 | H74: BSE
A75: 2019-04-03 | B75: 541167 | C75: YASHO | D75: OVERSKUD MULTI ASSET MANAGEMENT PRIVATE LIMITED | E75: SELL | F75: 64800 | G75: 130 | H75: BSE
A76: 2019-04-03 | B76: 541167 | C76: YASHO | D76: NOPEA CAPITAL SERVICES PRIVATE LIMITED | E76: BUY | F76: 66000 | G76: 129.85 | H76: BSE
A77: 2019-04-03 | B77: 522108 | C77: YUKEN | D77: BABUBHAI PURUSHOTTAMDAS STOCK BROKERS PVT LTD | E77: BUY | F77: 68518 | G77: 713.36 | H77: BSE
A78: 2019-04-03 | B78: ARTEDZ | C78: Artedz Fabs Limited | D78: CNM FINVEST PRIVATE LIMITED . | E78: BUY | F78: 144000 | G78: 42.01 | H78: NSE
A79: 2019-04-03 | B79: ARTEDZ | C79: Artedz Fabs Limited | D79: VIPUL MOHAN PATEL | E79: BUY | F79: 48000 | G79: 41.98 | H79: NSE
A80: 2019-04-03 | B80: DHFL | C80: Dewan Housing Fin Corp | D80: TOWER RESEARCH CAPITAL MARKETS INDIA PRIVATE LIMITED | E80: BUY | F80: 1892151 | G80: 149.3 | H80: NSE
A81: 2019-04-03 | B81: JAKHARIA | C81: JAKHARIA FABRIC LIMITED | D81: NOPEA CAPITAL SERVICE PRIVATE LIMITED | E81: BUY | F81: 36000 | G81: 182 | H81: NSE
A82: 2019-04-03 | B82: JETAIRWAYS | C82: Jet Airways (India) Ltd. | D82: CROSSLAND TRADING CO | E82: BUY | F82: 679726 | G82: 254.25 | H82: NSE
A83: 2019-04-03 | B83: JETAIRWAYS | C83: Jet Airways (India) Ltd. | D83: TOWER RESEARCH CAPITAL MARKETS INDIA PRIVATE LIMITED | E83: BUY | F83: 1008288 | G83: 254.95 | H83: NSE
A84: 2019-04-03 | B84: KARDA | C84: Karda Constructions Ltd | D84: NEERAJ YADAV | E84: BUY | F84: 77196 | G84: 189.91 | H84: NSE
A85: 2019-04-03 | B85: KARDA | C85: Karda Constructions Ltd | D85: ODYSSEY CORPORATION LIMITED | E85: BUY | F85: 70214 | G85: 186.59 | H85: NSE
A86: 2019-04-03 | B86: KARDA | C86: Karda Constructions Ltd | D86: VINOD VILAS SABLE | E86: BUY | F86: 70115 | G86: 186.96 | H86: NSE
A87: 2019-04-03 | B87: MAZDA | C87: Mazda Limited | D87: MAZDA LIMITED | E87: BUY | F87: 24327 | G87: 445.84 | H87: NSE
A88: 2019-04-03 | B88: RIIL | C88: Reliance Indl Infra Ltd | D88: BERKELEY SECURITIES LIMITED | E88: BUY | F88: 102947 | G88: 335.03 | H88: NSE
A89: 2019-04-03 | B89: SHK | C89: S H Kelkar and Co. Ltd. | D89: FIDELITY INVESTMENT TRUST FIDELITY SERIES EMERGING MARKETS FUND | E89: BUY | F89: 813704 | G89: 151.17 | H89: NSE
A90: 2019-04-03 | B90: SSINFRA | C90: S S Infra Devp Consl Ltd | D90: VIVEK GAUTAM HUF | E90: BUY | F90: 78000 | G90: 15 | H90: NSE
A91: 2019-04-03 | B91: ARTEDZ | C91: Artedz Fabs Limited | D91: NIRAJ LAHERCHAND MODI | E91: SELL | F91: 51000 | G91: 41.95 | H91: NSE
A92: 2019-04-03 | B92: ARTEDZ | C92: Artedz Fabs Limited | D92: SALVATION DEVELOPERS LIMITED | E92: SELL | F92: 84000 | G92: 42.09 | H92: NSE
A93: 2019-04-03 | B93: ASTRAZEN | C93: AstraZeneca Pharma India | D93: ICICI PRUDENTIAL MUTUAL FUND A/C VOLATILITY ADVANTAGE PLAN | E93: SELL | F93: 125000 | G93: 2000 | H93: NSE
A94: 2019-04-03 | B94: DHFL | C94: Dewan Housing Fin Corp | D94: TOWER RESEARCH CAPITAL MARKETS INDIA PRIVATE LIMITED | E94: SELL | F94: 1892151 | G94: 149.41 | H94: NSE
A95: 2019-04-03 | B95: IEX | C95: Indian Energy Exc Ltd | D95: SIGULER GUFF NJDM INVESTMENT HOLDINGS LTD | E95: SELL | F95: 3000000 | G95: 161.5 | H95: NSE
A96: 2019-04-03 | B96: JAKHARIA | C96: JAKHARIA FABRIC LIMITED | D96: OVERSKUD MULTI ASSET MANAGEMENT PRIVATE LIMITED | E96: SELL | F96: 21600 | G96: 182 | H96: NSE
A97: 2019-04-03 | B97: JETAIRWAYS | C97: Jet Airways (India) Ltd. | D97: CROSSLAND TRADING CO | E97: SELL | F97: 679726 | G97: 254.3 | H97: NSE
A98: 2019-04-03 | B98: JETAIRWAYS | C98: Jet Airways (India) Ltd. | D98: TOWER RESEARCH CAPITAL MARKETS INDIA PRIVATE LIMITED | E98: SELL | F98: 1008288 | G98: 255 | H98: NSE
A99: 2019-04-03 | B99: KARDA | C99: Karda Constructions Ltd | D99: NEERAJ YADAV | E99: SELL | F99: 77196 | G99: 190.21 | H99: NSE
A100: 2019-04-03 | B100: KARDA | C100: Karda Constructions Ltd | D100: ODYSSEY CORPORATION LIMITED | E100: SELL | F100: 70414 | G100: 187.04 | H100: NSE
A101: 2019-04-03 | B101: KARDA | C101: Karda Constructions Ltd | D101: VINOD VILAS SABLE | E101: SELL | F101: 70115 | G101: 189.9 | H101: NSE
A102: 2019-04-03 | B102: PRESTIGE | C102: Prestige Estate Ltd | D102: JASMINE CAPITAL INVESTMENTS PTE LTD | E102: SELL | F102: 3500000 | G102: 255 | H102: NSE
A103: 2019-04-03 | B103: RIIL | C103: Reliance Indl Infra Ltd | D103: BERKELEY SECURITIES LIMITED | E103: SELL | F103: 102947 | G103: 333.26 | H103: NSE
A104: 2019-04-03 | B104: RPPINFRA | C104: R.P.P. Infra Projects Ltd | D104: KAMALASINI TRADELINK PVT LTD | E104: SELL | F104: 150000 | G104: 132.01 | H104: NSE
A105: 2019-04-03 | B105: SSINFRA | C105: S S Infra Devp Consl Ltd | D105: PRITI GAUTAM | E105: SELL | F105: 78000 | G105: 15 | H105: NSE

Sheet Call Tracker (Equity & F&O)
M5: Back To Main Page
A6: Retail Research Technical Calls & Fundamental Performance Report for the month of April -2019
M7: =Main!B10 -> 2019-04-04
B8: Positional Call
A9: Sr.no | B9: Date | D9: Company | E9: Rec | F9: Rec Price | G9: Stop Loss*** | H9: Call Closed At | I9: Target | J9: Remark | K9: Profit / Loss per Share | L9: Gain / Loss % | M9: Status | N9: Closed Date | O9: NSE Closed Price
A10: 1 | B10: 2019-03-07 | D10: RAYMOND | E10: Sell | F10: 825-830 | G10: 888.8 | I10: 720-730 | J10: Open | O10: =VLOOKUP(D10,Sheet2!A16:M1811,6,0) -> 809.2 | R10: R
A11: 2 | B11: 2019-03-13 | D11: DLF | E11: Sell | F11: 193 | G11: 206.6 | H11: 206.6 | I11: 164-168 | J11: Loss of Rs.13.6/- | K11: =F11-G11 -> -13.6 | L11: =K11/F11 -> -7.05% | M11: Unsuccessful | N11: 2019-04-03 | R11: R
A12: 3 | B12: 2019-03-15 | D12: OFSS | E12: Buy | F12: 3395 | G12: 3250 | H12: 3497 | I12: 3650-3700 | J12: Profit of Rs.102/- | K12: =H12-F12 -> 102 | L12: =K12/F12 -> 3.00% | M12: Successful | N12: 2019-04-03 | R12: H
A13: 4 | B13: 2019-03-20 | D13: HEROMOTOCO | E13: Buy | F13: 2610-2630 | G13: 2490 | I13: 2850-2900 | J13: Open | O13: =VLOOKUP(D13,Sheet2!A19:M1814,6,0) -> 2580.45 | R13: H
A14: 5 | B14: 2019-03-25 | D14: MARUTI | E14: Buy | F14: 6600 | G14: 6290 | H14: 6940 | I14: 7000-7100 | J14: Profit of Rs.340/- | K14: =H14-F14 -> 340 | L14: =K14/F14 -> 5.15% | M14: Successful | N14: 2019-04-03 | R14: R
A15: 6 | B15: 2019-04-01 | D15: WIPRO | E15: Buy | F15: 257-259 | G15: 248 | I15: 280 | J15: Open | O15: =VLOOKUP(D15,Sheet2!A21:M1816,6,0) -> 261.65 | R15: H
A16: 7 | B16: 2019-04-03 | D16: BOSCHLTD | E16: Buy | F16: 17950-18000 | G16: 16850 | I16: 19500-20000 | J16: Open | O16: =VLOOKUP(D16,Sheet2!A22:M1817,6,0) -> 18005.95 | R16: R
A21: CLBS = Closing Basis *** | F21: Reinitiated $
A22: Dividend adjusted <> | F22: Revised stoploss #
A23: Part book {}
A24: Master Trade High Risk
A25: Sr.no | B25: Date | D25: Company | E25: Rec | F25: Rec Price | G25: Stop Loss | H25: Call Closed At | I25: Target | J25: Remark | K25: Profit / Loss per share | L25: Gain / Loss per Lot | M25: Lot | N25: Status | O25: Closed Date
A40: Master Trade Medium Risk
A41: Sr.no | B41: Date | D41: Company | E41: Rec | F41: Rec Price | G41: Stop Loss | H41: Call Closed At | I41: Target | J41: Remark | K41: Profit/ Loss per lot | L41: Gain / Loss per Lot | M41: Lot | N41: Status | O41: Closed Date
A42: 1 | B42: 2019-04-02 | D42: NIFTY 04-APR 11650 PE | E42: Buy | F42: 44.5 | G42: 18 | H42: 18 | I42: 120 | J42: Loss of Rs.26.5/- | K42: =H42-F42 -> -26.5 | L42: =M42*K42 -> -1987.5 | M42: 75 | N42: Unsuccessful | O42: 2019-04-03 | R42: H
B48: Smart Delivery Trade
A49: Sr.no | B49: Date | D49: Company | E49: Rec | F49: Rec Price | G49: Stop Loss*** | H49: Call Closed At | I49: Target | J49: Remark | K49: Profit / Loss per Share | L49: Gain / Loss % | M49: Status | N49: Closed Date | O49: NSE Closed Price
A50: 1 | B50: 2019-03-08 | D50: NIITTECH | E50: Sell | F50: 1318-1322 | G50: 1361.6 | I50: 1250-1240 | J50: Open | O50: =VLOOKUP(D50,Sheet2!A84:M1579,6,0) -> 1339.35 | R50: R
A51: 2 | B51: 2019-03-22 | D51: TATAGLOBAL | E51: Buy | F51: 200 | G51: 193.7 | H51: 206.75 | I51: 210-214 | J51: Profit of Rs.6.75/- | K51: =H51-F51 -> 6.75 | L51: =K51/F51 -> 3.38% | M51: Successful | N51: 2019-04-01 | R51: R
A52: 3 | B52: 2019-04-01 | D52: HINDUNILVR | E52: Buy | F52: 1695-1700 | G52: 1645 | I52: 1780-1800 | J52: Open | O52: =VLOOKUP(D52,Sheet2!A86:M1581,6,0) -> 1670.8 | R52: H
A53: 4 | B53: 2019-04-02 | D53: DABUR | E53: Buy | F53: 399-401 | G53: 387.7 | I53: 418-422 | J53: Open | O53: =VLOOKUP(D53,Sheet2!A87:M1582,6,0) -> 403.45 | R53: R
A54: 5 | B54: 2019-04-03 | D54: HDFC | E54: Buy | F54: 2000-2020 | G54: 1945 | I54: 2100 | J54: Open | O54: =VLOOKUP(D54,Sheet2!A88:M1583,6,0) -> 2013.1 | R54: H
A55: 6 | B55: 2019-04-03 | D55: ICICIBANK | E55: Sell | F55: 400 | G55: 412 | H55: 392.5 | I55: 380-375 | J55: Profit of Rs.7.5/- | K55: =F55-H55 -> 7.5 | L55: =K55/F55 -> 1.88% | M55: Successful | N55: 2019-04-03 | R55: H
A56: 7 | B56: 2019-04-03 | D56: ESCORTS | E56: Sell | F56: 770-775 | G56: 795 | I56: 735-725 | J56: Open | O56: =VLOOKUP(D56,Sheet2!A90:M1585,6,0) -> 767.7 | R56: R
A62: CLBS = Closing Basis *** | F62: Reinitiated $
A63: Dividend adjusted <> | F63: Revised stoploss #
B66: Momentum Call
A67: Sr.no | B67: Date | D67: Company | E67: Rec | F67: Rec Price | G67: Stop Loss | H67: Call Closed At | I67: Target | J67: Remark | K67: Profit / Loss per Share/Lot | L67: Gain / Loss % | M67: Gain / Loss per Lot | N67: Lot | O67: Status | P67: Closed Date
A68: 1 | B68: 2019-03-28 | D68: AMARAJABAT APR FUT | E68: Buy | F68: 726 | G68: 709 | H68: 737 | I68: 750 | J68: Profit of Rs.11/- | K68: =H68-F68 -> 11 | M68: =N68*K68 -> 7700 | N68: 700 | O68: Successful | P68: 2019-04-01 | R68: N
A69: 2 | B69: 2019-04-01 | D69: GRASIM APR FUT | E69: Buy | F69: 870 | G69: 854 | H69: 854 | I69: 895 | J69: Loss of Rs.16/- | K69: =H69-F69 -> -16 | M69: -12000 | N69: 750 | O69: UnSuccessful | P69: 2019-04-02 | R69: N
A70: 3 | B70: 2019-04-01 | D70: TATAELXSI APR FUT | E70: Buy | F70: 973 | G70: 943 | H70: 990 | I70: 1010 | J70: Profit of Rs.17/- | K70: =H70-F70 -> 17 | M70: =N70*K70 -> 6800 | N70: 400 | O70: Successful | P70: 2019-04-02 | R70: N
A71: 4 | B71: 2019-04-01 | D71: MCDOWELL-N APR FUT | E71: Sell | F71: 554.5 | G71: 565 | H71: 551 | I71: 538 | J71: Profit of Rs.3.5/- | K71: =F71-H71 -> 3.5 | M71: =N71*K71 -> 4375 | N71: 1250 | O71: Successful | P71: 2019-04-02 | R71: N
A72: 5 | B72: 2019-04-02 | D72: HINDALCO APR FUT | E72: Sell | F72: 218.5 | G72: 221.6 | H72: 216 | I72: 212 | J72: Profit of Rs.2.5/- | K72: =F72-H72 -> 2.5 | M72: =N72*K72 -> 8750 | N72: 3500 | O72: Successful | P72: 2019-04-02 | R72: R
A73: 6 | B73: 2019-04-02 | D73: BHARTIARTL APR FUT | E73: Sell | F73: 361 | G73: 367.7 | H73: 356.5 | I73: 346-344 | J73: Profit of Rs.4.5/- | K73: =F73-H73 -> 4.5 | M73: =N73*K73 -> 7650 | N73: 1700 | O73: Successful | P73: 2019-04-02 | R73: R
A74: 7 | B74: 2019-04-02 | D74: TECHM APR FUT | E74: Buy | F74: 789-790 | G74: 779.5 | I74: 805 | J74: Open | R74: N
A75: 8 | B75: 2019-04-03 | D75: BHARTIARTL APR FUT | E75: Sell | F75: 363 | G75: 369.7 | H75: 357.5 | I75: 346-344 | J75: Profit of Rs.5.5/- | K75: =F75-H75 -> 5.5 | M75: =N75*K75 -> 9350 | N75: 1700 | O75: Successful | P75: 2019-04-03 | R75: R
A76: 9 | B76: 2019-04-03 | D76: HINDALCO APR FUT | E76: Sell | F76: 219.5 | G76: 222.6 | H76: 216.75 | I76: 213 | J76: Profit of Rs.2.75/- | K76: =F76-H76 -> 2.75 | M76: 9625 | N76: 3500 | O76: Successful | P76: 2019-04-03 | R76: R
A77: 10 | B77: 2019-04-03 | D77: TVSMOTOR APR FUT | E77: Sell | F77: 489 | G77: 501 | H77: 481.5 | I77: 470 | J77: Profit of Rs.7.5/- | K77: =F77-H77 -> 7.5 | M77: =N77*K77 -> 7500 | N77: 1000 | O77: Successful | P77: 2019-04-03 | R77: N
A85: CLBS = Closing Basis ***
A86: Dividend adjusted <> | F86: Reinitiated $
F87: Revised stoploss #
B88: Quick Pick Intraday
A89: Sr.no | B89: Date | D89: Company | E89: Rec | F89: Rec Price | G89: Stop Loss*** | H89: Call Closed At | I89: Target | J89: Remark | K89: Profit / Loss per Share | L89: Status | M89: Closed Date
A103: Techno -Funda (positional)
A104: Sr.no | B104: Date | D104: Company | E104: Rec | F104: Rec Price | G104: Stop Loss*** | H104: Call Closed At | I104: Target | J104: Remark | K104: Profit / Loss per Share | L104: Gain / Loss % | M104: Status | N104: Closed Date | O104: NSE Closed Price
A107: CLBS = Closing Basis *** | F107: Reinitiated $
A108: Dividend adjusted <> | F108: Revised stoploss #
B113: Investment Idea
A114: Sr.no | B114: Date | D114: Company | E114: Rec | F114: Rec Price | G114: Point of Review | H114: Close Rate | I114: Target | J114: Remark | K114: Profit / Loss per Share | L114: Gain / Loss % | M114: Status | N114: Closed Date
A115: 1 | B115: 2013-11-01 | D115: L&T Finance Holding | E115: Accu | F115: 82.00 | G115: - | H115: 100 | I115: 100.00 | J115: Target Achieved | K115: =H115-F115 -> 18.00 | L115: =K115/F115 -> 21.95% | M115: Successful | N115: 2016-10-14
A116: 2 | B116: 2014-06-04 | D116: Finolex Inds | E116: Buy | F116: 257.00 | G116: - | H116: 300 | I116: 300.00 | J116: Target Achieved | K116: =H116-F116 -> 43.00 | L116: 16.73% | M116: Successful | N116: 2014-07-02
A117: =1+A116 -> 3 | B117: 2014-07-08 | D117: JK Cement | E117: Buy | F117: 393.00 | G117: - | H117: 468 | I117: 468.00 | J117: Target Achieved | K117: =H117-F117 -> 75.00 | L117: 19.08% | M117: Successful | N117: 2014-08-12
A118: 4 | B118: 2014-08-06 | D118: Finolex Cables | E118: Buy | F118: 205.00 | G118: - | H118: 275 | I118: 250.00 | J118: Target Achieved | K118: 70.00 | L118: 34.15% | M118: Successful | N118: 2014-11-19
A119: 5 | B119: 2014-09-04 | D119: Exide Inds | E119: Buy | F119: 162.00 | G119: - | H119: 190 | I119: 190.00 | J119: Target Achieved | K119: 28.00 | L119: 17.28% | M119: Successful | N119: 2015-01-02
A120: 6 | B120: 2014-09-04 | D120: Deepak Nitrite | E120: Buy | F120: 75.00 | G120: - | H120: 91.5 | I120: 95-100 | J120: Profit of Rs.16.50/- | K120: 16.50 | L120: 22.00% | M120: Successful | N120: 2014-11-11
A121: 7 | B121: 2014-10-01 | D121: Mercks | E121: Buy | F121: 850.00 | G121: - | H121: 982.5 | I121: 1050.00 | J121: Profit of Rs.132.50/- | K121: 132.50 | L121: 15.59% | M121: Successful | N121: 2015-02-04
A122: 8 | B122: 2014-10-01 | D122: Grindwell Norton | E122: Buy | F122: 475.00 | G122: - | H122: 515 | I122: 600.00 | J122: Profit of Rs.40/- | K122: 40.00 | L122: 8.42% | M122: Successful | N122: 2014-10-27
A123: 9 | B123: 2014-10-01 | D123: Snowman Logistics | E123: Buy | F123: 86.00 | G123: - | H123: 99 | I123: 140.00 | J123: Profit of Rs.13.00/- | K123: 13.00 | L123: 15.12% | M123: Successful | N123: 2014-10-27
A124: 10 | B124: 2014-10-14 | D124: Birla Corp | E124: Buy | F124: 496.60 | G124: - | H124: 621 | I124: 580.00 | J124: Target Achieved | K124: 124.40 | L124: 25.05% | M124: Successful | N124: 2016-08-23
A125: 11 | B125: 2014-10-14 | D125: Ultratech Cem | E125: Buy | F125: 2481.90 | G125: - | H125: 2840 | I125: 2870.00 | J125: Profit of Rs.358.10/- | K125: 358.10 | L125: 14.43% | M125: Successful | N125: 2015-01-13
A126: =1+A123 -> 10 | B126: 2014-10-16 | D126: Sintex Inds | E126: Buy | F126: 84.50 | G126: - | H126: 93 | I126: 110.00 | J126: Profit of Rs.8.50/- | K126: 8.50 | L126: 10.06% | M126: Successful | N126: 2014-10-27
A127: =1+A126 -> 11 | B127: 2014-10-16 | D127: HSIL | E127: Buy | F127: 401.00 | G127: - | H127: 428 | I127: 450.00 | J127: Profit of Rs.27.00/- | K127: 27.00 | L127: 6.73% | M127: Successful | N127: 2015-01-16
A128: 12 | B128: 2014-10-16 | D128: Eveready Inds | E128: Buy | F128: 101.00 | G128: - | H128: 112 | I128: 120.00 | J128: Profit of Rs.11.00/- | K128: 11.00 | L128: 10.89% | M128: Successful | N128: 2014-10-27
A129: 13 | B129: 2014-11-11 | D129: Pennar Inds | E129: Buy | F129: 59.00 | G129: - | H129: 76 | I129: 76.00 | J129: Target Achieved | K129: 17.00 | L129: 28.81% | M129: Successful | N129: 2017-10-24
A130: 14 | B130: 2014-11-11 | D130: Snowman Logistics | E130: Buy | F130: 99.00 | G130: - | H130: 120 | I130: 120.00 | J130: Profit of Rs.21/- | K130: 21.00 | L130: 21.21% | M130: Successful | N130: 2014-11-17
A131: 15 | B131: 2014-11-13 | D131: Dharamsi Morarji Chem | E131: Buy | F131: 22.00 | G131: - | H131: 33.55 | I131: 32.00 | J131: Profit of Rs 11.55/- | K131: 11.55 | L131: 52.50% | M131: Successful | N131: 2015-07-03
A132: 16 | B132: 2014-12-03 | D132: Tatachem | E132: Buy | F132: 440.00 | G132: - | H132: 520 | I132: 520.00 | J132: Profit of Rs 80.00/- | K132: 80.00 | L132: 18.18% | M132: Successful | N132: 2015-07-23
A133: 17 | B133: 2014-12-03 | D133: Advanta | E133: Buy | F133: 360.00 | G133: - | H133: 427 | I133: 425.00 | J133: Profit of Rs.67.00/- | K133: 67.00 | L133: 18.61% | M133: Successful | N133: 2015-02-23
A134: 18 | B134: 2015-01-08 | D134: GDL | E134: Buy | F134: 360.00 | G134: - | H134: 455 | I134: 420.00 | J134: Profit of Rs.95.00/- | K134: 95.00 | L134: 26.39% | M134: Successful | N134: 2015-01-20
A135: 19 | B135: 2015-01-08 | D135: NRB Bearing | E135: Buy | F135: 130.00 | H135: 175.5 | I135: 165.00 | J135: Profit of Rs 45.50/- | K135: 45.50 | L135: 35.00% | M135: Successful | N135: 2017-12-19
A136: 20 | B136: 2015-02-05 | D136: GSFC | E136: Accu | F136: 98.00 | H136: 120 | I136: 120.00 | J136: Target Achieved | K136: 22.00 | L136: 22.45% | M136: Successful | N136: 2017-01-18
A137: 21 | B137: 2015-02-05 | D137: Sundrmfast | E137: Accu | F137: 196.00 | H137: 262 | I137: 255.00 | J137: Target Achieved | K137: 66.00 | L137: 33.67% | M137: Successful | N137: 2016-08-17
A138: 22 | B138: 2015-03-04 | D138: GPPL | E138: Accu | F138: 235 | H138: 77.00 | I138: 280-285 | J138: Loss of Rs.158/- | K138: =H138-F138 -> -158.00 | L138: -67.23% | M138: Unsuccessful | N138: 2019-02-26
A139: 23 | B139: 2015-03-04 | D139: ORIENTCEM | E139: Accu | F139: 185.00 | H139: 224 | I139: 220-225 | J139: Target Achieved | K139: 39.00 | L139: =K139/F139 -> 21.08% | M139: Successful | N139: 2016-10-04
A140: 24 | B140: 2015-03-27 | D140: PFS | E140: Accu | F140: 49-50 | I140: 67.00 | J140: Open
A141: 25 | B141: 2015-03-30 | D141: Walchandnagar Ind Ltd | E141: Accu | F141: 183.50 | H141: 219 | I141: 218.00 | J141: Profit of Rs.35.50/- | K141: 35.50 | L141: =K141/F141 -> 19.35% | M141: Successful | N141: 2015-04-09
A142: 26 | B142: 2015-04-20 | D142: Kalpataru Power Transmission Ltd | E142: Accu | F142: =(227+237)/2 -> 232.00 | H142: 298 | I142: 298.00 | J142: Target Achieved | K142: 66.00 | L142: 28.45% | M142: Successful | N142: 2017-03-29
A143: 27 | B143: 2015-05-04 | D143: Mastek Ltd | E143: Buy | F143: 385.00 | H143: =212.5+331 -> 543.5 | I143: 510.00 | J143: Profit of Rs 158.50/- | K143: 158.50 | L143: 41.17% | M143: Successful | N143: 2015-08-19
A144: 28 | B144: 2015-05-04 | D144: Suprajit Eng | E144: Buy | F144: 115.50 | H144: 146 | I144: 142.00 | J144: Profit of Rs 30.50/- | K144: 30.50 | L144: 26.41% | M144: Successful | N144: 2015-07-17
A145: 29 | B145: 2015-05-27 | D145: TCI | E145: Buy | F145: 237.50 | H145: 279.5 | I145: 278.00 | J145: Target Achieved | K145: 42.00 | L145: 17.68% | M145: Successful | N145: 2015-08-06
A146: 30 | B146: 2015-06-19 | D146: HSIL | E146: Accu | F146: 340.00 | H146: 448 | I146: 448.00 | J146: Target Achieved | K146: 108.00 | L146: 31.76% | M146: Successful | N146: 2017-10-10
A147: 31 | B147: 2015-07-06 | D147: Capital First | E147: Accu | F147: 390.00 | H147: 460 | I147: 460.00 | J147: Target Achieved | K147: 70.00 | L147: 17.95% | M147: Successful | N147: 2016-04-18
A148: 32 | B148: 2015-07-10 | D148: Dolphin OffShore | E148: Accu | F148: 122.5 | H148: 61.00 | I148: 172.00 | J148: Loss of Rs.61.50/- | K148: -61.50 | L148: -50.20% | M148: Unsuccessful | N148: 2018-08-21
A149: 33 | B149: 2015-08-03 | D149: Allcargo logistics | E149: Accu | F149: 297.50 | H149: 350 | I149: 360.00 | J149: Profit of Rs 52.50/- | K149: 52.50 | L149: =K149/F149 -> 17.65% | M149: Successful | N149: 2015-08-16
A150: 34 | B150: 2015-08-03 | D150: Camline Fine | E150: Accu | F150: 115.50 | H150: 149 | I150: 140.00 | J150: Profit of Rs 33.50/- | K150: 33.50 | L150: 29.00% | M150: Successful | N150: 2017-01-05
A151: 35 | B151: 2015-09-04 | D151: TCI | E151: Accu | F151: 226.00 | H151: 292 | I151: 292.00 | J151: Target Achieved | K151: 66.00 | L151: 29.20% | M151: Successful | N151: 2015-10-09
A152: 36 | B152: 2015-09-07 | D152: Kalpataru Power Transmission Ltd | E152: Accu | F152: 232.50 | H152: 312.5 | I152: 310.00 | J152: Target Achieved | K152: 80.00 | L152: 34.41% | M152: Successful | N152: 2017-03-29
A153: 37 | B153: 2015-09-21 | D153: LLOYD ELECTRIC & ENG LTD | E153: Accu | F153: 196.50 | H153: 238 | I153: 238.00 | J153: Target Achieved | K153: 41.50 | L153: 21.12% | M153: Successful | N153: 2015-10-14
A154: 38 | B154: 2015-09-24 | D154: L&T Finance Holding | E154: Accu | F154: 65.00 | H154: 82 | I154: 82.00 | J154: Target Achieved | K154: 17.00 | L154: 26.15% | M154: Successful | N154: 2016-07-27
A155: 39 | B155: 2015-10-14 | D155: KEC International ltd | E155: Accu | F155: 144.00 | H155: 182.5 | I155: 181.00 | J155: Target Achieved | K155: 38.50 | L155: 26.74% | M155: Successful | N155: 2017-03-23
A156: 40 | B156: 2015-10-14 | D156: Gruh Finance | E156: Accu | F156: 264.00 | H156: 311 | I156: 311.00 | J156: Target Achieved | K156: 47.00 | L156: 17.80% | M156: Successful | N156: 2016-08-22
A157: 41 | B157: 2015-11-10 | D157: Pidilitind | E157: Buy | F157: 549.50 | H157: 630 | I157: 630.00 | J157: Target Achieved | K157: 80.50 | L157: 14.65% | M157: Successful | N157: 2016-02-19
A158: 42 | B158: 2015-12-04 | D158: Zensar Technology | E158: Accu | F158: 1027.50 | H158: 1315 | I158: 1250.00 | J158: Target Achieved | K158: =H158-F158 -> 287.50 | L158: 27.98% | M158: Successful | N158: 2018-05-24
A159: 43 | B159: 2015-12-29 | D159: Vinati Organics Ltd | E159: Accu | F159: 465.00 | H159: 540 | I159: 540.00 | J159: Target Achieved | K159: 75.00 | L159: =K159/F159 -> 16.13% | M159: Successful | N159: 2016-06-09
A160: 44 | B160: 2016-01-11 | D160: GSFC | E160: Buy | F160: 81.00 | H160: 110 | I160: 110.00 | J160: Target Achieved | K160: 29.00 | L160: 35.80% | M160: Successful | N160: 2017-01-10
A161: 45 | B161: 2016-01-13 | D161: SSWL | E161: Buy | F161: 417.50 | H161: 547 | I161: 535.00 | J161: Target Achieved | K161: 129.50 | L161: 31.02% | M161: Successful | N161: 2016-07-27
A162: 46 | B162: 2016-02-08 | D162: Persistent System Ltd | E162: Accu | F162: 650.00 | H162: 800 | I162: 800.00 | J162: Target Achieved | K162: 150.00 | L162: 23.08% | M162: Successful | N162: 2018-02-23
A163: 47 | B163: 2016-03-04 | D163: UPL | E163: Accu | F163: 437.50 | H163: 504.5 | I163: 522.00 | J163: Profit of Rs.67/- | K163: 67.00 | L163: 15.31% | M163: Successful | N163: 2016-04-20
A164: 48 | B164: 2016-03-09 | D164: Ashoka Buildcon Ltd | E164: Accu | F164: 189.50 | H164: 218 | I164: 218.00 | J164: Target Achieved | K164: 28.50 | L164: 15.04% | M164: Successful | N164: 2017-10-26
A165: 49 | B165: 2016-04-11 | D165: PTC INDIA FIN SERV LTD | E165: Accu | F165: 36-37 | I165: 60.00 | J165: Open
A166: 50 | B166: 2016-04-12 | D166: CAMLINFINE $ | E166: Accu | F166: 93.00 | H166: 149 | I166: 140.00 | J166: Profit of Rs 56/- | K166: 56.00 | L166: =K166/F166 -> 60.22% | M166: Successful | N166: 2017-01-05
A167: 51 | B167: 2016-04-12 | D167: Greaves Cotton Ltd. | E167: Accu | F167: 130.00 | H167: 150 | I167: 150-155 | J167: Target Achieved | K167: 20.00 | L167: 15.38% | M167: Successful | N167: 2016-07-13
A168: 52 | B168: 2016-04-13 | D168: DHFL | E168: Accu | F168: 196.00 | H168: 299 | I168: 299.00 | J168: Target Achieved | K168: 103.00 | L168: 52.55% | M168: Successful | N168: 2016-09-07
A169: 53 | B169: 2016-04-13 | D169: Magma | E169: Accu | F169: 88.00 | H169: 103 | I169: 103.00 | J169: Target Achieved | K169: 15.00 | L169: 17.05% | M169: Successful | N169: 2016-06-09
A170: 54 | B170: 2016-05-02 | D170: KEC International ltd $ | E170: Accu | F170: 127.50 | H170: 148 | I170: 148-150 | J170: Target Achieved | K170: 20.50 | L170: 16.08% | M170: Successful | N170: 2016-07-13
A171: 55 | B171: 2016-05-03 | D171: Mindtree | E171: Accu | F171: 675.00 | H171: 815 | I171: 790-800 | J171: Target Achieved | K171: 140.00 | L171: 20.74% | M171: Successful | N171: 2018-02-23
A172: 56 | B172: 2016-06-01 | D172: Atulauto | E172: Accu | F172: 495-505 | I172: 565-570 | J172: Open
A173: 57 | B173: 2016-06-06 | D173: TRITURBINE | E173: Accu | F173: 110.00 | H173: 126.5 | I173: 125.00 | J173: Profit of Rs.16.50/- | K173: 16.50 | L173: =K173/F173 -> 15.00% | M173: Successful | N173: 2016-07-01
A174: 58 | B174: 2016-06-17 | D174: Pennar Industries Ltd | E174: Accu | F174: 44.00 | H174: 69.5 | I174: 69.50 | J174: Profit of Rs.25.50/- | K174: 25.50 | L174: =K174/F174 -> 57.95% | M174: Successful | N174: 2017-08-30
A175: 59 | B175: 2016-06-28 | D175: EVEREADY INDS. IND. LTD. | E175: Accu | F175: 262.50 | H175: 340 | I175: 333.00 | J175: Profit of Rs.77.50/- | K175: 77.50 | L175: =K175/F175 -> 29.52% | M175: Successful | N175: 2017-10-09
A176: 60 | B176: 2016-06-28 | D176: FIEM INDUSTRIES LIMITED | E176: Accu | F176: 840.00 | H176: 1230 | I176: 1230.00 | J176: Target Achieved | K176: 390.00 | L176: =K176/F176 -> 46.43% | M176: Successful | N176: 2016-10-06
A177: 61 | B177: 2016-07-05 | D177: Bajaj Corp Ltd | E177: Accu | F177: 395 | H177: 468.50 | I177: 510.00 | J177: Part profit of Rs.73.50/- | K177: 73.50 | L177: =K177/F177 -> 19% | M177: Successful | N177: 2017-08-30
A178: 62 | B178: 2016-08-02 | D178: GPPL $ | E178: Buy | F178: 169.5 | H178: 77.00 | I178: 198-200 | J178: Loss of Rs.92.5/- | K178: -92.50 | L178: =K178/F178 -> -54.57% | M178: Unsuccessful | N178: 2019-02-26
A179: 63 | B179: 2016-08-04 | D179: WONDERLA HOLIDAYS LTD | E179: Accu | F179: 395-405 | I179: 475.00 | J179: Open
A180: 64 | B180: 2016-08-11 | D180: CAMLINFINE | E180: Accu | F180: 86.50 | H180: 130 | I180: 130.00 | J180: Profit of Rs.43.50/- | K180: =H180-F180 -> 43.50 | L180: =K180/F180 -> 50.29% | M180: Successful | N180: 2017-12-22
A181: 65 | B181: 2016-08-18 | D181: GRANULES | E181: Accu | F181: 133.5 | H181: 126.50 | I181: 178.00 | J181: Exit | K181: -7.00 | L181: -5.24% | M181: Unsuccessful | N181: 2016-09-02
A182: 66 | B182: 2016-08-31 | D182: VA TECH WABAG | E182: Accu | F182: 560.00 | H182: 725 | I182: 725.00 | J182: Target Achieved | K182: 165.00 | L182: 29.46% | M182: Successful | N182: 2016-03-27
A183: 67 | B183: 2016-09-01 | D183: SKIPPER LIMITED | E183: Accu | F183: 160.50 | H183: 210 | I183: 210.00 | J183: Target Achieved | K183: 49.50 | L183: 30.84% | M183: Successful | N183: 2017-05-16
A184: 68 | B184: 2016-10-03 | D184: IFB Industries | E184: Accu | F184: 430.00 | H184: 596 | I184: 575.00 | J184: Profit of Rs.166/- | K184: 166.00 | L184: 38.60% | M184: Successful | N184: 2017-02-03
A185: 69 | B185: 2016-10-14 | D185: ASIANTILES | E185: Accu | F185: 280.00 | H185: 345 | I185: 345.00 | J185: Target Achieved | K185: 65.00 | L185: 23.21% | M185: Successful | N185: 2017-03-20
A186: 70 | B186: 2016-10-14 | D186: DEEPIND | E186: Accu | F186: 245.00 | H186: 325.5 | I186: 330.00 | J186: Profit of Rs.80.5/- | K186: 80.50 | L186: 32.86% | M186: Successful | N186: 2017-02-03
A187: 71 | B187: 2016-10-17 | D187: DCBBANK | E187: Accu | F187: 125.00 | H187: 160 | I187: 160.00 | J187: Target Achieved | K187: 35.00 | L187: 28.00% | M187: Successful | N187: 2017-03-09
A188: 72 | B188: 2016-10-17 | D188: ORIENTREF | E188: Accu | F188: 114.00 | H188: 145 | I188: 145.00 | J188: Target Achieved | K188: 31.00 | L188: =K188/F188 -> 27.19% | M188: Successful | N188: 2017-05-04
A189: 73 | B189: 2016-10-17 | D189: GANECOS | E189: Accu | F189: 212.00 | H189: 280 | I189: 276.00 | J189: Profit of Rs.68/- | K189: 68.00 | L189: =K189/F189 -> 32.08% | M189: Successful | N189: 2017-05-03
A190: 74 | B190: 2016-11-04 | D190: NBCC | E190: Accu | F190: 155.00 | H190: 210 | I190: 210.00 | J190: Profit of Rs.55/- | K190: 55.00 | L190: =K190/F190 -> 35.48% | M190: Successful | N190: 2017-07-28
A191: 75 | B191: 2016-12-06 | D191: PRECAM | E191: Accu | F191: 150.5 | H191: 72.50 | I191: 174.00 | J191: Loss of Rs.78/- | K191: -78.00 | L191: =K191/F191 -> -51.83% | M191: Unsuccessful | N191: 2018-08-21
A192: 76 | B192: 2016-12-08 | D192: INFRATEL | E192: Accu | F192: 380.00 | H192: 478 | I192: 468.00 | J192: Target Achieved | K192: 98.00 | L192: =K192/F192 -> 25.79% | M192: Successful | N192: 2017-10-17
A193: 77 | B193: 2016-12-30 | D193: GODREJPROP | E193: Accu | F193: 305.00 | H193: 375 | I193: 375.00 | J193: Target Achieved | K193: 70.00 | L193: 22.95% | M193: Successful | N193: 2017-02-02
A194: 78 | B194: 2017-01-04 | D194: DEEPAKNTR | E194: Accu | F194: 99.50 | H194: 158 | I194: 158.00 | J194: Target Achieved | K194: 58.50 | L194: 58.79% | M194: Successful | N194: 2017-06-12
A195: 79 | B195: 2017-02-20 | D195: SUBROS | E195: Accu | F195: 202.50 | H195: 234 | I195: 234.00 | J195: Target Achieved | K195: 31.50 | L195: 15.56% | M195: Successful | N195: 2017-04-11
A196: 80 | B196: 2017-02-20 | D196: RECLTD | E196: Accu | F196: 140.50 | H196: 220 | I196: 220.00 | J196: Target Achieved | K196: 79.50 | L196: 56.58% | M196: Successful | N196: 2017-05-09
A197: 81 | B197: 2017-03-24 | D197: VRLLOG | E197: Accu | F197: 300.50 | H197: 417.5 | I197: 420.00 | J197: Profit of Rs.117/- | K197: 117.00 | L197: 38.94% | M197: Successful | N197: 2017-12-01
A198: 82 | B198: 2017-03-24 | D198: FIEMIND | E198: Accu | F198: 850.00 | H198: 1042.5 | I198: 1023.00 | J198: Profit of Rs 192.50/- | K198: 192.50 | L198: 22.65% | M198: Successful | N198: 2017-04-05
A199: 83 | B199: 2017-04-05 | D199: RATNAMANI | E199: Accu | F199: 785.00 | H199: 930 | I199: 920.00 | J199: Profit of Rs.145/- | K199: 145.00 | L199: 18.47% | M199: Successful | N199: 2017-08-29
A200: 84 | B200: 2017-04-06 | D200: ZEEMEDIA | E200: Accu | F200: 40 | H200: 13.10 | I200: 60.00 | J200: Loss of Rs.26.9/- | K200: =H200-F200 -> -26.90 | L200: -67.25% | M200: Unsuccessful | N200: 2018-02-07
A201: 85 | B201: 2017-04-12 | D201: DABUR | E201: Accu | F201: 289.50 | H201: 354 | I201: 360.00 | J201: Profit of Rs.64.5/- | K201: 64.50 | L201: =K201/F201 -> 22.28% | M201: Successful | N201: 2017-11-01
A202: 86 | B202: 2017-04-20 | D202: KPRMILL | E202: Accu | F202: 700.00 | H202: 840 | I202: 840.00 | J202: Profit of Rs.140/- | K202: 140.00 | L202: =K202/F202 -> 20.00% | M202: Successful | N202: 2017-06-07
A203: 87 | B203: 2017-05-22 | D203: GREAVESCOT | E203: Accu | F203: 153-158 | I203: 190.00 | J203: Open
A204: 88 | B204: 2017-06-01 | D204: ESSELPACK | E204: Accu | F204: 130 | H204: 155.50 | I204: 170.00 | J204: Part profit of Rs.51/- | K204: =H204-F204 -> 25.50 | L204: =K204/F204 -> 20% | M204: Successful | N204: 2017-11-17
A205: 89 | B205: 2017-06-15 | D205: KEI | E205: Accu | F205: 214.50 | H205: 262 | I205: 262.00 | J205: Profit of Rs.47.5/- | K205: =H205-F205 -> 47.50 | L205: 22.14% | M205: Successful | N205: 2017-08-30
A206: 90 | B206: 2017-07-17 | D206: MAYURUNIQ | E206: Accu | F206: 370.00 | H206: 447.5 | I206: 450.00 | J206: Target Achieved | K206: 77.50 | L206: 20.95% | M206: Successful | N206: 2017-10-27
A207: 91 | B207: 2017-07-27 | D207: RAMCOCEM | E207: Accu | F207: 657.50 | H207: 825 | I207: 820.00 | J207: Target Achieved | K207: 167.50 | L207: 25.48% | M207: Successful | N207: 2017-12-21
A208: 92 | B208: 2017-08-17 | D208: FINPIPE | E208: Accu | F208: 605.00 | H208: 750 | I208: 750.00 | J208: Profit of Rs.145/- | K208: 145.00 | L208: 23.97% | M208: Successful | N208: 2017-10-19
A209: 93 | B209: 2017-09-01 | D209: SHK | E209: Accu | F209: 255 | H209: 307.50 | I209: 320.00 | J209: Part profit of Rs.52.5/- | K209: 52.50 | L209: 21% | M209: Successful | N209: 2017-12-29
A210: 94 | B210: 2017-09-19 | D210: SKIPPER | E210: Accu | F210: 215.00 | H210: 258 | I210: 258.00 | J210: Target Achieved | K210: 43.00 | L210: 20.00% | M210: Successful | N210: 2017-11-01
A211: 95 | B211: 2017-09-20 | D211: CAMLINFINE | E211: Accu | F211: 75.00 | H211: 90 | I211: 90.00 | J211: Profit of Rs.15.00/- | K211: 15.00 | L211: 20.00% | M211: Successful | N211: 2017-10-11
A212: 96 | B212: 2017-10-03 | D212: GNA | E212: Accu | F212: 315.00 | H212: 392 | I212: 384.00 | J212: Profit of Rs.77/- | K212: 77.00 | L212: 24.44% | M212: Successful | N212: 2017-10-09
A213: 97 | B213: 2017-10-05 | D213: NOCIL | E213: Accu | F213: 145.00 | H213: 179 | I213: 180.00 | J213: Profit of Rs.34/- | K213: 34.00 | L213: 23.45% | M213: Successful | N213: 2017-10-17
A214: 98 | B214: 2017-10-06 | D214: CENTURYPLY | E214: Accu | F214: 256.00 | H214: 323 | I214: 320.00 | J214: Target Achieved | K214: 67.00 | L214: 26.17% | M214: Successful | N214: 2017-11-28
A215: 99 | B215: 2017-10-09 | D215: RECLTD | E215: Accu | F215: 152.5 | H215: 183.50 | I215: 210.00 | J215: Part Profit of Rs.31/- | K215: 31.00 | L215: 20% | M215: Successful | N215: 2017-11-03
A216: 100 | B216: 2017-10-09 | D216: EIHOTEL | E216: Accu | F216: 137.50 | H216: 184 | I216: 183.00 | J216: Profit of Rs.46.5/- | K216: 46.50 | L216: 33.82% | M216: Successful | N216: 2018-01-08
A217: 101 | B217: 2017-10-10 | D217: BOROSIL | E217: Accu | F217: 895.00 | H217: 1122.5 | I217: 1078.00 | J217: Profit of Rs.227.5/- | K217: 227.50 | L217: 25.42% | M217: Successful | N217: 2018-01-17
A218: 102 | B218: 2017-10-10 | D218: NRBBEARING | E218: Accu | F218: 125.50 | H218: 158 | I218: 155.00 | J218: Profit of Rs.32.5/- | K218: 32.50 | L218: 25.90% | M218: Successful | N218: 2017-11-28
A219: 103 | B219: 2017-10-12 | D219: CYIENT | E219: Accu | F219: 525.00 | H219: 629 | I219: 629.00 | J219: Target Achieved | K219: 104.00 | L219: 19.81% | M219: Successful | N219: 2018-01-19
A220: 104 | B220: 2017-11-07 | D220: HATSUN | E220: Accu | F220: 740.00 | H220: 892.5 | I220: 900.00 | J220: Profit of Rs.152.5/- | K220: 152.50 | L220: 20.61% | M220: Successful | N220: 2017-11-13
A221: 105 | B221: 2017-12-04 | D221: SANGHIIND | E221: Accu | F221: 118.50 | H221: 143.5 | I221: 145.00 | J221: Profit of Rs.25/- | K221: 25.00 | L221: 21.10% | M221: Successful | N221: 2017-12-28
A222: 106 | B222: 2017-12-05 | D222: ALLCARGO | E222: Accu | F222: 177.5 | H222: 215.00 | I222: 230.00 | J222: Part Profit of Rs.37.5/- | K222: 37.50 | L222: 21% | M222: Successful | N222: 2017-12-27
A223: 107 | B223: 2017-12-21 | D223: KAJARIACER | E223: Accu | F223: 710-720 | I223: 872.00 | J223: Open
A224: 108 | B224: 2017-12-29 | D224: GNA | E224: Accu | F224: 435.00 | H224: 542.5 | I224: 539.00 | J224: Target Achieved | K224: =H224-F224 -> 107.50 | L224: =K224/F224 -> 24.71% | M224: Successful | N224: 2018-04-16
A225: 109 | B225: 2017-12-29 | D225: ZENSARTECH | E225: Accu | F225: 885.00 | H225: 1090 | I225: 1084.00 | J225: Target Achieved | K225: 205.00 | L225: =K225/F225 -> 23.16% | M225: Successful | N225: 2018-04-23
A226: 110 | B226: 2018-02-07 | D226: GREAVESCOT | E226: Accu | F226: 130-132 | I226: 190.00 | J226: Open
A227: 111 | B227: 2018-02-27 | D227: MOLDTKPAC | E227: Accu | F227: 320-330 | I227: 398.00 | J227: Open
A228: 112 | B228: 2018-03-05 | D228: LICHSGFIN | E228: Accu | F228: 505-515 | I228: 672.00 | J228: Open
A229: 113 | B229: 2018-04-02 | D229: EVERESTIND | E229: Accu | F229: 492.5 | H229: 589.00 | I229: 613.00 | J229: Part Profit of Rs.37.5/- | K229: =H229-F229 -> 96.50 | L229: =K229/F229 -> 20% | M229: Successful | N229: 2018-08-21
A230: 114 | B230: 2018-04-04 | D230: GPPL | E230: Accu | F230: 141.5 | H230: 77.00 | I230: 180.00 | J230: Loss of Rs.64.5/- | K230: -64.50 | L230: -45.58% | M230: Unsuccessful | N230: 2019-02-26
A231: 115 | B231: 2018-04-19 | D231: MANPASAND | E231: Accu | F231: 430 | H231: 220.00 | I231: 537.00 | J231: Loss of Rs.210/- | K231: =H231-F231 -> -210.00 | L231: =K231/F231 -> -48.84% | M231: Unsuccessful | N231: 2018-06-01
A232: 116 | B232: 2018-04-30 | D232: HEIDELBERG | E232: Accu | F232: 156 | H232: 182.50 | I232: 196.00 | J232: Part Profit of Rs.26.5/- | K232: 26.50 | L232: 17% | M232: Successful | N232: 2019-03-11
A233: 117 | B233: 2018-05-17 | D233: PHILIPCARB | E233: Accu | F233: 230-240 | I233: 348.00 | J233: Open
A234: 118 | B234: 2018-06-07 | D234: KEC | E234: Accu | F234: 340-345 | I234: 439.00 | J234: Open
A235: 119 | B235: 2018-07-04 | D235: ASHOKLEY | E235: Accu | F235: 125-130 | I235: 170.00 | J235: Open
A236: 120 | B236: 2018-07-13 | D236: FCONSUMER | E236: Accu | F236: 46-47 | I236: 59.00 | J236: Open
A237: 121 | B237: 2018-07-25 | D237: ZEEMEDIA | E237: Accu | F237: 27.5 | H237: 13.10 | I237: 60.00 | J237: Loss of Rs.14.40/- | K237: =H237-F237 -> -14.40 | L237: =K237/F237 -> -52.36% | M237: Unsuccessful | N237: 2018-02-07
A238: 122 | B238: 2018-08-06 | D238: GABRIEL | E238: Accu | F238: 148-152 | I238: 182.00 | J238: Open
A239: 123 | B239: 2018-08-23 | D239: INDIANHUME | E239: Accu | F239: 285.00 | H239: 355 | I239: 364.00 | J239: Profit of Rs.70/- | K239: =H239-F239 -> 70.00 | L239: =K239/F239 -> 24.56% | M239: Successful | N239: 2018-12-21
A240: 124 | B240: 2018-08-29 | D240: GRINDWELL | E240: Accu | F240: 520-530 | I240: 635.00 | J240: Open
A241: 125 | B241: 2018-10-22 | D241: FINPIPE | E241: Accu | F241: 475.00 | H241: 574 | I241: 570.00 | J241: Target Achieved | K241: =H241-F241 -> 99.00 | L241: =K241/F241 -> 20.84% | M241: Successful | N241: 2018-10-30
A242: 126 | B242: 2018-10-23 | D242: JKPAPER | E242: Accu | F242: 158-162 | I242: 191.00 | J242: Open
A243: 127 | B243: 2018-10-24 | D243: GULFOILLUB | E243: Accu | F243: 707.50 | H243: 872 | I243: 872.00 | J243: Target Achieved | K243: =H243-F243 -> 164.50 | L243: =K243/F243 -> 23.25% | M243: Successful | N243: 2019-01-17
A244: 128 | B244: 2018-10-25 | D244: GODREJCP | E244: Accu | F244: 707.5 | H244: 850.00 | I244: 890.00 | J244: Part Profit of Rs.142.5/- | K244: =H244-F244 -> 142.50 | L244: =K244/F244 -> 20% | M244: Successful | N244: 2018-12-19
A245: 129 | B245: 2018-10-25 | D245: DBCORP | E245: Accu | F245: 164.00 | H245: 204 | I245: 209.00 | J245: Profit of Rs.40/- | K245: =H245-F245 -> 40.00 | L245: =K245/F245 -> 24.39% | M245: Successful | N245: 2019-03-15
A246: 130 | B246: 2018-10-26 | D246: RITES | E246: Accu | F246: 240.00 | H246: 297 | I246: 297.00 | J246: Target Achieved | K246: =H246-F246 -> 57.00 | L246: =K246/F246 -> 23.75% | M246: Successful | N246: 2018-11-13
A247: 131 | B247: 2018-12-05 | D247: CCL | E247: Accu | F247: 260-270 | I247: 321.00 | J247: Open
A248: 132 | B248: 2018-12-05 | D248: VARROC | E248: Accu | F248: 710-720 | I248: 840.00 | J248: Open
A249: 133 | B249: 2018-12-05 | D249: BRIGADE | E249: Accu | F249: 202.50 | H249: 255 | I249: 252.00 | J249: Target Achieved | K249: =H249-F249 -> 52.50 | L249: =K249/F249 -> 25.93% | M249: Successful | N249: 2019-03-18
A250: 134 | B250: 2018-12-31 | D250: JKCEMENT | E250: Accu | F250: 710.00 | H250: 866 | I250: 866.00 | J250: Target Achieved | K250: 156.00 | L250: =K250/F250 -> 21.97% | M250: Successful | N250: 2019-03-29
A251: 135 | B251: 2019-01-04 | D251: MGL | E251: Accu | F251: 890-900 | I251: 1185.00 | J251: Open
A252: 136 | B252: 2019-02-26 | D252: MARICO | E252: Accu | F252: 335-345 | I252: 411.00 | J252: Open
F256: Reinitiated $
A258: Disclaimer:
A259: This document has been prepared by the Retail Research Desk of Asit C Mehta
A260: Investment Intermediates Ltd. and is meant for use of the recipient only
A261: and is not for circulation. This document is not to be reported or
A262: copied or made available to others. It should not be considered to be
A263: taken as an offer to sell or a solicitation to buy any security. The
A264: information contained herein is from sources believed reliable. We do
... 3 more rows

Sheet Sheet2 (hidden)
A1: SYMBOL | B1: SERIES | C1: OPEN | D1: HIGH | E1: LOW | F1: CLOSE | G1: LAST | H1: PREVCLOSE | I1: TOTTRDQTY | J1: TOTTRDVAL | K1: TIMESTAMP | L1: TOTALTRADES | M1: ISIN | N1: ISIN
A2: 20MICRONS | B2: EQ | C2: 40 | D2: 40.05 | E2: 38.6 | F2: 39.2 | G2: 39 | H2: 39.5 | I2: 6254 | J2: 247486.65 | K2: 2019-04-03 | L2: 188 | M2: INE144J01027
A3: 21STCENMGM | B3: EQ | C3: 20.3 | D3: 20.3 | E3: 20.3 | F3: 20.3 | G3: 20.3 | H3: 19.95 | I3: 691 | J3: 14027.3 | K3: 2019-04-03 | L3: 5 | M3: INE253B01015
A4: 3IINFOTECH | B4: EQ | C4: 3.75 | D4: 3.8 | E4: 3.65 | F4: 3.7 | G4: 3.7 | H4: 3.8 | I4: 1256037 | J4: 4684680.15 | K4: 2019-04-03 | L4: 533 | M4: INE748C01020
A5: 3MINDIA | B5: EQ | C5: 24305 | D5: 24580.3 | E5: 23797.05 | F5: 23983.5 | G5: 23960 | H5: 24304 | I5: 12795 | J5: 310609992.8 | K5: 2019-04-03 | L5: 1042 | M5: INE470A01017
A6: 3PLAND | B6: EQ | C6: 11.15 | D6: 11.15 | E6: 10.95 | F6: 11.1 | G6: 11.15 | H6: 10.65 | I6: 1243 | J6: 13817.1 | K6: 2019-04-03 | L6: 17 | M6: INE105C01023
A7: 5PAISA | B7: EQ | C7: 232.95 | D7: 236.55 | E7: 229.25 | F7: 233.1 | G7: 230.55 | H7: 229.95 | I7: 7244 | J7: 1681505.75 | K7: 2019-04-03 | L7: 256 | M7: INE618L01018
A8: 63MOONS | B8: EQ | C8: 82.9 | D8: 83.3 | E8: 80.3 | F8: 80.8 | G8: 80.7 | H8: 82.4 | I8: 88969 | J8: 7291917.15 | K8: 2019-04-03 | L8: 1843 | M8: INE111B01023
A9: 8KMILES | B9: EQ | C9: 104.2 | D9: 104.5 | E9: 100 | F9: 100.3 | G9: 100.95 | H9: 102.55 | I9: 146122 | J9: 14891138.2 | K9: 2019-04-03 | L9: 2111 | M9: INE650K01021
A10: A2ZINFRA | B10: EQ | C10: 18.2 | D10: 18.2 | E10: 17.15 | F10: 17.25 | G10: 17.2 | H10: 17.9 | I10: 193260 | J10: 3400930.5 | K10: 2019-04-03 | L10: 439 | M10: INE619I01012
A11: AARTIDRUGS | B11: EQ | C11: 619.55 | D11: 629 | E11: 618.95 | F11: 621.5 | G11: 621 | H11: 618.95 | I11: 9848 | J11: 6135257.3 | K11: 2019-04-03 | L11: 902 | M11: INE767A01016
A12: AARTIIND | B12: EQ | C12: 1580 | D12: 1595 | E12: 1565 | F12: 1579.6 | G12: 1580 | H12: 1589.2 | I12: 131922 | J12: 208661829.1 | K12: 2019-04-03 | L12: 5968 | M12: INE769A01020
A13: AARVEEDEN | B13: EQ | C13: 23.85 | D13: 23.85 | E13: 23.15 | F13: 23.45 | G13: 23.45 | H13: 23.4 | I13: 2030 | J13: 47521.25 | K13: 2019-04-03 | L13: 42 | M13: INE273D01019
A14: AAVAS | B14: EQ | C14: 1155 | D14: 1172 | E14: 1115 | F14: 1159.6 | G14: 1160 | H14: 1160.1 | I14: 43959 | J14: 49801640.95 | K14: 2019-04-03 | L14: 4128 | M14: INE216P01012
A15: ABAN | B15: BE | C15: 59.85 | D15: 59.85 | E15: 58 | F15: 58.45 | G15: 58.6 | H15: 58.8 | I15: 61356 | J15: 3597602 | K15: 2019-04-03 | L15: 466 | M15: INE421A01028
A16: ABB | B16: EQ | C16: 1328.8 | D16: 1340 | E16: 1320.1 | F16: 1332.15 | G16: 1330 | H16: 1322.4 | I16: 69523 | J16: 92523540.05 | K16: 2019-04-03 | L16: 6934 | M16: INE117A01022
A17: ABBOTINDIA | B17: EQ | C17: 7310.25 | D17: 7370 | E17: 7310 | F17: 7329 | G17: 7330 | H17: 7309.2 | I17: 923 | J17: 6765979.75 | K17: 2019-04-03 | L17: 326 | M17: INE358A01014
A18: ABCAPITAL | B18: EQ | C18: 103 | D18: 103.8 | E18: 99.7 | F18: 100.3 | G18: 100.3 | H18: 103 | I18: 2722460 | J18: 276738137.8 | K18: 2019-04-03 | L18: 17024 | M18: INE674K01013
A19: ABFRL | B19: EQ | C19: 220 | D19: 221.65 | E19: 218.1 | F19: 219.7 | G19: 219.4 | H19: 219.95 | I19: 332435 | J19: 72936899.55 | K19: 2019-04-03 | L19: 5720 | M19: INE647O01011
A20: ACC | B20: EQ | C20: 1627.9 | D20: 1645 | E20: 1615.7 | F20: 1624.6 | G20: 1620.55 | H20: 1617.35 | I20: 680202 | J20: 1106819788 | K20: 2019-04-03 | L20: 34769 | M20: INE012A01025
A21: ACCELYA | B21: EQ | C21: 938 | D21: 948.5 | E21: 931.05 | F21: 933.75 | G21: 931.05 | H21: 938 | I21: 24213 | J21: 22717366.45 | K21: 2019-04-03 | L21: 551 | M21: INE793A01012
A22: ACE | B22: EQ | C22: 116.6 | D22: 118.8 | E22: 112.1 | F22: 113.15 | G22: 113.95 | H22: 116.5 | I22: 443903 | J22: 51200609.4 | K22: 2019-04-03 | L22: 5690 | M22: INE731H01025
A23: ADANIENT | B23: EQ | C23: 150.3 | D23: 152.65 | E23: 146.6 | F23: 147.55 | G23: 147.05 | H23: 151.65 | I23: 3416023 | J23: 512276086.9 | K23: 2019-04-03 | L23: 20604 | M23: INE423A01024
A24: ADANIGAS | B24: EQ | C24: 132.3 | D24: 133.6 | E24: 128.1 | F24: 128.5 | G24: 128.35 | H24: 132.3 | I24: 415786 | J24: 54477608.55 | K24: 2019-04-03 | L24: 3947 | M24: INE399L01023
A25: ADANIGREEN | B25: EQ | C25: 37.75 | D25: 38.45 | E25: 36.85 | F25: 37.25 | G25: 37.3 | H25: 37.75 | I25: 368043 | J25: 13889862.7 | K25: 2019-04-03 | L25: 1409 | M25: INE364U01010
A26: ADANIPORTS | B26: EQ | C26: 380.3 | D26: 386.3 | E26: 380 | F26: 382 | G26: 381 | H26: 379.7 | I26: 2701443 | J26: 1035312372 | K26: 2019-04-03 | L26: 38684 | M26: INE742F01042
A27: ADANIPOWER | B27: EQ | C27: 50.6 | D27: 50.95 | E27: 49 | F27: 49.4 | G27: 49.35 | H27: 50.05 | I27: 11039301 | J27: 551688585.8 | K27: 2019-04-03 | L27: 15700 | M27: INE814H01011
A28: ADANITRANS | B28: EQ | C28: 223.7 | D28: 223.95 | E28: 218 | F28: 218.4 | G28: 218.4 | H28: 222.4 | I28: 77280 | J28: 17093165.05 | K28: 2019-04-03 | L28: 2357 | M28: INE931S01010
A29: ADFFOODS | B29: EQ | C29: 250 | D29: 251.6 | E29: 245.35 | F29: 246.65 | G29: 246.5 | H29: 246.7 | I29: 12380 | J29: 3078750.95 | K29: 2019-04-03 | L29: 473 | M29: INE982B01019
A30: ADHUNIK | B30: BE | C30: 3.05 | D30: 3.05 | E30: 3.05 | F30: 3.05 | G30: 3.05 | H30: 2.95 | I30: 32390 | J30: 98789.5 | K30: 2019-04-03 | L30: 28 | M30: INE400H01019
A31: ADHUNIKIND | B31: EQ | C31: 55.75 | D31: 56.6 | E31: 55 | F31: 55.95 | G31: 56.5 | H31: 54.9 | I31: 10436 | J31: 580340.55 | K31: 2019-04-03 | L31: 67 | M31: INE452L01012
A32: ADLABS | B32: EQ | C32: 9.2 | D32: 9.2 | E32: 9.2 | F32: 9.2 | G32: 9.2 | H32: 8.8 | I32: 226362 | J32: 2082530.4 | K32: 2019-04-03 | L32: 103 | M32: INE172N01012
A33: ADORWELD | B33: EQ | C33: 348.85 | D33: 353.15 | E33: 347.1 | F33: 349.4 | G33: 348.4 | H33: 348.8 | I33: 5497 | J33: 1922258.55 | K33: 2019-04-03 | L33: 271 | M33: INE045A01017
A34: ADROITINFO | B34: BE | C34: 16.3 | D34: 17.45 | E34: 16.25 | F34: 16.25 | G34: 16.25 | H34: 17.1 | I34: 1691 | J34: 28128.8 | K34: 2019-04-03 | L34: 18 | M34: INE737B01033
A35: ADSL | B35: EQ | C35: 13.7 | D35: 13.9 | E35: 13.6 | F35: 13.6 | G35: 13.8 | H35: 13.85 | I35: 2890 | J35: 39451.4 | K35: 2019-04-03 | L35: 27 | M35: INE102I01027
A36: ADVANIHOTR | B36: EQ | C36: 69 | D36: 69.95 | E36: 67.3 | F36: 67.7 | G36: 67.4 | H36: 68.35 | I36: 4351 | J36: 297533.7 | K36: 2019-04-03 | L36: 95 | M36: INE199C01026
A37: ADVENZYMES | B37: EQ | C37: 182.55 | D37: 185.5 | E37: 180 | F37: 180.9 | G37: 180 | H37: 183.15 | I37: 120377 | J37: 21995869.9 | K37: 2019-04-03 | L37: 2294 | M37: INE837H01020
A38: AEGISCHEM | B38: EQ | C38: 203.1 | D38: 206.95 | E38: 202.5 | F38: 205.2 | G38: 203.75 | H38: 205.25 | I38: 99927 | J38: 20517159.05 | K38: 2019-04-03 | L38: 3767 | M38: INE208C01025
A39: AGARIND | B39: EQ | C39: 165 | D39: 165.75 | E39: 158 | F39: 160.25 | G39: 160.25 | H39: 161 | I39: 461 | J39: 74488.45 | K39: 2019-04-03 | L39: 30 | M39: INE204E01012
A40: AGCNET | B40: EQ | C40: 119.9 | D40: 122.4 | E40: 116.7 | F40: 117.55 | G40: 118 | H40: 116.9 | I40: 5118 | J40: 602592.35 | K40: 2019-04-03 | L40: 69 | M40: INE676A01019
A41: AGLSL | B41: EQ | C41: 58.15 | D41: 58.9 | E41: 57.55 | F41: 57.95 | G41: 58 | H41: 58.05 | I41: 3947 | J41: 228917.65 | K41: 2019-04-03 | L41: 59 | M41: INE517U01013
A42: AGRITECH | B42: EQ | C42: 57.05 | D42: 57.9 | E42: 52.2 | F42: 53.4 | G42: 53.25 | H42: 56.85 | I42: 13584 | J42: 737306.35 | K42: 2019-04-03 | L42: 253 | M42: INE449G01018
A43: AGROPHOS | B43: BE | C43: 68.6 | D43: 71.9 | E43: 68.6 | F43: 69 | G43: 69 | H43: 72.2 | I43: 40339 | J43: 2851408.4 | K43: 2019-04-03 | L43: 10 | M43: INE740V01019
A44: AHLEAST | B44: EQ | C44: 245.45 | D44: 246.6 | E44: 238.1 | F44: 239.3 | G44: 238.1 | H44: 238.25 | I44: 3576 | J44: 861630.85 | K44: 2019-04-03 | L44: 95 | M44: INE926K01017
A45: AHLUCONT | B45: EQ | C45: 333.5 | D45: 334.5 | E45: 328.25 | F45: 333.05 | G45: 334.5 | H45: 335.25 | I45: 7626 | J45: 2536059.3 | K45: 2019-04-03 | L45: 207 | M45: INE758C01029
A46: AHLWEST | B46: EQ | C46: 353.5 | D46: 355 | E46: 351.95 | F46: 354.45 | G46: 354.95 | H46: 350.9 | I46: 320 | J46: 113197.5 | K46: 2019-04-03 | L46: 19 | M46: INE915K01010
A47: AIAENG | B47: EQ | C47: 1753 | D47: 1770.95 | E47: 1710.6 | F47: 1726.35 | G47: 1715 | H47: 1772.8 | I47: 15308 | J47: 26750906.35 | K47: 2019-04-03 | L47: 2570 | M47: INE212H01026
A48: AIFL | B48: BE | C48: 12.5 | D48: 12.85 | E48: 11.9 | F48: 12.2 | G48: 12.25 | H48: 12.5 | I48: 92357 | J48: 1104228.85 | K48: 2019-04-03 | L48: 232 | M48: INE428O01016
A49: AIONJSW | B49: EQ | C49: 30.3 | D49: 30.95 | E49: 28.9 | F49: 29.45 | G49: 29.9 | H49: 29.85 | I49: 110393 | J49: 3317909.15 | K49: 2019-04-03 | L49: 473 | M49: INE743C01021
A50: AJANTPHARM | B50: EQ | C50: 1032.5 | D50: 1039.75 | E50: 1016.15 | F50: 1023.4 | G50: 1023.5 | H50: 1032.4 | I50: 160471 | J50: 164922687 | K50: 2019-04-03 | L50: 5625 | M50: INE031B01049
A51: AJMERA | B51: EQ | C51: 190.6 | D51: 193.5 | E51: 186.1 | F51: 187.6 | G51: 188.05 | H51: 190 | I51: 96174 | J51: 18244061.8 | K51: 2019-04-03 | L51: 2119 | M51: INE298G01027
A52: AKSHARCHEM | B52: EQ | C52: 349.35 | D52: 353.95 | E52: 345.1 | F52: 348.85 | G52: 345.15 | H52: 349.55 | I52: 2246 | J52: 786196.3 | K52: 2019-04-03 | L52: 158 | M52: INE542B01011
A53: AKSHOPTFBR | B53: EQ | C53: 19 | D53: 19.2 | E53: 18.4 | F53: 18.5 | G53: 18.55 | H53: 19 | I53: 596903 | J53: 11215324.25 | K53: 2019-04-03 | L53: 1430 | M53: INE523B01011
A54: AKZOINDIA | B54: EQ | C54: 1752 | D54: 1799.9 | E54: 1752 | F54: 1792 | G54: 1799.9 | H54: 1768.55 | I54: 7220 | J54: 12885474.95 | K54: 2019-04-03 | L54: 1317 | M54: INE133A01011
A55: ALANKIT | B55: EQ | C55: 32.1 | D55: 32.6 | E55: 31.3 | F55: 32.05 | G55: 31.5 | H55: 32.25 | I55: 661818 | J55: 21302738.3 | K55: 2019-04-03 | L55: 3826 | M55: INE914E01040
A56: ALBERTDAVD | B56: EQ | C56: 415.95 | D56: 429.95 | E56: 413.95 | F56: 423.9 | G56: 425 | H56: 412.85 | I56: 13925 | J56: 5861854 | K56: 2019-04-03 | L56: 487 | M56: INE155C01010
A57: ALBK | B57: EQ | C57: 55.1 | D57: 56.15 | E57: 53.1 | F57: 53.4 | G57: 53.4 | H57: 55.2 | I57: 6369982 | J57: 347122361.9 | K57: 2019-04-03 | L57: 17478 | M57: INE428A01015
A58: ALCHEM | B58: BE | C58: 1.95 | D58: 1.95 | E58: 1.9 | F58: 1.95 | G58: 1.95 | H58: 1.9 | I58: 2490 | J58: 4823 | K58: 2019-04-03 | L58: 8 | M58: INE964B01033
A59: ALEMBICLTD | B59: EQ | C59: 42.9 | D59: 43.15 | E59: 41.75 | F59: 42.05 | G59: 42.05 | H59: 42.45 | I59: 293997 | J59: 12453945.5 | K59: 2019-04-03 | L59: 912 | M59: INE426A01027
A60: ALICON | B60: EQ | C60: 599.95 | D60: 612 | E60: 590 | F60: 598.9 | G60: 595 | H60: 600.75 | I60: 4439 | J60: 2664074.9 | K60: 2019-04-03 | L60: 271 | M60: INE062D01024
A61: ALKALI | B61: EQ | C61: 42 | D61: 43.75 | E61: 41.6 | F61: 42.35 | G61: 42.6 | H61: 42 | I61: 28049 | J61: 1196257.55 | K61: 2019-04-03 | L61: 201 | M61: INE773I01017
A62: ALKEM | B62: EQ | C62: 1744 | D62: 1747 | E62: 1727.15 | F62: 1739.3 | G62: 1744.8 | H62: 1736.45 | I62: 52369 | J62: 90968873.7 | K62: 2019-04-03 | L62: 7361 | M62: INE540L01014
A63: ALKYLAMINE | B63: EQ | C63: 834 | D63: 834 | E63: 821.2 | F63: 824 | G63: 824 | H63: 826 | I63: 1489 | J63: 1230161.1 | K63: 2019-04-03 | L63: 106 | M63: INE150B01021
A64: ALLCARGO | B64: EQ | C64: 113.1 | D64: 114.75 | E64: 111.45 | F64: 111.7 | G64: 111.95 | H64: 112.45 | I64: 102986 | J64: 11640635.6 | K64: 2019-04-03 | L64: 1922 | M64: INE418H01029
A65: ALLSEC | B65: BE | C65: 282.1 | D65: 289.95 | E65: 282.1 | F65: 286.85 | G65: 285.35 | H65: 290.65 | I65: 25147 | J65: 7180191.5 | K65: 2019-04-03 | L65: 80 | M65: INE835G01018
A66: ALMONDZ | B66: EQ | C66: 23.5 | D66: 23.85 | E66: 21.3 | F66: 22.3 | G66: 22.25 | H66: 22.55 | I66: 2978 | J66: 67744.15 | K66: 2019-04-03 | L66: 45 | M66: INE326B01027
A67: ALOKTEXT | B67: BE | C67: 4.95 | D67: 5.25 | E67: 4.9 | F67: 5.15 | G67: 5.15 | H67: 5.15 | I67: 7770774 | J67: 38958796.85 | K67: 2019-04-03 | L67: 3971 | M67: INE270A01011
A68: ALPA | B68: EQ | C68: 27.05 | D68: 27.25 | E68: 26.5 | F68: 26.75 | G68: 26.5 | H68: 27.05 | I68: 9262 | J68: 248668.85 | K68: 2019-04-03 | L68: 80 | M68: INE385I01010
A69: ALPHAGEO | B69: EQ | C69: 499.05 | D69: 500 | E69: 485.6 | F69: 490.9 | G69: 490.1 | H69: 498.65 | I69: 2409 | J69: 1191908.2 | K69: 2019-04-03 | L69: 361 | M69: INE137C01018
A70: AMARAJABAT | B70: EQ | C70: 722.9 | D70: 739 | E70: 650 | F70: 672.35 | G70: 674.6 | H70: 720.75 | I70: 7107893 | J70: 4839701059 | K70: 2019-04-03 | L70: 143982 | M70: INE885A01032
A71: AMBER | B71: EQ | C71: 864.45 | D71: 864.45 | E71: 836 | F71: 841.7 | G71: 840 | H71: 856.75 | I71: 37319 | J71: 31789022.45 | K71: 2019-04-03 | L71: 2251 | M71: INE371P01015
A72: AMBIKCO | B72: EQ | C72: 1139.95 | D72: 1151.1 | E72: 1132.6 | F72: 1135.85 | G72: 1132.65 | H72: 1139.95 | I72: 2461 | J72: 2797047.65 | K72: 2019-04-03 | L72: 136 | M72: INE540G01014
A73: AMBUJACEM | B73: EQ | C73: 231 | D73: 235.9 | E73: 225.95 | F73: 226.75 | G73: 226 | H73: 229.95 | I73: 4591977 | J73: 1052593463 | K73: 2019-04-03 | L73: 27719 | M73: INE079A01024
A74: AMDIND | B74: EQ | C74: 20.25 | D74: 21.5 | E74: 20.05 | F74: 20.25 | G74: 20.05 | H74: 21.05 | I74: 8471 | J74: 173100.6 | K74: 2019-04-03 | L74: 57 | M74: INE005I01014
A75: AMJLAND | B75: EQ | C75: 19.85 | D75: 19.95 | E75: 19.5 | F75: 19.6 | G75: 19.5 | H75: 19.8 | I75: 884 | J75: 17406.5 | K75: 2019-04-03 | L75: 17 | M75: INE606A01024
A76: AMRUTANJAN | B76: EQ | C76: 321 | D76: 324.8 | E76: 311.25 | F76: 313.6 | G76: 314.5 | H76: 318.8 | I76: 18726 | J76: 5958382.25 | K76: 2019-04-03 | L76: 909 | M76: INE098F01031
A77: ANANTRAJ | B77: EQ | C77: 33.9 | D77: 35.35 | E77: 33.65 | F77: 33.85 | G77: 33.9 | H77: 33.8 | I77: 888030 | J77: 30591768.6 | K77: 2019-04-03 | L77: 2311 | M77: INE242C01024
A78: ANDHRABANK | B78: EQ | C78: 32 | D78: 32.4 | E78: 30.85 | F78: 31.05 | G78: 31.05 | H78: 31.85 | I78: 2458786 | J78: 77745487.35 | K78: 2019-04-03 | L78: 7024 | M78: INE434A01013
A79: ANDHRACEMT | B79: BE | C79: 5 | D79: 5 | E79: 4.8 | F79: 4.85 | G79: 4.9 | H79: 5 | I79: 52527 | J79: 257877.8 | K79: 2019-04-03 | L79: 115 | M79: INE666E01012
A80: ANDHRSUGAR | B80: EQ | C80: 349.6 | D80: 353 | E80: 348.05 | F80: 349.25 | G80: 349 | H80: 349.75 | I80: 13728 | J80: 4813787.8 | K80: 2019-04-03 | L80: 350 | M80: INE715B01013
A81: ANIKINDS | B81: EQ | C81: 15.5 | D81: 15.5 | E81: 15.25 | F81: 15.25 | G81: 15.25 | H81: 15.6 | I81: 3046 | J81: 46974.7 | K81: 2019-04-03 | L81: 23 | M81: INE087B01017
A82: ANKITMETAL | B82: BE | C82: 0.45 | D82: 0.5 | E82: 0.45 | F82: 0.5 | G82: 0.5 | H82: 0.45 | I82: 8237 | J82: 4100.4 | K82: 2019-04-03 | L82: 20 | M82: INE106I01010
A83: ANSALAPI | B83: EQ | C83: 11.3 | D83: 11.7 | E83: 11.2 | F83: 11.4 | G83: 11.4 | H83: 11.3 | I83: 171100 | J83: 1972182.3 | K83: 2019-04-03 | L83: 415 | M83: INE436A01026
A84: ANSALHSG | B84: EQ | C84: 12.5 | D84: 12.75 | E84: 12.15 | F84: 12.25 | G84: 12.3 | H84: 12.55 | I84: 63838 | J84: 798577.6 | K84: 2019-04-03 | L84: 266 | M84: INE880B01015
A85: ANTGRAPHIC | B85: BE | C85: 0.45 | D85: 0.5 | E85: 0.45 | F85: 0.5 | G85: 0.5 | H85: 0.5 | I85: 101310 | J85: 48505 | K85: 2019-04-03 | L85: 20 | M85: INE414B01021
A86: ANUP | B86: EQ | C86: 548 | D86: 552.9 | E86: 525 | F86: 527.05 | G86: 529 | H86: 548.75 | I86: 31263 | J86: 16757030.2 | K86: 2019-04-03 | L86: 1818 | M86: INE294Z01018
A87: APARINDS | B87: EQ | C87: 679.5 | D87: 684.95 | E87: 679.5 | F87: 681.15 | G87: 680.6 | H87: 680.5 | I87: 4655 | J87: 3174718.55 | K87: 2019-04-03 | L87: 211 | M87: INE372A01015
A88: APCL | B88: EQ | C88: 128 | D88: 128.4 | E88: 124.5 | F88: 124.85 | G88: 124.5 | H88: 129.35 | I88: 548 | J88: 68992.6 | K88: 2019-04-03 | L88: 35 | M88: INE071F01012
A89: APCOTEXIND | B89: EQ | C89: 512 | D89: 529.45 | E89: 512 | F89: 523.85 | G89: 517 | H89: 515.45 | I89: 4057 | J89: 2126592.75 | K89: 2019-04-03 | L89: 301 | M89: INE116A01024
A90: APEX | B90: EQ | C90: 340.25 | D90: 342.05 | E90: 329.2 | F90: 331.4 | G90: 332 | H90: 339.9 | I90: 93443 | J90: 31141076.95 | K90: 2019-04-03 | L90: 2753 | M90: INE346W01013
A91: APLAPOLLO | B91: EQ | C91: 1482.95 | D91: 1505.55 | E91: 1460 | F91: 1469.65 | G91: 1474 | H91: 1474.5 | I91: 12935 | J91: 19254756 | K91: 2019-04-03 | L91: 1925 | M91: INE702C01019
A92: APLLTD | B92: EQ | C92: 543.7 | D92: 543.7 | E92: 530 | F92: 532.15 | G92: 536 | H92: 543.65 | I92: 13510 | J92: 7256387.8 | K92: 2019-04-03 | L92: 1697 | M92: INE901L01018
A93: APOLLO | B93: EQ | C93: 143.8 | D93: 147 | E93: 137.4 | F93: 139.35 | G93: 140.9 | H93: 144.2 | I93: 276273 | J93: 39108753.05 | K93: 2019-04-03 | L93: 4483 | M93: INE713T01010
A94: APOLLOHOSP | B94: EQ | C94: 1259 | D94: 1276.7 | E94: 1255.25 | F94: 1259.75 | G94: 1258 | H94: 1255.3 | I94: 336310 | J94: 425828221.4 | K94: 2019-04-03 | L94: 18064 | M94: INE437A01024
A95: APOLLOTYRE | B95: EQ | C95: 220.1 | D95: 225 | E95: 218.45 | F95: 219.85 | G95: 219.8 | H95: 221.25 | I95: 2602557 | J95: 579318982 | K95: 2019-04-03 | L95: 25556 | M95: INE438A01022
A96: APOLSINHOT | B96: EQ | C96: 921.1 | D96: 921.1 | E96: 870 | F96: 879.4 | G96: 889.9 | H96: 886 | I96: 783 | J96: 691122.6 | K96: 2019-04-03 | L96: 57 | M96: INE451F01024
A97: APTECHT | B97: EQ | C97: 179 | D97: 181.9 | E97: 173.55 | F97: 176.35 | G97: 176.7 | H97: 178.65 | I97: 245320 | J97: 43652005.85 | K97: 2019-04-03 | L97: 3913 | M97: INE266F01018
A98: ARCHIDPLY | B98: EQ | C98: 40.05 | D98: 40.05 | E98: 39.05 | F98: 39.55 | G98: 39.65 | H98: 39.95 | I98: 16916 | J98: 672654.75 | K98: 2019-04-03 | L98: 196 | M98: INE877I01016
A99: ARCHIES | B99: EQ | C99: 25.4 | D99: 25.4 | E99: 24.5 | F99: 24.55 | G99: 24.5 | H99: 25.1 | I99: 19632 | J99: 486978.05 | K99: 2019-04-03 | L99: 255 | M99: INE731A01020
A100: ARCOTECH | B100: BE | C100: 5.7 | D100: 5.8 | E100: 5.65 | F100: 5.65 | G100: 5.7 | H100: 5.7 | I100: 25648 | J100: 145771.65 | K100: 2019-04-03 | L100: 72 | M100: INE574I01035
A101: ARENTERP | B101: EQ | C101: 12.6 | D101: 12.65 | E101: 12.6 | F101: 12.65 | G101: 12.65 | H101: 12.1 | I101: 6800 | J101: 86015 | K101: 2019-04-03 | L101: 6 | M101: INE610C01014
A102: ARIES | B102: EQ | C102: 86.5 | D102: 92.7 | E102: 86.25 | F102: 88.45 | G102: 88.7 | H102: 85.85 | I102: 224446 | J102: 20280454.25 | K102: 2019-04-03 | L102: 2455 | M102: INE298I01015
A103: ARIHANT | B103: EQ | C103: 28.2 | D103: 28.9 | E103: 27.9 | F103: 28.65 | G103: 28.65 | H103: 29.1 | I103: 2302 | J103: 65583.1 | K103: 2019-04-03 | L103: 20 | M103: INE413D01011
A104: ARIHANTSUP | B104: BE | C104: 55.05 | D104: 57 | E104: 55 | F104: 56.6 | G104: 56.95 | H104: 56.55 | I104: 8651 | J104: 491524.8 | K104: 2019-04-03 | L104: 94 | M104: INE643K01018
A105: ARMANFIN | B105: EQ | C105: 379.6 | D105: 381.95 | E105: 365.55 | F105: 366.65 | G105: 368 | H105: 372.15 | I105: 5093 | J105: 1905653 | K105: 2019-04-03 | L105: 227 | M105: INE109C01017
A106: AROGRANITE | B106: EQ | C106: 49.55 | D106: 50.9 | E106: 49 | F106: 49.2 | G106: 49.75 | H106: 49.9 | I106: 9584 | J106: 475308.25 | K106: 2019-04-03 | L106: 178 | M106: INE210C01013
A107: ARROWGREEN | B107: EQ | C107: 86.4 | D107: 86.45 | E107: 81.6 | F107: 84.15 | G107: 84 | H107: 83.85 | I107: 12887 | J107: 1082451.15 | K107: 2019-04-03 | L107: 266 | M107: INE570D01018
A108: ARROWTEX | B108: EQ | C108: 18 | D108: 18 | E108: 17.55 | F108: 17.9 | G108: 17.8 | H108: 17.9 | I108: 3350 | J108: 59845.3 | K108: 2019-04-03 | L108: 49 | M108: INE933J01015
A109: ARSHIYA | B109: EQ | C109: 33 | D109: 38.2 | E109: 32.55 | F109: 36.75 | G109: 36.75 | H109: 33 | I109: 575372 | J109: 20704455 | K109: 2019-04-03 | L109: 3136 | M109: INE968D01022
A110: ARSSINFRA | B110: EQ | C110: 44.5 | D110: 44.5 | E110: 42.05 | F110: 43.95 | G110: 44.1 | H110: 42.75 | I110: 12414 | J110: 543277.1 | K110: 2019-04-03 | L110: 113 | M110: INE267I01010
A111: ARVIND | B111: EQ | C111: 92.25 | D111: 93.15 | E111: 89.2 | F111: 90.1 | G111: 89.6 | H111: 92.55 | I111: 1925326 | J111: 176308076.7 | K111: 2019-04-03 | L111: 9421 | M111: INE034A01011
A112: ARVINDFASN | B112: EQ | C112: 1045 | D112: 1045.9 | E112: 998 | F112: 1002.05 | G112: 1011 | H112: 1047.95 | I112: 330147 | J112: 335101784.9 | K112: 2019-04-03 | L112: 9864 | M112: INE955V01021
A113: ARVSMART | B113: EQ | C113: 137.65 | D113: 138 | E113: 130.2 | F113: 131.6 | G113: 131.25 | H113: 136.8 | I113: 19687 | J113: 2656854.85 | K113: 2019-04-03 | L113: 484 | M113: INE034S01021
A114: ASAHIINDIA | B114: EQ | C114: 255.6 | D114: 257 | E114: 253.1 | F114: 253.8 | G114: 253.3 | H114: 255.6 | I114: 10127 | J114: 2586838.75 | K114: 2019-04-03 | L114: 343 | M114: INE439A01020
A115: ASAHISONG | B115: EQ | C115: 160.55 | D115: 164.7 | E115: 160.15 | F115: 161.55 | G115: 161.3 | H115: 162.4 | I115: 2923 | J115: 476260.2 | K115: 2019-04-03 | L115: 107 | M115: INE228I01012
A116: ASAL | B116: EQ | C116: 55.55 | D116: 56.8 | E116: 54.4 | F116: 54.7 | G116: 54.75 | H116: 55.55 | I116: 4403 | J116: 243010.35 | K116: 2019-04-03 | L116: 81 | M116: INE900C01027
A117: ASHAPURMIN | B117: BE | C117: 26.7 | D117: 28.35 | E117: 26.65 | F117: 27.8 | G117: 27.65 | H117: 28 | I117: 39250 | J117: 1074018.5 | K117: 2019-04-03 | L117: 155 | M117: INE348A01023
A118: ASHIANA | B118: EQ | C118: 121.9 | D118: 122.5 | E118: 119.8 | F118: 119.95 | G118: 119.8 | H118: 119.75 | I118: 26365 | J118: 3177469.75 | K118: 2019-04-03 | L118: 281 | M118: INE365D01021
A119: ASHIMASYN | B119: EQ | C119: 11.95 | D119: 12.4 | E119: 11.6 | F119: 11.75 | G119: 12 | H119: 12 | I119: 60128 | J119: 722533.5 | K119: 2019-04-03 | L119: 165 | M119: INE440A01010
A120: ASHOKA | B120: EQ | C120: 132 | D120: 135.9 | E120: 132 | F120: 133.1 | G120: 133.35 | H120: 133 | I120: 198331 | J120: 26658544.85 | K120: 2019-04-03 | L120: 3057 | M120: INE442H01029
A121: ASHOKLEY | B121: EQ | C121: 89.8 | D121: 90.8 | E121: 87.5 | F121: 87.8 | G121: 87.8 | H121: 89.55 | I121: 19962585 | J121: 1771906790 | K121: 2019-04-03 | L121: 73215 | M121: INE208A01029
A122: ASIANHOTNR | B122: EQ | C122: 137.85 | D122: 137.9 | E122: 134 | F122: 134.3 | G122: 134.5 | H122: 134.4 | I122: 859 | J122: 115690.35 | K122: 2019-04-03 | L122: 30 | M122: INE363A01022
A123: ASIANPAINT | B123: EQ | C123: 1521.25 | D123: 1529.85 | E123: 1493 | F123: 1497.6 | G123: 1503 | H123: 1519.3 | I123: 1606692 | J123: 2435356373 | K123: 2019-04-03 | L123: 67074 | M123: INE021A01026
A124: ASIANTILES | B124: EQ | C124: 239.8 | D124: 242 | E124: 222.95 | F124: 234.95 | G124: 235.55 | H124: 239.5 | I124: 39501 | J124: 9330865.05 | K124: 2019-04-03 | L124: 739 | M124: INE022I01019
A125: ASPINWALL | B125: EQ | C125: 175 | D125: 175 | E125: 166 | F125: 167.6 | G125: 170.5 | H125: 179.35 | I125: 936 | J125: 161024.8 | K125: 2019-04-03 | L125: 70 | M125: INE991I01015
A126: ASSAMCO | B126: BE | C126: 2 | D126: 2.2 | E126: 2 | F126: 2.1 | G126: 2.1 | H126: 2.1 | I126: 92484 | J126: 194339.55 | K126: 2019-04-03 | L126: 99 | M126: INE442A01024
A127: ASTEC | B127: EQ | C127: 548.25 | D127: 555 | E127: 540.05 | F127: 545.4 | G127: 542.2 | H127: 544.3 | I127: 6615 | J127: 3628900.75 | K127: 2019-04-03 | L127: 533 | M127: INE563J01010
A128: ASTERDM | B128: EQ | C128: 154 | D128: 156.7 | E128: 154 | F128: 154.9 | G128: 154.5 | H128: 154.65 | I128: 30852 | J128: 4791656.2 | K128: 2019-04-03 | L128: 1214 | M128: INE914M01019
A129: ASTRAL | B129: EQ | C129: 1194.6 | D129: 1199.05 | E129: 1161 | F129: 1167.2 | G129: 1168 | H129: 1195.05 | I129: 19214 | J129: 22669042.45 | K129: 2019-04-03 | L129: 2024 | M129: INE006I01046
A130: ASTRAMICRO | B130: EQ | C130: 99.2 | D130: 100 | E130: 94.75 | F130: 95.85 | G130: 95.9 | H130: 99.15 | I130: 331378 | J130: 32514089.2 | K130: 2019-04-03 | L130: 2337 | M130: INE386C01029
A131: ASTRAZEN | B131: EQ | C131: 1999 | D131: 2008.8 | E131: 1927 | F131: 1997.9 | G131: 2000 | H131: 1991.05 | I131: 150310 | J131: 300285018.7 | K131: 2019-04-03 | L131: 1048 | M131: INE203A01020
A132: ASTRON | B132: EQ | C132: 104.35 | D132: 104.95 | E132: 102.1 | F132: 103.35 | G132: 103.85 | H132: 104 | I132: 284890 | J132: 29605010.45 | K132: 2019-04-03 | L132: 3256 | M132: INE646X01014
A133: ATFL | B133: EQ | C133: 581 | D133: 588.75 | E133: 577.95 | F133: 582.05 | G133: 585 | H133: 581.65 | I133: 21447 | J133: 12446404.1 | K133: 2019-04-03 | L133: 455 | M133: INE209A01019
A134: ATLANTA | B134: EQ | C134: 19.8 | D134: 20 | E134: 19.5 | F134: 19.75 | G134: 19.9 | H134: 19.75 | I134: 23581 | J134: 467587.45 | K134: 2019-04-03 | L134: 284 | M134: INE285H01022
A135: ATLASCYCLE | B135: BE | C135: 81.5 | D135: 84.95 | E135: 79.2 | F135: 79.2 | G135: 79.2 | H135: 83.35 | I135: 25393 | J135: 2039785.4 | K135: 2019-04-03 | L135: 197 | M135: INE446A01025
A136: ATUL | B136: EQ | C136: 3583 | D136: 3650 | E136: 3501.05 | F136: 3520.5 | G136: 3536 | H136: 3586.55 | I136: 11997 | J136: 42761887.7 | K136: 2019-04-03 | L136: 2092 | M136: INE100A01010
A137: ATULAUTO | B137: EQ | C137: 348.15 | D137: 352.25 | E137: 337.4 | F137: 338.75 | G137: 339 | H137: 351.25 | I137: 16695 | J137: 5755835.05 | K137: 2019-04-03 | L137: 1172 | M137: INE951D01028
A138: AUBANK | B138: EQ | C138: 613 | D138: 622 | E138: 596.05 | F138: 598.85 | G138: 598.95 | H138: 610.6 | I138: 222908 | J138: 135853545 | K138: 2019-04-03 | L138: 8698 | M138: INE949L01017
A139: AURIONPRO | B139: EQ | C139: 134.4 | D139: 141 | E139: 133 | F139: 138.05 | G139: 137.8 | H139: 134.4 | I139: 51192 | J139: 7109829.1 | K139: 2019-04-03 | L139: 882 | M139: INE132H01018
A140: AUROPHARMA | B140: EQ | C140: 787 | D140: 795.6 | E140: 770.3 | F140: 772.65 | G140: 774 | H140: 786.25 | I140: 1320439 | J140: 1031615011 | K140: 2019-04-03 | L140: 46036 | M140: INE406A01037
A141: AUSOMENT | B141: EQ | C141: 38.8 | D141: 38.8 | E141: 37.45 | F141: 37.45 | G141: 37.45 | H141: 38.85 | I141: 245 | J141: 9446.45 | K141: 2019-04-03 | L141: 9 | M141: INE218C01016
A142: AUTOAXLES | B142: EQ | C142: 1230 | D142: 1251 | E142: 1203.1 | F142: 1211.75 | G142: 1214 | H142: 1239.6 | I142: 9361 | J142: 11405498.85 | K142: 2019-04-03 | L142: 899 | M142: INE449A01011
A143: AUTOIND | B143: EQ | C143: 52.9 | D143: 52.9 | E143: 51.8 | F143: 52.25 | G143: 52.2 | H143: 52.15 | I143: 21531 | J143: 1122594.2 | K143: 2019-04-03 | L143: 194 | M143: INE718H01014
A144: AUTOLITIND | B144: EQ | C144: 38 | D144: 39.05 | E144: 36.7 | F144: 37.65 | G144: 37.95 | H144: 38.15 | I144: 5802 | J144: 221635 | K144: 2019-04-03 | L144: 90 | M144: INE448A01013
A145: AVADHSUGAR | B145: EQ | C145: 468.15 | D145: 474.65 | E145: 455 | F145: 458 | G145: 457.9 | H145: 468.05 | I145: 34310 | J145: 15919461.4 | K145: 2019-04-03 | L145: 1067 | M145: INE349W01017
A146: AVANTIFEED | B146: EQ | C146: 417.5 | D146: 419.2 | E146: 402 | F146: 403.95 | G146: 405.3 | H146: 415.3 | I146: 392836 | J146: 160705806.6 | K146: 2019-04-03 | L146: 9958 | M146: INE871C01038
A147: AVTNPL | B147: EQ | C147: 26.65 | D147: 27.35 | E147: 26.5 | F147: 26.65 | G147: 26.5 | H147: 26.9 | I147: 45829 | J147: 1235175.8 | K147: 2019-04-03 | L147: 261 | M147: INE488D01021
A148: AXISBANK | B148: EQ | C148: 770 | D148: 772.75 | E148: 758.7 | F148: 761.5 | G148: 761.2 | H148: 767.4 | I148: 5591613 | J148: 4279676454 | K148: 2019-04-03 | L148: 88359 | M148: INE238A01034
A149: AXISCADES | B149: EQ | C149: 63.25 | D149: 63.55 | E149: 61.1 | F149: 61.5 | G149: 61.1 | H149: 62.85 | I149: 25162 | J149: 1565811.4 | K149: 2019-04-03 | L149: 528 | M149: INE555B01013
A150: AXISGOLD | B150: EQ | C150: 2819 | D150: 2819 | E150: 2762.15 | F150: 2773.35 | G150: 2775 | H150: 2786.2 | I150: 426 | J150: 1188362.6 | K150: 2019-04-03 | L150: 60 | M150: INF846K01347
A151: AXISNIFTY | B151: EQ | C151: 1196 | D151: 1203.67 | E151: 1183.11 | F151: 1183.97 | G151: 1183.11 | H151: 1192 | I151: 322 | J151: 382466.87 | K151: 2019-04-03 | L151: 18 | M151: INF846K01ZL0
A152: AYMSYNTEX | B152: EQ | C152: 37.55 | D152: 37.55 | E152: 36 | F152: 36.05 | G152: 36.05 | H152: 37.65 | I152: 2928 | J152: 107843.25 | K152: 2019-04-03 | L152: 61 | M152: INE193B01039
A153: BAFNAPHARM | B153: EQ | C153: 9.85 | D153: 10 | E153: 9.35 | F153: 9.9 | G153: 10 | H153: 9.75 | I153: 9781 | J153: 94973.95 | K153: 2019-04-03 | L153: 135 | M153: INE878I01014
A154: BAGFILMS | B154: EQ | C154: 4.75 | D154: 4.9 | E154: 4.75 | F154: 4.9 | G154: 4.9 | H154: 4.75 | I154: 65006 | J154: 317092.55 | K154: 2019-04-03 | L154: 87 | M154: INE116D01028
A155: BAJAJ-AUTO | B155: EQ | C155: 2860 | D155: 2877.1 | E155: 2831 | F155: 2847.3 | G155: 2850 | H155: 2853.1 | I155: 484790 | J155: 1382764006 | K155: 2019-04-03 | L155: 40606 | M155: INE917I01010
A156: BAJAJCON | B156: EQ | C156: 315.9 | D156: 321.25 | E156: 314.05 | F156: 315.15 | G156: 315.5 | H156: 313.65 | I156: 195416 | J156: 62186262.6 | K156: 2019-04-03 | L156: 6514 | M156: INE933K01021
A157: BAJAJELEC | B157: EQ | C157: 567.95 | D157: 580 | E157: 542.55 | F157: 549.25 | G157: 547.6 | H157: 565.85 | I157: 375621 | J157: 213099311.3 | K157: 2019-04-03 | L157: 10785 | M157: INE193E01025
A158: BAJAJFINSV | B158: EQ | C158: 7299 | D158: 7450 | E158: 7285.15 | F158: 7401.55 | G158: 7405.05 | H158: 7279.6 | I158: 426738 | J158: 3151179604 | K158: 2019-04-03 | L158: 42294 | M158: INE918I01018
A159: BAJAJHIND | B159: EQ | C159: 8.4 | D159: 8.4 | E159: 8.05 | F159: 8.15 | G159: 8.2 | H159: 8.3 | I159: 1102351 | J159: 9064948.3 | K159: 2019-04-03 | L159: 1514 | M159: INE306A01021
A160: BAJAJHLDNG | B160: EQ | C160: 3425.05 | D160: 3461.2 | E160: 3383.1 | F160: 3406.15 | G160: 3409.95 | H160: 3423.55 | I160: 130489 | J160: 448193176.1 | K160: 2019-04-03 | L160: 5696 | M160: INE118A01012
A161: BAJFINANCE | B161: EQ | C161: 3073 | D161: 3089 | E161: 3038.15 | F161: 3046 | G161: 3046 | H161: 3055.2 | I161: 1052752 | J161: 3231095874 | K161: 2019-04-03 | L161: 64587 | M161: INE296A01024
A162: BALAJITELE | B162: EQ | C162: 86.25 | D162: 86.25 | E162: 83.1 | F162: 83.7 | G162: 83.65 | H162: 85.2 | I162: 63379 | J162: 5398796.05 | K162: 2019-04-03 | L162: 571 | M162: INE794B01026
A163: BALAMINES | B163: EQ | C163: 524.9 | D163: 529 | E163: 496 | F163: 500.7 | G163: 497 | H163: 520.85 | I163: 50741 | J163: 26057718.6 | K163: 2019-04-03 | L163: 2430 | M163: INE050E01027
A164: BALAXI | B164: BE | C164: 43.9 | D164: 43.9 | E164: 43.9 | F164: 43.9 | G164: 43.9 | H164: 41.85 | I164: 1 | J164: 43.9 | K164: 2019-04-03 | L164: 1 | M164: INE618N01014
A165: BALKRISHNA | B165: EQ | C165: 38.95 | D165: 39.6 | E165: 37.9 | F165: 38.3 | G165: 38.75 | H165: 38.2 | I165: 19044 | J165: 737620.6 | K165: 2019-04-03 | L165: 186 | M165: INE875R01011
A166: BALKRISIND | B166: EQ | C166: 1001 | D166: 1012.5 | E166: 991 | F166: 996.15 | G166: 999 | H166: 1003.35 | I166: 461740 | J166: 463370056.5 | K166: 2019-04-03 | L166: 14914 | M166: INE787D01026
A167: BALLARPUR | B167: EQ | C167: 3.35 | D167: 3.35 | E167: 3.2 | F167: 3.35 | G167: 3.35 | H167: 3.2 | I167: 4207643 | J167: 14060085.4 | K167: 2019-04-03 | L167: 794 | M167: INE294A01037
A168: BALMLAWRIE | B168: EQ | C168: 185.3 | D168: 190.4 | E168: 185.3 | F168: 186.75 | G168: 186.5 | H168: 187.35 | I168: 33060 | J168: 6228577 | K168: 2019-04-03 | L168: 1241 | M168: INE164A01016
A169: BALPHARMA | B169: EQ | C169: 71.05 | D169: 71.1 | E169: 69 | F169: 69.2 | G169: 69 | H169: 70.15 | I169: 6345 | J169: 443354.5 | K169: 2019-04-03 | L169: 224 | M169: INE083D01012
A170: BALRAMCHIN | B170: EQ | C170: 139.45 | D170: 140.75 | E170: 138 | F170: 138.7 | G170: 138.35 | H170: 138.55 | I170: 1160302 | J170: 161889193.2 | K170: 2019-04-03 | L170: 10286 | M170: INE119A01028
A171: BANARBEADS | B171: EQ | C171: 46.5 | D171: 47.75 | E171: 46 | F171: 46.25 | G171: 46 | H171: 47.75 | I171: 1415 | J171: 65637.8 | K171: 2019-04-03 | L171: 35 | M171: INE655B01011
A172: BANARISUG | B172: EQ | C172: 1527.85 | D172: 1527.85 | E172: 1510 | F172: 1512.95 | G172: 1511.1 | H172: 1520.7 | I172: 172 | J172: 260802.1 | K172: 2019-04-03 | L172: 90 | M172: INE459A01010
A173: BANCOINDIA | B173: EQ | C173: 158.9 | D173: 158.9 | E173: 155.1 | F173: 155.85 | G173: 156 | H173: 157.8 | I173: 24632 | J173: 3862362.95 | K173: 2019-04-03 | L173: 583 | M173: INE213C01025
A174: BANDHANBNK | B174: EQ | C174: 532.1 | D174: 554.7 | E174: 532.1 | F174: 550.2 | G174: 549.7 | H174: 531.35 | I174: 1604829 | J174: 879611178.2 | K174: 2019-04-03 | L174: 54254 | M174: INE545U01014
A175: BANG | B175: EQ | C175: 39 | D175: 40.5 | E175: 38.25 | F175: 39.6 | G175: 39 | H175: 38.4 | I175: 19225 | J175: 761318.25 | K175: 2019-04-03 | L175: 285 | M175: INE863I01016
A176: BANKBARODA | B176: EQ | C176: 134.4 | D176: 137.15 | E176: 131.35 | F176: 132.05 | G176: 132.8 | H176: 133.2 | I176: 31127867 | J176: 4181210729 | K176: 2019-04-03 | L176: 96419 | M176: INE028A01039
A177: BANKBEES | B177: EQ | C177: 3087.6 | D177: 3106 | E177: 3064.3 | F177: 3068.86 | G177: 3067.5 | H177: 3071.18 | I177: 5951 | J177: 18425195.96 | K177: 2019-04-03 | L177: 681 | M177: INF732E01078
A178: BANKINDIA | B178: EQ | C178: 106.2 | D178: 107.4 | E178: 101.35 | F178: 101.7 | G178: 101.6 | H178: 105.6 | I178: 10979283 | J178: 1141909361 | K178: 2019-04-03 | L178: 27913 | M178: INE084A01016
A179: BANSWRAS | B179: EQ | C179: 70.9 | D179: 70.9 | E179: 68.6 | F179: 69.1 | G179: 70 | H179: 68.5 | I179: 1036 | J179: 71701.85 | K179: 2019-04-03 | L179: 22 | M179: INE629D01012
A180: BARTRONICS | B180: EQ | C180: 6.75 | D180: 6.8 | E180: 6.5 | F180: 6.6 | G180: 6.6 | H180: 6.6 | I180: 11241 | J180: 74044.1 | K180: 2019-04-03 | L180: 62 | M180: INE855F01034
A181: BASF | B181: EQ | C181: 1439 | D181: 1448.75 | E181: 1401.1 | F181: 1408.6 | G181: 1409.9 | H181: 1433.95 | I181: 4485 | J181: 6366048.15 | K181: 2019-04-03 | L181: 739 | M181: INE373A01013
A182: BASML | B182: EQ | C182: 181.65 | D182: 189 | E182: 181.65 | F182: 187.3 | G182: 189 | H182: 185.65 | I182: 1705 | J182: 316973.75 | K182: 2019-04-03 | L182: 40 | M182: INE186H01014
A183: BATAINDIA | B183: EQ | C183: 1382.5 | D183: 1409.85 | E183: 1381.45 | F183: 1397.35 | G183: 1395 | H183: 1383 | I183: 605476 | J183: 845726282.1 | K183: 2019-04-03 | L183: 37171 | M183: INE176A01028
A184: BAYERCROP | B184: EQ | C184: 4394.1 | D184: 4394.1 | E184: 4320 | F184: 4368.25 | G184: 4320.05 | H184: 4416.45 | I184: 5055 | J184: 22060413.65 | K184: 2019-04-03 | L184: 1822 | M184: INE462A01022
A185: BBL | B185: EQ | C185: 1115.75 | D185: 1132.4 | E185: 1112.6 | F185: 1118.45 | G185: 1115 | H185: 1114.45 | I185: 4140 | J185: 4659692.35 | K185: 2019-04-03 | L185: 663 | M185: INE464A01028
A186: BBTC | B186: EQ | C186: 1298 | D186: 1310.15 | E186: 1267.15 | F186: 1278.65 | G186: 1280 | H186: 1297.75 | I186: 67877 | J186: 87387926.65 | K186: 2019-04-03 | L186: 4527 | M186: INE050A01025
A187: BCG | B187: BE | C187: 3.5 | D187: 3.5 | E187: 3.5 | F187: 3.5 | G187: 3.5 | H187: 3.35 | I187: 238425 | J187: 834487.5 | K187: 2019-04-03 | L187: 85 | M187: INE425B01027
A188: BDL | B188: EQ | C188: 285.05 | D188: 286.7 | E188: 282.55 | F188: 283.1 | G188: 282.55 | H188: 285.15 | I188: 20650 | J188: 5880969.85 | K188: 2019-04-03 | L188: 1235 | M188: INE171Z01018
A189: BEARDSELL | B189: EQ | C189: 15.65 | D189: 15.65 | E189: 14.65 | F189: 14.9 | G189: 14.7 | H189: 15.65 | I189: 457 | J189: 7006 | K189: 2019-04-03 | L189: 15 | M189: INE520H01022
A190: BEDMUTHA | B190: EQ | C190: 18.4 | D190: 18.95 | E190: 18.1 | F190: 18.15 | G190: 18.1 | H190: 19.15 | I190: 6501 | J190: 118928.85 | K190: 2019-04-03 | L190: 42 | M190: INE844K01012
A191: BEL | B191: EQ | C191: 102.05 | D191: 102.2 | E191: 96.75 | F191: 97.25 | G191: 97.25 | H191: 100.85 | I191: 20662237 | J191: 2058430080 | K191: 2019-04-03 | L191: 98623 | M191: INE263A01024
A192: BEML | B192: EQ | C192: 1012.45 | D192: 1034.9 | E192: 994.35 | F192: 1002.9 | G192: 999.95 | H192: 1008.35 | I192: 2562771 | J192: 2617031588 | K192: 2019-04-03 | L192: 47785 | M192: INE258A01016
A193: BEPL | B193: EQ | C193: 73 | D193: 73.9 | E193: 70.25 | F193: 70.55 | G193: 70.6 | H193: 72.95 | I193: 384345 | J193: 27681149.35 | K193: 2019-04-03 | L193: 2557 | M193: INE922A01025
A194: BERGEPAINT | B194: EQ | C194: 331.8 | D194: 334.4 | E194: 329.45 | F194: 330.45 | G194: 331 | H194: 331.9 | I194: 580962 | J194: 192661991.8 | K194: 2019-04-03 | L194: 18084 | M194: INE463A01038
A195: BFINVEST | B195: EQ | C195: 260.35 | D195: 264 | E195: 253.5 | F195: 254.85 | G195: 254.35 | H195: 260.35 | I195: 88564 | J195: 23038288.1 | K195: 2019-04-03 | L195: 1224 | M195: INE878K01010
A196: BFUTILITIE | B196: EQ | C196: 204 | D196: 208.2 | E196: 195.25 | F196: 198.65 | G196: 199.65 | H196: 202.95 | I196: 817357 | J196: 167010918.7 | K196: 2019-04-03 | L196: 13390 | M196: INE243D01012
A197: BGLOBAL | B197: BE | C197: 2.35 | D197: 2.45 | E197: 2.3 | F197: 2.35 | G197: 2.35 | H197: 2.35 | I197: 9888 | J197: 23537.5 | K197: 2019-04-03 | L197: 19 | M197: INE224M01013
A198: BGRENERGY | B198: EQ | C198: 62.05 | D198: 63.5 | E198: 62 | F198: 62.25 | G198: 62.8 | H198: 61.9 | I198: 113298 | J198: 7095597.7 | K198: 2019-04-03 | L198: 1017 | M198: INE661I01014
A199: BHAGERIA | B199: EQ | C199: 283.4 | D199: 285 | E199: 276.45 | F199: 281.8 | G199: 284 | H199: 275.8 | I199: 15850 | J199: 4451063.35 | K199: 2019-04-03 | L199: 405 | M199: INE354C01027
A200: BHAGYANGR | B200: EQ | C200: 32.35 | D200: 32.4 | E200: 31.7 | F200: 32.2 | G200: 32.2 | H200: 31.95 | I200: 3548 | J200: 113527.05 | K200: 2019-04-03 | L200: 52 | M200: INE458B01036
... 1441 more rows

Sheet Sheet1 (hidden)

Sheet Sheet3 (hidden)

Sheet Sheet4 (hidden)
